Workbook

Sheet Series Winners
B4: Name | C4: Club | D4: Point | E4: Races completed | H4: Name | I4: Club | J4: Point | K4: Races completed
B5: M | H5: F
A6: 1 | G6: 1
A7: 2 | G7: 2
B9: MO40 | H9: FO40
A10: 1 | G10: 1
A11: 2 | G11: 2
A12: 3
B14: M050 | H14: FO50
A15: 1 | G15: 1
A16: 2 | G16: 2
B18: MO60
A19: 1
B21: MO70
A22: 1

Sheet Series Table
B1: 2018 WFRA | G1: Llanbedr 2 Bleanafon | I1: Longtown Loop | K1: Cwmdu | M1: Middletown Show | O1: Guto Nyth Bran | Q1: Brecon Beacons | S1: Fan Fawr
A2: Pos | B2: Name | C2: Club | D2: Gender | E2: Cat. | F2: Total | G2: Time | H2: Score | I2: Time | J2: Score | K2: Time | L2: Score | M2: Time | N2: Score | O2: Time | P2: Score | Q2: Time | R2: Score | S2: Time | T2: Score | U2: Competed | V2: Ave (Best of 4) | X2: WFRA membership as of March 2018
A3: =ROW(A1) -> 1 | B3: Matt O'Keefe | C3: =IFERROR(VLOOKUP(B3,INDIRECT("'"&$I$1&"'!"&"$C$2:$H$200"),2,FALSE),"") -> MDC | D3: =IFERROR(VLOOKUP(B3,INDIRECT("'"&$I$1&"'!"&"$C$2:$H$200"),3,FALSE),"") -> M | E3: =IFERROR(VLOOKUP(B3,INDIRECT("'"&$I$1&"'!"&"$C$2:$H$200"),4,FALSE),"") -> SM | F3: =SUM(LARGE((H3,J3,L3,N3,P3,R3),{1,2,3,4})) -> 357.4033978 | G3: =IFERROR(VLOOKUP(B3,INDIRECT("'"&$G$1&"'!"&"$C$2:$H$200"),5,FALSE),"") -> 02:27:24 | H3: =IFERROR(VLOOKUP(B3,INDIRECT("'"&$G$1&"'!"&"$C$2:$H$200"),6,FALSE),0) -> 124.6883303 | I3: =IFERROR(VLOOKUP(B3,INDIRECT("'"&$I$1&"'!"&"$C$2:$G$200"),5,FALSE),"") -> 3.020138889 | J3: =IFERROR(VLOOKUP(B3,INDIRECT("'"&$I$1&"'!"&"$C$2:$H$200"),6,FALSE),0) -> 122.3808674 | K3: =IFERROR(VLOOKUP(B3,INDIRECT("'"&$K$1&"'!"&"$C$2:$H$200"),5,FALSE),"") -> 01:33:06 | L3: =IFERROR(VLOOKUP(B3,INDIRECT("'"&$K$1&"'!"&"$C$2:$H$200"),6,FALSE),0) -> 110.3342001 | M3: =IFERROR(VLOOKUP(B3,INDIRECT("'"&$M$1&"'!"&"$C$2:$h$200"),5,FALSE),"") ->  | N3: =IFERROR(VLOOKUP(B3,INDIRECT("'"&$M$1&"'!"&"$C$2:$h$200"),6,FALSE),0) -> 0 | O3: =IFERROR(VLOOKUP(B3,INDIRECT("'"&$O$1&"'!"&"$C$2:$h$200"),5,FALSE),"") ->  | P3: =IFERROR(VLOOKUP(B3,INDIRECT("'"&$O$1&"'!"&"$C$2:$h$200"),6,FALSE),0) -> 0 | Q3: =IFERROR(VLOOKUP(B3,INDIRECT("'"&$Q$1&"'!"&"$C$2:$h$200"),5,FALSE),"") ->  | R3: =IFERROR(VLOOKUP(B3,INDIRECT("'"&$Q$1&"'!"&"$C$2:$h$200"),6,FALSE),0) -> 0 | S3: =IFERROR(VLOOKUP(D3,INDIRECT("'"&$Q$1&"'!"&"$C$2:$h$200"),5,FALSE),"") ->  | T3: =IFERROR(VLOOKUP(D3,INDIRECT("'"&$S$1&"'!"&"$C$2:$h$200"),6,FALSE),0) -> 0 | U3: =7-COUNTIF(G3:T3,"") -> 3 | V3: =F3/IF(U3>4,4,U3) -> 119.1344659
A4: =ROW(A2) -> 2 | B4: Dan Sandford | C4: =IFERROR(VLOOKUP(B4,INDIRECT("'"&$I$1&"'!"&"$C$2:$H$200"),2,FALSE),"") -> FODAC | D4: =IFERROR(VLOOKUP(B4,INDIRECT("'"&$I$1&"'!"&"$C$2:$H$200"),3,FALSE),"") -> M | E4: =IFERROR(VLOOKUP(B4,INDIRECT("'"&$I$1&"'!"&"$C$2:$H$200"),4,FALSE),"") -> MV40 | F4: =SUM(LARGE((H4,J4,L4,N4,P4,R4),{1,2,3,4})) -> 352.2178563 | G4: 02:31:11 | H4: 122.7552967 | I4: 3.185416667 | J4: 118.133143 | K4: 01:32:04 | L4: 111.3294167 | N4: 0 | P4: 0 | R4: 0 | T4: 0 | U4: 3 | V4: 117.4059521
A5: 3 | B5: Helen Brown | C5: =IFERROR(VLOOKUP(B5,INDIRECT("'"&$K$1&"'!"&"$C$2:$H$200"),2,FALSE),"") -> Mynydd Du | D5: =IFERROR(VLOOKUP(B5,INDIRECT("'"&$K$1&"'!"&"$C$2:$H$200"),3,FALSE),"") -> F | E5: =IFERROR(VLOOKUP(B5,INDIRECT("'"&$K$1&"'!"&"$C$2:$H$200"),4,FALSE),"") -> F40 | F5: =SUM(LARGE((H5,J5,L5,N5,P5,R5),{1,2,3,4})) -> 339.2376826 | G5: 02:41:09 | H5: 117.6629879 | I5: 3.448611111 | J5: 111.3689095 | K5: 01:33:14 | L5: 110.2057851 | N5: 0 | P5: 0 | R5: 0 | T5: 0 | U5: 3 | V5: 113.0792275
A6: 4 | B6: John Aggleton | C6: =IFERROR(VLOOKUP(B6,INDIRECT("'"&$I$1&"'!"&"$C$2:$H$200"),2,FALSE),"") -> MDC | D6: =IFERROR(VLOOKUP(B6,INDIRECT("'"&$I$1&"'!"&"$C$2:$H$200"),3,FALSE),"") -> M | E6: =IFERROR(VLOOKUP(B6,INDIRECT("'"&$I$1&"'!"&"$C$2:$H$200"),4,FALSE),"") -> MV60 | F6: =SUM(LARGE((H6,J6,L6,N6,P6,R6),{1,2,3,4})) -> 331.9661466 | G6: 02:49:48 | H6: 113.243409 | I6: 3.452777778 | J6: 111.261824 | K6: 01:36:05 | L6: 107.4609137 | N6: 0 | P6: 0 | R6: 0 | T6: 0 | U6: 3 | V6: 110.6553822
A7: 5 | B7: Paul Tucker | C7: Mynydd Du | D7: M | E7: MV50 | F7: =SUM(LARGE((H7,J7,L7,N7,P7,R7),{1,2,3,4})) -> 315.3396929 | G7: 03:08:20 | H7: 103.7740991 | I7: 3.644444444 | J7: 106.3358915 | K7: 01:38:24 | L7: 105.2297024 | N7: 0 | P7: 0 | R7: 0 | T7: 0 | U7: 3 | V7: 105.113231
A8: 6 | B8: Rhian Probert | C8: Mynydd Du | D8: F | E8: FV40 | F8: =SUM(LARGE((H8,J8,L8,N8,P8,R8),{1,2,3,4})) -> 315.2000928 | G8: 02:58:49 | H8: 108.6364875 | I8: 3.697916667 | J8: 104.9616277 | K8: 01:42:10 | L8: 101.6019776 | N8: 0 | P8: 0 | R8: 0 | T8: 0 | U8: 3 | V8: 105.0666976
A9: 7 | B9: Debbie Stenner | C9: Forest of Dean AC | D9: F | E9: FV40 | F9: =SUM(LARGE((H9,J9,L9,N9,P9,R9),{1,2,3,4})) -> 300.2020093 | G9: 03:14:15 | H9: 100.751073 | I9: 3.692361111 | J9: 105.1044084 | K9: 01:49:42 | L9: 94.34652798 | N9: 0 | P9: 0 | R9: 0 | T9: 0 | U9: 3 | V9: 100.0673364
A10: 8 | B10: gareth welch | C10: 0 | D10: M | E10: MV40 | F10: =SUM(LARGE((H10,J10,L10,N10,P10,R10),{1,2,3,4})) -> 270.8420103 | G10: 03:45:29 | H10: 84.79290142 | I10: 4.014583333 | J10: 96.82313047 | K10: 01:55:01 | L10: 89.22597836 | N10: 0 | P10: 0 | R10: 0 | T10: 0 | U10: 3 | V10: 90.28067008
A11: 9 | B11: John Jaspers | C11: 0 | D11: M | E11: MV40 | F11: =SUM(LARGE((H11,J11,L11,N11,P11,R11),{1,2,3,4})) -> 266.0340956 | G11: 03:44:27 | H11: 85.32086654 | I11: 4.190972222 | J11: 92.28984473 | K11: 01:55:51 | L11: 88.42338438 | N11: 0 | P11: 0 | R11: 0 | T11: 0 | U11: 3 | V11: 88.67803188
A12: 10 | B12: Peter Ryder | C12: Aberdare Valley | D12: M | E12: SM | F12: =SUM(LARGE((H12,J12,L12,N12,P12,R12),{1,2,3,4})) -> 257.7292579 | G12: 02:15:35 | H12: 130.7258669 | I12: 2.840277778 | J12: 127.003391 | L12: 0 | N12: 0 | P12: 0 | R12: 0 | T12: 0 | U12: 2 | V12: 128.864629
A13: 11 | B13: Caroline Dallimore | C13: =IFERROR(VLOOKUP(B13,INDIRECT("'"&$K$1&"'!"&"$C$2:$H$200"),2,FALSE),"") -> MDC | D13: =IFERROR(VLOOKUP(B13,INDIRECT("'"&$K$1&"'!"&"$C$2:$H$200"),3,FALSE),"") -> F | E13: =IFERROR(VLOOKUP(B13,INDIRECT("'"&$K$1&"'!"&"$C$2:$H$200"),4,FALSE),"") -> F60 | F13: =SUM(LARGE((H13,J13,L13,N13,P13,R13),{1,2,3,4})) -> 243.0574642 | G13: 03:46:27 | H13: 84.29899857 | I13: 4.561805556 | J13: 82.75923612 | K13: 02:08:45 | L13: 75.99922951 | N13: 0 | P13: 0 | R13: 0 | T13: 0 | U13: 3 | V13: 81.01915473
A14: 12 | B14: Paul Jeggo | C14: =IFERROR(VLOOKUP(B14,INDIRECT("'"&$I$1&"'!"&"$C$2:$H$200"),2,FALSE),"") -> Springfield | D14: =IFERROR(VLOOKUP(B14,INDIRECT("'"&$I$1&"'!"&"$C$2:$H$200"),3,FALSE),"") -> M | E14: =IFERROR(VLOOKUP(B14,INDIRECT("'"&$I$1&"'!"&"$C$2:$H$200"),4,FALSE),"") -> MV50 | F14: =SUM(LARGE((H14,J14,L14,N14,P14,R14),{1,2,3,4})) -> 230.1477713 | G14: 02:43:43 | H14: 116.3515907 | I14: 3.354166667 | J14: 113.7961806 | L14: 0 | N14: 0 | P14: 0 | R14: 0 | T14: 0 | U14: 2 | V14: 115.0738857
A15: 13 | B15: Tom Turner | C15: =IFERROR(VLOOKUP(B15,INDIRECT("'"&$K$1&"'!"&"$C$2:$H$200"),2,FALSE),"") -> Mynydd Du | D15: =IFERROR(VLOOKUP(B15,INDIRECT("'"&$K$1&"'!"&"$C$2:$H$200"),3,FALSE),"") -> M | E15: =IFERROR(VLOOKUP(B15,INDIRECT("'"&$K$1&"'!"&"$C$2:$H$200"),4,FALSE),"") -> M | F15: =SUM(LARGE((H15,J15,L15,N15,P15,R15),{1,2,3,4})) -> 227.9566624 | H15: 0 | I15: 3.320833333 | J15: 114.6528645 | K15: 01:30:01 | L15: 113.3037979 | N15: 0 | P15: 0 | R15: 0 | T15: 0 | U15: 2 | V15: 113.9783312
A16: 14 | B16: Dave Powell | C16: =IFERROR(VLOOKUP(B16,INDIRECT("'"&$I$1&"'!"&"$C$2:$H$200"),2,FALSE),"") -> Aberystwyth AC | D16: =IFERROR(VLOOKUP(B16,INDIRECT("'"&$I$1&"'!"&"$C$2:$H$200"),3,FALSE),"") -> M | E16: =IFERROR(VLOOKUP(B16,INDIRECT("'"&$I$1&"'!"&"$C$2:$H$200"),4,FALSE),"") -> MV50 | F16: =SUM(LARGE((H16,J16,L16,N16,P16,R16),{1,2,3,4})) -> 224.1047892 | G16: 02:44:01 | H16: 116.1983105 | I16: 3.583333333 | J16: 107.9064787 | L16: 0 | N16: 0 | P16: 0 | R16: 0 | T16: 0 | U16: 2 | V16: 112.0523946
A17: 15 | B17: Hayley Evans | C17: =IFERROR(VLOOKUP(B17,INDIRECT("'"&$G$1&"'!"&"$C$2:$H$200"),2,FALSE),"") -> Buckley Runners | D17: =IFERROR(VLOOKUP(B17,INDIRECT("'"&$G$1&"'!"&"$C$2:$H$200"),3,FALSE),"") -> F | E17: =IFERROR(VLOOKUP(B17,INDIRECT("'"&$G$1&"'!"&"$C$2:$H$200"),4,FALSE),"") -> Open | F17: =SUM(LARGE((H17,J17,L17,N17,P17,R17),{1,2,3,4})) -> 223.7121342 | G17: 02:46:34 | H17: 114.8954288 | I17: 3.547916667 | J17: 108.8167053 | L17: 0 | N17: 0 | P17: 0 | R17: 0 | T17: 0 | U17: 2 | V17: 111.8560671
A18: 16 | B18: Andy Pritchard | C18: =IFERROR(VLOOKUP(B18,INDIRECT("'"&$I$1&"'!"&"$C$2:$H$200"),2,FALSE),"") -> Buckley Runners | D18: =IFERROR(VLOOKUP(B18,INDIRECT("'"&$I$1&"'!"&"$C$2:$H$200"),3,FALSE),"") -> M | E18: =IFERROR(VLOOKUP(B18,INDIRECT("'"&$I$1&"'!"&"$C$2:$H$200"),4,FALSE),"") -> MV40 | F18: =SUM(LARGE((H18,J18,L18,N18,P18,R18),{1,2,3,4})) -> 220.6069814 | G18: 02:53:52 | H18: 111.1656107 | I18: 3.523611111 | J18: 109.4413707 | L18: 0 | N18: 0 | P18: 0 | R18: 0 | T18: 0 | U18: 2 | V18: 110.3034907
A19: 17 | B19: Steve 'Amazing' Hepton… | C19: =IFERROR(VLOOKUP(B19,INDIRECT("'"&$G$1&"'!"&"$C$2:$H$200"),2,FALSE),"") -> Mynydd Du | D19: =IFERROR(VLOOKUP(B19,INDIRECT("'"&$G$1&"'!"&"$C$2:$H$200"),3,FALSE),"") -> M | E19: =IFERROR(VLOOKUP(B19,INDIRECT("'"&$G$1&"'!"&"$C$2:$H$200"),4,FALSE),"") -> V40 | F19: =SUM(LARGE((H19,J19,L19,N19,P19,R19),{1,2,3,4})) -> 217.2233283 | G19: 02:55:44 | H19: 110.2118673 | J19: 0 | K19: 01:36:33 | L19: 107.011461 | N19: 0 | P19: 0 | R19: 0 | T19: 0 | U19: 2 | V19: 108.6116642
A20: 18 | B20: Helen Marshall | C20: =IFERROR(VLOOKUP(B20,INDIRECT("'"&$K$1&"'!"&"$C$2:$H$200"),2,FALSE),"") -> Aberystwyth | D20: =IFERROR(VLOOKUP(B20,INDIRECT("'"&$K$1&"'!"&"$C$2:$H$200"),3,FALSE),"") -> F | E20: =IFERROR(VLOOKUP(B20,INDIRECT("'"&$K$1&"'!"&"$C$2:$H$200"),4,FALSE),"") -> F | F20: =SUM(LARGE((H20,J20,L20,N20,P20,R20),{1,2,3,4})) -> 215.3232659 | H20: 0 | I20: 3.556944444 | J20: 108.5846868 | K20: 01:36:50 | L20: 106.7385791 | N20: 0 | P20: 0 | R20: 0 | T20: 0 | U20: 2 | V20: 107.6616329
A21: 19 | B21: Gary Gunner | C21: =IFERROR(VLOOKUP(B21,INDIRECT("'"&$K$1&"'!"&"$C$2:$H$200"),2,FALSE),"") -> Croft Ambrey | D21: =IFERROR(VLOOKUP(B21,INDIRECT("'"&$K$1&"'!"&"$C$2:$H$200"),3,FALSE),"") -> M | E21: =IFERROR(VLOOKUP(B21,INDIRECT("'"&$K$1&"'!"&"$C$2:$H$200"),4,FALSE),"") -> M70 | F21: =SUM(LARGE((H21,J21,L21,N21,P21,R21),{1,2,3,4})) -> 213.7217457 | G21: 04:18:58 | H21: 67.68512841 | I21: 4.552777778 | J21: 82.99125468 | K21: 02:22:12 | L21: 63.04536261 | N21: 0 | P21: 0 | R21: 0 | T21: 0 | U21: 3 | V21: 71.2405819
A22: 20 | B22: Oliver Lamford | C22: =IFERROR(VLOOKUP(B22,INDIRECT("'"&$I$1&"'!"&"$C$2:$H$200"),2,FALSE),"") -> MDC | D22: =IFERROR(VLOOKUP(B22,INDIRECT("'"&$I$1&"'!"&"$C$2:$H$200"),3,FALSE),"") -> M | E22: =IFERROR(VLOOKUP(B22,INDIRECT("'"&$I$1&"'!"&"$C$2:$H$200"),4,FALSE),"") -> SM | F22: =SUM(LARGE((H22,J22,L22,N22,P22,R22),{1,2,3,4})) -> 212.9722659 | G22: 03:04:14 | H22: 105.8689284 | I22: 3.614583333 | J22: 107.1033375 | L22: 0 | N22: 0 | P22: 0 | R22: 0 | T22: 0 | U22: 2 | V22: 106.4861329
A23: 21 | B23: David Mullin | C23: =IFERROR(VLOOKUP(B23,INDIRECT("'"&$K$1&"'!"&"$C$2:$H$200"),2,FALSE),"") -> Mercia | D23: =IFERROR(VLOOKUP(B23,INDIRECT("'"&$K$1&"'!"&"$C$2:$H$200"),3,FALSE),"") -> M | E23: =IFERROR(VLOOKUP(B23,INDIRECT("'"&$K$1&"'!"&"$C$2:$H$200"),4,FALSE),"") -> M40 | F23: =SUM(LARGE((H23,J23,L23,N23,P23,R23),{1,2,3,4})) -> 212.2404942 | H23: 0 | I23: 3.501388889 | J23: 110.0124933 | K23: 01:41:31 | L23: 102.2280009 | N23: 0 | P23: 0 | R23: 0 | T23: 0 | U23: 2 | V23: 106.1202471
A24: 22 | B24: Les Williams | C24: =IFERROR(VLOOKUP(B24,INDIRECT("'"&$K$1&"'!"&"$C$2:$H$200"),2,FALSE),"") -> Eryri | D24: =IFERROR(VLOOKUP(B24,INDIRECT("'"&$K$1&"'!"&"$C$2:$H$200"),3,FALSE),"") -> M | E24: =IFERROR(VLOOKUP(B24,INDIRECT("'"&$K$1&"'!"&"$C$2:$H$200"),4,FALSE),"") -> M70 | F24: =SUM(LARGE((H24,J24,L24,N24,P24,R24),{1,2,3,4})) -> 211.349904 | G24: 04:12:23 | H24: 71.04877716 | I24: 4.734722222 | J24: 78.31518829 | K24: 02:23:18 | L24: 61.98593855 | N24: 0 | P24: 0 | R24: 0 | T24: 0 | U24: 3 | V24: 70.449968
A25: 23 | B25: Sam Weale | C25: =IFERROR(VLOOKUP(B25,INDIRECT("'"&$K$1&"'!"&"$C$2:$H$200"),2,FALSE),"") -> Monross | D25: =IFERROR(VLOOKUP(B25,INDIRECT("'"&$K$1&"'!"&"$C$2:$H$200"),3,FALSE),"") -> M | E25: =IFERROR(VLOOKUP(B25,INDIRECT("'"&$K$1&"'!"&"$C$2:$H$200"),4,FALSE),"") -> M | F25: =SUM(LARGE((H25,J25,L25,N25,P25,R25),{1,2,3,4})) -> 207.9251688 | G25: 03:03:15 | H25: 106.3713468 | J25: 0 | K25: 01:42:13 | L25: 101.553822 | N25: 0 | P25: 0 | R25: 0 | T25: 0 | U25: 2 | V25: 103.9625844
A26: 24 | B26: Matthew Lawson | C26: =IFERROR(VLOOKUP(B26,INDIRECT("'"&$K$1&"'!"&"$C$2:$H$200"),2,FALSE),"") -> Chepstw | D26: =IFERROR(VLOOKUP(B26,INDIRECT("'"&$K$1&"'!"&"$C$2:$H$200"),3,FALSE),"") -> M | E26: =IFERROR(VLOOKUP(B26,INDIRECT("'"&$K$1&"'!"&"$C$2:$H$200"),4,FALSE),"") -> M40 | F26: =SUM(LARGE((H26,J26,L26,N26,P26,R26),{1,2,3,4})) -> 206.2698199 | G26: 02:59:46 | H26: 108.1511002 | J26: 0 | K26: 01:45:47 | L26: 98.1187197 | N26: 0 | P26: 0 | R26: 0 | T26: 0 | U26: 2 | V26: 103.13491
A27: 25 | B27: Louise Barker | C27: =IFERROR(VLOOKUP(B27,INDIRECT("'"&$I$1&"'!"&"$C$2:$H$200"),2,FALSE),"") -> Aberystwyth AC | D27: =IFERROR(VLOOKUP(B27,INDIRECT("'"&$I$1&"'!"&"$C$2:$H$200"),3,FALSE),"") -> F | E27: =IFERROR(VLOOKUP(B27,INDIRECT("'"&$I$1&"'!"&"$C$2:$H$200"),4,FALSE),"") -> FV40 | F27: =SUM(LARGE((H27,J27,L27,N27,P27,R27),{1,2,3,4})) -> 205.2958218 | G27: 03:04:31 | H27: 105.7241638 | I27: 3.907638889 | J27: 99.57165804 | L27: 0 | N27: 0 | P27: 0 | R27: 0 | T27: 0 | U27: 2 | V27: 102.6479109
A28: 26 | B28: Richard Cronin | C28: =IFERROR(VLOOKUP(B28,INDIRECT("'"&$K$1&"'!"&"$C$2:$H$200"),2,FALSE),"") -> MDC | D28: =IFERROR(VLOOKUP(B28,INDIRECT("'"&$K$1&"'!"&"$C$2:$H$200"),3,FALSE),"") -> M | E28: =IFERROR(VLOOKUP(B28,INDIRECT("'"&$K$1&"'!"&"$C$2:$H$200"),4,FALSE),"") -> M | F28: =SUM(LARGE((H28,J28,L28,N28,P28,R28),{1,2,3,4})) -> 204.890682 | G28: 03:03:00 | H28: 106.4990803 | J28: 0 | K28: 01:45:30 | L28: 98.39160166 | N28: 0 | P28: 0 | R28: 0 | T28: 0 | U28: 2 | V28: 102.445341
A29: 27 | B29: Sammi Toop | C29: =IFERROR(VLOOKUP(B29,INDIRECT("'"&$K$1&"'!"&"$C$2:$H$200"),2,FALSE),"") -> Mynydd Du | D29: =IFERROR(VLOOKUP(B29,INDIRECT("'"&$K$1&"'!"&"$C$2:$H$200"),3,FALSE),"") -> F | E29: =IFERROR(VLOOKUP(B29,INDIRECT("'"&$K$1&"'!"&"$C$2:$H$200"),4,FALSE),"") -> F | F29: =SUM(LARGE((H29,J29,L29,N29,P29,R29),{1,2,3,4})) -> 204.4460001 | G29: 03:04:45 | H29: 105.6049458 | J29: 0 | K29: 01:45:02 | L29: 98.84105429 | N29: 0 | P29: 0 | R29: 0 | T29: 0 | U29: 2 | V29: 102.2230001
A30: 28 | B30: Luke Davies | C30: =IFERROR(VLOOKUP(B30,INDIRECT("'"&$I$1&"'!"&"$C$2:$H$200"),2,FALSE),"") -> Swansea Harriers | D30: =IFERROR(VLOOKUP(B30,INDIRECT("'"&$I$1&"'!"&"$C$2:$H$200"),3,FALSE),"") -> M | E30: =IFERROR(VLOOKUP(B30,INDIRECT("'"&$I$1&"'!"&"$C$2:$H$200"),4,FALSE),"") -> SM | F30: =SUM(LARGE((H30,J30,L30,N30,P30,R30),{1,2,3,4})) -> 203.4734742 | G30: 03:13:11 | H30: 101.2960692 | I30: 3.80625 | J30: 102.177405 | L30: 0 | N30: 0 | P30: 0 | R30: 0 | T30: 0 | U30: 2 | V30: 101.7367371
A31: 29 | B31: Matthew Haynes | C31: =IFERROR(VLOOKUP(B31,INDIRECT("'"&$K$1&"'!"&"$C$2:$H$200"),2,FALSE),"") -> Hay Hotfooters | D31: =IFERROR(VLOOKUP(B31,INDIRECT("'"&$K$1&"'!"&"$C$2:$H$200"),3,FALSE),"") -> M | E31: =IFERROR(VLOOKUP(B31,INDIRECT("'"&$K$1&"'!"&"$C$2:$H$200"),4,FALSE),"") -> M40 | F31: =SUM(LARGE((H31,J31,L31,N31,P31,R31),{1,2,3,4})) -> 202.5269629 | H31: 0 | I31: 3.725694444 | J31: 104.2477244 | K31: 01:45:37 | L31: 98.2792385 | N31: 0 | P31: 0 | R31: 0 | T31: 0 | U31: 2 | V31: 101.2634815
A32: 30 | B32: Martin Simmons | C32: =IFERROR(VLOOKUP(B32,INDIRECT("'"&$K$1&"'!"&"$C$2:$H$200"),2,FALSE),"") -> 0 | D32: =IFERROR(VLOOKUP(B32,INDIRECT("'"&$K$1&"'!"&"$C$2:$H$200"),3,FALSE),"") -> M | E32: =IFERROR(VLOOKUP(B32,INDIRECT("'"&$K$1&"'!"&"$C$2:$H$200"),4,FALSE),"") -> M50 | F32: =SUM(LARGE((H32,J32,L32,N32,P32,R32),{1,2,3,4})) -> 191.468491 | H32: 0 | I32: 4.060416667 | J32: 95.64519008 | K32: 01:48:10 | L32: 95.82330091 | N32: 0 | P32: 0 | R32: 0 | T32: 0 | U32: 2 | V32: 95.73424549
A33: 31 | B33: Nick Dallimore | C33: =IFERROR(VLOOKUP(B33,INDIRECT("'"&$I$1&"'!"&"$C$2:$H$200"),2,FALSE),"") -> MDC | D33: =IFERROR(VLOOKUP(B33,INDIRECT("'"&$I$1&"'!"&"$C$2:$H$200"),3,FALSE),"") -> M | E33: =IFERROR(VLOOKUP(B33,INDIRECT("'"&$I$1&"'!"&"$C$2:$H$200"),4,FALSE),"") -> MV60 | F33: =SUM(LARGE((H33,J33,L33,N33,P33,R33),{1,2,3,4})) -> 190.7630889 | G33: 03:46:35 | H33: 84.23087404 | I33: 3.636805556 | J33: 106.5322149 | L33: 0 | N33: 0 | P33: 0 | R33: 0 | T33: 0 | U33: 2 | V33: 95.38154446
A34: 32 | B34: Andrew Wood | C34: =IFERROR(VLOOKUP(B34,INDIRECT("'"&$I$1&"'!"&"$C$2:$H$200"),2,FALSE),"") -> 0 | D34: =IFERROR(VLOOKUP(B34,INDIRECT("'"&$I$1&"'!"&"$C$2:$H$200"),3,FALSE),"") -> M | E34: =IFERROR(VLOOKUP(B34,INDIRECT("'"&$I$1&"'!"&"$C$2:$H$200"),4,FALSE),"") -> SM | F34: =SUM(LARGE((H34,J34,L34,N34,P34,R34),{1,2,3,4})) -> 188.1458385 | G34: 03:32:38 | H34: 91.35840316 | I34: 4.015972222 | J34: 96.7874353 | L34: 0 | N34: 0 | P34: 0 | R34: 0 | T34: 0 | U34: 2 | V34: 94.07291923
A35: 33 | B35: Richard Simpson | C35: =IFERROR(VLOOKUP(B35,INDIRECT("'"&$K$1&"'!"&"$C$2:$H$200"),2,FALSE),"") -> 0 | D35: =IFERROR(VLOOKUP(B35,INDIRECT("'"&$K$1&"'!"&"$C$2:$H$200"),3,FALSE),"") -> M | E35: =IFERROR(VLOOKUP(B35,INDIRECT("'"&$K$1&"'!"&"$C$2:$H$200"),4,FALSE),"") -> M40 | F35: =SUM(LARGE((H35,J35,L35,N35,P35,R35),{1,2,3,4})) -> 184.8767297 | H35: 0 | I35: 3.946527778 | J35: 98.57219347 | K35: 01:58:03 | L35: 86.30453626 | N35: 0 | P35: 0 | R35: 0 | T35: 0 | U35: 2 | V35: 92.43836486
A36: 34 | B36: Beverley Tucker | C36: =IFERROR(VLOOKUP(B36,INDIRECT("'"&$I$1&"'!"&"$C$2:$H$200"),2,FALSE),"") -> Mynydd Du | D36: =IFERROR(VLOOKUP(B36,INDIRECT("'"&$I$1&"'!"&"$C$2:$H$200"),3,FALSE),"") -> F | E36: =IFERROR(VLOOKUP(B36,INDIRECT("'"&$I$1&"'!"&"$C$2:$H$200"),4,FALSE),"") -> FV50 | F36: =SUM(LARGE((H36,J36,L36,N36,P36,R36),{1,2,3,4})) -> 182.3865726 | G36: 03:26:18 | H36: 94.59431841 | I36: 4.365972222 | J36: 87.79225415 | L36: 0 | N36: 0 | P36: 0 | R36: 0 | T36: 0 | U36: 2 | V36: 91.19328628
A37: 35 | B37: Andy Stott | C37: =IFERROR(VLOOKUP(B37,INDIRECT("'"&$K$1&"'!"&"$C$2:$H$200"),2,FALSE),"") -> MDC | D37: =IFERROR(VLOOKUP(B37,INDIRECT("'"&$K$1&"'!"&"$C$2:$H$200"),3,FALSE),"") -> M | E37: =IFERROR(VLOOKUP(B37,INDIRECT("'"&$K$1&"'!"&"$C$2:$H$200"),4,FALSE),"") -> M50 | F37: =SUM(LARGE((H37,J37,L37,N37,P37,R37),{1,2,3,4})) -> 180.3493783 | H37: 0 | I37: 4.089583333 | J37: 94.89559165 | K37: 01:58:56 | L37: 85.45378664 | N37: 0 | P37: 0 | R37: 0 | T37: 0 | U37: 2 | V37: 90.17468914
A38: 36 | B38: Rona Davies | C38: =IFERROR(VLOOKUP(B38,INDIRECT("'"&$K$1&"'!"&"$C$2:$H$200"),2,FALSE),"") -> Mynydd Du | D38: =IFERROR(VLOOKUP(B38,INDIRECT("'"&$K$1&"'!"&"$C$2:$H$200"),3,FALSE),"") -> F | E38: =IFERROR(VLOOKUP(B38,INDIRECT("'"&$K$1&"'!"&"$C$2:$H$200"),4,FALSE),"") -> F50 | F38: =SUM(LARGE((H38,J38,L38,N38,P38,R38),{1,2,3,4})) -> 173.6237948 | H38: 0 | I38: 4.182638889 | J38: 92.50401571 | K38: 02:03:26 | L38: 81.11977913 | N38: 0 | P38: 0 | R38: 0 | T38: 0 | U38: 2 | V38: 86.81189742
A39: 37 | B39: Jim Jones | C39: =IFERROR(VLOOKUP(B39,INDIRECT("'"&$I$1&"'!"&"$C$2:$H$200"),2,FALSE),"") -> Helsby Running Club | D39: =IFERROR(VLOOKUP(B39,INDIRECT("'"&$I$1&"'!"&"$C$2:$H$200"),3,FALSE),"") -> M | E39: =IFERROR(VLOOKUP(B39,INDIRECT("'"&$I$1&"'!"&"$C$2:$H$200"),4,FALSE),"") -> MV50 | F39: =SUM(LARGE((H39,J39,L39,N39,P39,R39),{1,2,3,4})) -> 171.5483629 | G39: 03:45:25 | H39: 84.82696369 | I39: 4.407638889 | J39: 86.72139925 | L39: 0 | N39: 0 | P39: 0 | R39: 0 | T39: 0 | U39: 2 | V39: 85.77418147
A40: 38 | B40: Andrew Chambers | C40: =IFERROR(VLOOKUP(B40,INDIRECT("'"&$I$1&"'!"&"$C$2:$H$200"),2,FALSE),"") -> 0 | D40: =IFERROR(VLOOKUP(B40,INDIRECT("'"&$I$1&"'!"&"$C$2:$H$200"),3,FALSE),"") -> M | E40: =IFERROR(VLOOKUP(B40,INDIRECT("'"&$I$1&"'!"&"$C$2:$H$200"),4,FALSE),"") -> MV40 | F40: =SUM(LARGE((H40,J40,L40,N40,P40,R40),{1,2,3,4})) -> 166.944144 | G40: 03:48:21 | H40: 83.32822399 | I40: 4.528472222 | J40: 83.61592004 | L40: 0 | N40: 0 | P40: 0 | R40: 0 | T40: 0 | U40: 2 | V40: 83.47207202
A41: 39 | B41: Karen Elvers | C41: =IFERROR(VLOOKUP(B41,INDIRECT("'"&$K$1&"'!"&"$C$2:$H$200"),2,FALSE),"") -> MDC | D41: =IFERROR(VLOOKUP(B41,INDIRECT("'"&$K$1&"'!"&"$C$2:$H$200"),3,FALSE),"") -> F | E41: =IFERROR(VLOOKUP(B41,INDIRECT("'"&$K$1&"'!"&"$C$2:$H$200"),4,FALSE),"") -> F40 | F41: =SUM(LARGE((H41,J41,L41,N41,P41,R41),{1,2,3,4})) -> 153.6097882 | G41: 03:46:00 | H41: 84.52891886 | J41: 0 | K41: 02:15:56 | L41: 69.08086937 | N41: 0 | P41: 0 | R41: 0 | T41: 0 | U41: 2 | V41: 76.80489412
A42: 40 | B42: Janet Richards | C42: =IFERROR(VLOOKUP(B42,INDIRECT("'"&$I$1&"'!"&"$C$2:$H$200"),2,FALSE),"") -> Mynydd Du | D42: =IFERROR(VLOOKUP(B42,INDIRECT("'"&$I$1&"'!"&"$C$2:$H$200"),3,FALSE),"") -> F | E42: =IFERROR(VLOOKUP(B42,INDIRECT("'"&$I$1&"'!"&"$C$2:$H$200"),4,FALSE),"") -> FV50 | F42: =SUM(LARGE((H42,J42,L42,N42,P42,R42),{1,2,3,4})) -> 153.062881 | G42: 04:02:00 | H42: 76.35397507 | I42: 4.797222222 | J42: 76.70890594 | L42: 0 | N42: 0 | P42: 0 | R42: 0 | T42: 0 | U42: 2 | V42: 76.5314405
A43: 41 | B43: Charlie Lowther | C43: =IFERROR(VLOOKUP(B43,INDIRECT("'"&$G$1&"'!"&"$C$2:$H$200"),2,FALSE),"") -> Mynydd Du | D43: =IFERROR(VLOOKUP(B43,INDIRECT("'"&$G$1&"'!"&"$C$2:$H$200"),3,FALSE),"") -> M | E43: =IFERROR(VLOOKUP(B43,INDIRECT("'"&$G$1&"'!"&"$C$2:$H$200"),4,FALSE),"") -> V40 | F43: =SUM(LARGE((H43,J43,L43,N43,P43,R43),{1,2,3,4})) -> 131.3475032 | G43: 02:14:22 | H43: 131.3475032 | J43: 0 | L43: 0 | N43: 0 | P43: 0 | R43: 0 | T43: 0 | U43: 1 | V43: 131.3475032
A44: 42 | B44: Hugh Aggleton | C44: =IFERROR(VLOOKUP(B44,INDIRECT("'"&$G$1&"'!"&"$C$2:$H$200"),2,FALSE),"") -> MDC | D44: =IFERROR(VLOOKUP(B44,INDIRECT("'"&$G$1&"'!"&"$C$2:$H$200"),3,FALSE),"") -> M | E44: =IFERROR(VLOOKUP(B44,INDIRECT("'"&$G$1&"'!"&"$C$2:$H$200"),4,FALSE),"") -> Open | F44: =SUM(LARGE((H44,J44,L44,N44,P44,R44),{1,2,3,4})) -> 130.7769603 | G44: 02:15:29 | H44: 130.7769603 | J44: 0 | L44: 0 | N44: 0 | P44: 0 | R44: 0 | T44: 0 | U44: 1 | V44: 130.7769603
A45: 43 | B45: Mark Hopkinson | C45: =IFERROR(VLOOKUP(B45,INDIRECT("'"&$I$1&"'!"&"$C$2:$H$200"),2,FALSE),"") -> Mynydd Du | D45: =IFERROR(VLOOKUP(B45,INDIRECT("'"&$I$1&"'!"&"$C$2:$H$200"),3,FALSE),"") -> M | E45: =IFERROR(VLOOKUP(B45,INDIRECT("'"&$I$1&"'!"&"$C$2:$H$200"),4,FALSE),"") -> SM | F45: =SUM(LARGE((H45,J45,L45,N45,P45,R45),{1,2,3,4})) -> 127.7708371 | H45: 0 | I45: 2.810416667 | J45: 127.7708371 | L45: 0 | N45: 0 | P45: 0 | R45: 0 | T45: 0 | U45: 1 | V45: 127.7708371
A46: 44 | B46: Sam Tosh | C46: =IFERROR(VLOOKUP(B46,INDIRECT("'"&$K$1&"'!"&"$C$2:$H$200"),2,FALSE),"") -> Rossendale H | D46: =IFERROR(VLOOKUP(B46,INDIRECT("'"&$K$1&"'!"&"$C$2:$H$200"),3,FALSE),"") -> M | E46: =IFERROR(VLOOKUP(B46,INDIRECT("'"&$K$1&"'!"&"$C$2:$H$200"),4,FALSE),"") -> SM | F46: =SUM(LARGE((H46,J46,L46,N46,P46,R46),{1,2,3,4})) -> 125.3266558 | H46: 0 | J46: 0 | K46: 01:17:32 | L46: 125.3266558 | N46: 0 | P46: 0 | R46: 0 | T46: 0 | U46: 1 | V46: 125.3266558
A47: 45 | B47: Alec Hough | C47: =IFERROR(VLOOKUP(B47,INDIRECT("'"&$I$1&"'!"&"$C$2:$H$200"),2,FALSE),"") -> Mercia fell runners | D47: =IFERROR(VLOOKUP(B47,INDIRECT("'"&$I$1&"'!"&"$C$2:$H$200"),3,FALSE),"") -> M | E47: =IFERROR(VLOOKUP(B47,INDIRECT("'"&$I$1&"'!"&"$C$2:$H$200"),4,FALSE),"") -> SM | F47: =SUM(LARGE((H47,J47,L47,N47,P47,R47),{1,2,3,4})) -> 124.5404248 | H47: 0 | I47: 2.936111111 | J47: 124.5404248 | L47: 0 | N47: 0 | P47: 0 | R47: 0 | T47: 0 | U47: 1 | V47: 124.5404248
A48: 46 | B48: Richard Roberts | C48: =IFERROR(VLOOKUP(B48,INDIRECT("'"&$G$1&"'!"&"$C$2:$H$200"),2,FALSE),"") -> Eryri Harriers | D48: =IFERROR(VLOOKUP(B48,INDIRECT("'"&$G$1&"'!"&"$C$2:$H$200"),3,FALSE),"") -> M | E48: =IFERROR(VLOOKUP(B48,INDIRECT("'"&$G$1&"'!"&"$C$2:$H$200"),4,FALSE),"") -> Open | F48: =SUM(LARGE((H48,J48,L48,N48,P48,R48),{1,2,3,4})) -> 123.947476 | G48: 02:28:51 | H48: 123.947476 | J48: 0 | L48: 0 | N48: 0 | P48: 0 | R48: 0 | T48: 0 | U48: 1 | V48: 123.947476
A49: 47 | B49: Jez Brown | C49: Buckley Runners | D49: M | E49: V40 | F49: =SUM(LARGE((H49,J49,L49,N49,P49,R49),{1,2,3,4})) -> 123.8112269 | G49: 02:29:07 | H49: 123.8112269 | J49: 0 | L49: 0 | N49: 0 | P49: 0 | R49: 0 | T49: 0 | U49: 1 | V49: 123.8112269
A50: 48 | B50: Martin Humphreys | C50: Stroud AC | D50: M | E50: V40 | F50: =SUM(LARGE((H50,J50,L50,N50,P50,R50),{1,2,3,4})) -> 123.7941958 | G50: 02:29:09 | H50: 123.7941958 | J50: 0 | L50: 0 | N50: 0 | P50: 0 | R50: 0 | T50: 0 | U50: 1 | V50: 123.7941958
A51: 49 | B51: Andrew Salt | C51: Croft Ambrey | D51: M | E51: Open | F51: =SUM(LARGE((H51,J51,L51,N51,P51,R51),{1,2,3,4})) -> 122.670141 | G51: 02:31:21 | H51: 122.670141 | J51: 0 | L51: 0 | N51: 0 | P51: 0 | R51: 0 | T51: 0 | U51: 1 | V51: 122.670141
A52: 50 | B52: Stuart Bellamy | C52: Mercia Fell Runners | D52: M | E52: V40 | F52: =SUM(LARGE((H52,J52,L52,N52,P52,R52),{1,2,3,4})) -> 122.6105321 | G52: 02:31:28 | H52: 122.6105321 | J52: 0 | L52: 0 | N52: 0 | P52: 0 | R52: 0 | T52: 0 | U52: 1 | V52: 122.6105321
A53: 51 | B53: Iestyn Awesome Rhodes | C53: Mynydd Du | D53: M | E53: V40 | F53: =SUM(LARGE((H53,J53,L53,N53,P53,R53),{1,2,3,4})) -> 122.474283 | G53: 02:31:44 | H53: 122.474283 | J53: 0 | L53: 0 | N53: 0 | P53: 0 | R53: 0 | T53: 0 | U53: 1 | V53: 122.474283
A54: 52 | B54: Pete Ryder | C54: =IFERROR(VLOOKUP(B54,INDIRECT("'"&$K$1&"'!"&"$C$2:$H$200"),2,FALSE),"") -> Aberdare | D54: =IFERROR(VLOOKUP(B54,INDIRECT("'"&$K$1&"'!"&"$C$2:$H$200"),3,FALSE),"") -> M | E54: =IFERROR(VLOOKUP(B54,INDIRECT("'"&$K$1&"'!"&"$C$2:$H$200"),4,FALSE),"") -> SM | F54: =SUM(LARGE((H54,J54,L54,N54,P54,R54),{1,2,3,4})) -> 121.9236573 | H54: 0 | J54: 0 | K54: 01:21:04 | L54: 121.9236573 | N54: 0 | P54: 0 | R54: 0 | T54: 0 | U54: 1 | V54: 121.9236573
A55: 53 | B55: James Blore | C55: =IFERROR(VLOOKUP(B55,INDIRECT("'"&$I$1&"'!"&"$C$2:$H$200"),2,FALSE),"") -> MDC | D55: =IFERROR(VLOOKUP(B55,INDIRECT("'"&$I$1&"'!"&"$C$2:$H$200"),3,FALSE),"") -> M | E55: =IFERROR(VLOOKUP(B55,INDIRECT("'"&$I$1&"'!"&"$C$2:$H$200"),4,FALSE),"") -> SM | F55: =SUM(LARGE((H55,J55,L55,N55,P55,R55),{1,2,3,4})) -> 121.8454399 | H55: 0 | I55: 3.040972222 | J55: 121.8454399 | L55: 0 | N55: 0 | P55: 0 | R55: 0 | T55: 0 | U55: 1 | V55: 121.8454399
A56: 54 | B56: Evan Davies | C56: =IFERROR(VLOOKUP(B56,INDIRECT("'"&$G$1&"'!"&"$C$2:$H$200"),2,FALSE),"") -> Mynydd Du | D56: =IFERROR(VLOOKUP(B56,INDIRECT("'"&$G$1&"'!"&"$C$2:$H$200"),3,FALSE),"") -> M | E56: =IFERROR(VLOOKUP(B56,INDIRECT("'"&$G$1&"'!"&"$C$2:$H$200"),4,FALSE),"") -> U23 | F56: =SUM(LARGE((H56,J56,L56,N56,P56,R56),{1,2,3,4})) -> 120.6434362 | G56: 02:35:19 | H56: 120.6434362 | J56: 0 | L56: 0 | N56: 0 | P56: 0 | R56: 0 | T56: 0 | U56: 1 | V56: 120.6434362
A57: 55 | B57: Andrew Stephens | C57: =IFERROR(VLOOKUP(B57,INDIRECT("'"&$G$1&"'!"&"$C$2:$H$200"),2,FALSE),"") -> Monross Trailblazers | D57: =IFERROR(VLOOKUP(B57,INDIRECT("'"&$G$1&"'!"&"$C$2:$H$200"),3,FALSE),"") -> M | E57: =IFERROR(VLOOKUP(B57,INDIRECT("'"&$G$1&"'!"&"$C$2:$H$200"),4,FALSE),"") -> V40 | F57: =SUM(LARGE((H57,J57,L57,N57,P57,R57),{1,2,3,4})) -> 120.5327338 | G57: 02:35:32 | H57: 120.5327338 | J57: 0 | L57: 0 | N57: 0 | P57: 0 | R57: 0 | T57: 0 | U57: 1 | V57: 120.5327338
A58: 56 | B58: Oliver Blomfield | C58: =IFERROR(VLOOKUP(B58,INDIRECT("'"&$G$1&"'!"&"$C$2:$H$200"),2,FALSE),"") -> Eden Runners | D58: =IFERROR(VLOOKUP(B58,INDIRECT("'"&$G$1&"'!"&"$C$2:$H$200"),3,FALSE),"") -> M | E58: =IFERROR(VLOOKUP(B58,INDIRECT("'"&$G$1&"'!"&"$C$2:$H$200"),4,FALSE),"") -> V40 | F58: =SUM(LARGE((H58,J58,L58,N58,P58,R58),{1,2,3,4})) -> 118.5315757 | G58: 02:39:27 | H58: 118.5315757 | J58: 0 | L58: 0 | N58: 0 | P58: 0 | R58: 0 | T58: 0 | U58: 1 | V58: 118.5315757
A59: 57 | B59: Stephen Jones | C59: =IFERROR(VLOOKUP(B59,INDIRECT("'"&$G$1&"'!"&"$C$2:$H$200"),2,FALSE),"") -> Eryri Harriers | D59: =IFERROR(VLOOKUP(B59,INDIRECT("'"&$G$1&"'!"&"$C$2:$H$200"),3,FALSE),"") -> M | E59: =IFERROR(VLOOKUP(B59,INDIRECT("'"&$G$1&"'!"&"$C$2:$H$200"),4,FALSE),"") -> V60 | F59: =SUM(LARGE((H59,J59,L59,N59,P59,R59),{1,2,3,4})) -> 118.4975135 | G59: 02:39:31 | H59: 118.4975135 | J59: 0 | L59: 0 | N59: 0 | P59: 0 | R59: 0 | T59: 0 | U59: 1 | V59: 118.4975135
A60: 58 | B60: Jim Masters | C60: =IFERROR(VLOOKUP(B60,INDIRECT("'"&$I$1&"'!"&"$C$2:$H$200"),2,FALSE),"") -> Wye Valley Runners | D60: =IFERROR(VLOOKUP(B60,INDIRECT("'"&$I$1&"'!"&"$C$2:$H$200"),3,FALSE),"") -> M | E60: =IFERROR(VLOOKUP(B60,INDIRECT("'"&$I$1&"'!"&"$C$2:$H$200"),4,FALSE),"") -> MV40 | F60: =SUM(LARGE((H60,J60,L60,N60,P60,R60),{1,2,3,4})) -> 118.3473139 | H60: 0 | I60: 3.177083333 | J60: 118.3473139 | L60: 0 | N60: 0 | P60: 0 | R60: 0 | T60: 0 | U60: 1 | V60: 118.3473139
A61: 59 | B61: Leon Davies | C61: =IFERROR(VLOOKUP(B61,INDIRECT("'"&$G$1&"'!"&"$C$2:$H$200"),2,FALSE),"") -> NWRRC | D61: =IFERROR(VLOOKUP(B61,INDIRECT("'"&$G$1&"'!"&"$C$2:$H$200"),3,FALSE),"") -> M | E61: =IFERROR(VLOOKUP(B61,INDIRECT("'"&$G$1&"'!"&"$C$2:$H$200"),4,FALSE),"") -> V40 | F61: =SUM(LARGE((H61,J61,L61,N61,P61,R61),{1,2,3,4})) -> 117.4926766 | G61: 02:41:29 | H61: 117.4926766 | J61: 0 | L61: 0 | N61: 0 | P61: 0 | R61: 0 | T61: 0 | U61: 1 | V61: 117.4926766
A62: 60 | B62: Andy Davies | C62: =IFERROR(VLOOKUP(B62,INDIRECT("'"&$G$1&"'!"&"$C$2:$H$200"),2,FALSE),"") -> Mercia | D62: =IFERROR(VLOOKUP(B62,INDIRECT("'"&$G$1&"'!"&"$C$2:$H$200"),3,FALSE),"") -> M | E62: =IFERROR(VLOOKUP(B62,INDIRECT("'"&$G$1&"'!"&"$C$2:$H$200"),4,FALSE),"") -> V50 | F62: =SUM(LARGE((H62,J62,L62,N62,P62,R62),{1,2,3,4})) -> 117.2968186 | G62: 02:41:52 | H62: 117.2968186 | J62: 0 | L62: 0 | N62: 0 | P62: 0 | R62: 0 | T62: 0 | U62: 1 | V62: 117.2968186
A63: 61 | B63: Craig Jones | C63: =IFERROR(VLOOKUP(B63,INDIRECT("'"&$G$1&"'!"&"$C$2:$H$200"),2,FALSE),"") -> Eryri Harriers | D63: =IFERROR(VLOOKUP(B63,INDIRECT("'"&$G$1&"'!"&"$C$2:$H$200"),3,FALSE),"") -> M | E63: =IFERROR(VLOOKUP(B63,INDIRECT("'"&$G$1&"'!"&"$C$2:$H$200"),4,FALSE),"") -> V40 | F63: =SUM(LARGE((H63,J63,L63,N63,P63,R63),{1,2,3,4})) -> 117.0413516 | G63: 02:42:22 | H63: 117.0413516 | J63: 0 | L63: 0 | N63: 0 | P63: 0 | R63: 0 | T63: 0 | U63: 1 | V63: 117.0413516
A64: 62 | B64: Jack Agnew | C64: =IFERROR(VLOOKUP(B64,INDIRECT("'"&$K$1&"'!"&"$C$2:$H$200"),2,FALSE),"") -> Mercia | D64: =IFERROR(VLOOKUP(B64,INDIRECT("'"&$K$1&"'!"&"$C$2:$H$200"),3,FALSE),"") -> M | E64: =IFERROR(VLOOKUP(B64,INDIRECT("'"&$K$1&"'!"&"$C$2:$H$200"),4,FALSE),"") -> U23 | F64: =SUM(LARGE((H64,J64,L64,N64,P64,R64),{1,2,3,4})) -> 116.5783813 | H64: 0 | J64: 0 | K64: 01:26:37 | L64: 116.5783813 | N64: 0 | P64: 0 | R64: 0 | T64: 0 | U64: 1 | V64: 116.5783813
A65: 63 | B65: Katie Ironside | C65: =IFERROR(VLOOKUP(B65,INDIRECT("'"&$G$1&"'!"&"$C$2:$H$200"),2,FALSE),"") -> MDC | D65: =IFERROR(VLOOKUP(B65,INDIRECT("'"&$G$1&"'!"&"$C$2:$H$200"),3,FALSE),"") -> F | E65: =IFERROR(VLOOKUP(B65,INDIRECT("'"&$G$1&"'!"&"$C$2:$H$200"),4,FALSE),"") -> Open | F65: =SUM(LARGE((H65,J65,L65,N65,P65,R65),{1,2,3,4})) -> 115.4404251 | G65: 02:45:30 | H65: 115.4404251 | J65: 0 | L65: 0 | N65: 0 | P65: 0 | R65: 0 | T65: 0 | U65: 1 | V65: 115.4404251
A66: 64 | B66: Ian Whitstance | C66: =IFERROR(VLOOKUP(B66,INDIRECT("'"&$G$1&"'!"&"$C$2:$H$200"),2,FALSE),"") -> Mynydd Du | D66: =IFERROR(VLOOKUP(B66,INDIRECT("'"&$G$1&"'!"&"$C$2:$H$200"),3,FALSE),"") -> M | E66: =IFERROR(VLOOKUP(B66,INDIRECT("'"&$G$1&"'!"&"$C$2:$H$200"),4,FALSE),"") -> V40 | F66: =SUM(LARGE((H66,J66,L66,N66,P66,R66),{1,2,3,4})) -> 115.1423803 | G66: 02:46:05 | H66: 115.1423803 | J66: 0 | L66: 0 | N66: 0 | P66: 0 | R66: 0 | T66: 0 | U66: 1 | V66: 115.1423803
A67: 65 | B67: Andy Stephens | C67: =IFERROR(VLOOKUP(B67,INDIRECT("'"&$K$1&"'!"&"$C$2:$H$200"),2,FALSE),"") -> Monross | D67: =IFERROR(VLOOKUP(B67,INDIRECT("'"&$K$1&"'!"&"$C$2:$H$200"),3,FALSE),"") -> M | E67: =IFERROR(VLOOKUP(B67,INDIRECT("'"&$K$1&"'!"&"$C$2:$H$200"),4,FALSE),"") -> M40 | F67: =SUM(LARGE((H67,J67,L67,N67,P67,R67),{1,2,3,4})) -> 115.0695046 | G67: =IFERROR(VLOOKUP(B67,INDIRECT("'"&$G$1&"'!"&"$C$2:$H$200"),5,FALSE),"") ->  | H67: =IFERROR(VLOOKUP(B67,INDIRECT("'"&$G$1&"'!"&"$C$2:$H$200"),6,FALSE),0) -> 0 | I67: =IFERROR(VLOOKUP(B67,INDIRECT("'"&$I$1&"'!"&"$C$2:$G$200"),5,FALSE),"") ->  | J67: =IFERROR(VLOOKUP(B67,INDIRECT("'"&$I$1&"'!"&"$C$2:$H$200"),6,FALSE),0) -> 0 | K67: =IFERROR(VLOOKUP(B67,INDIRECT("'"&$K$1&"'!"&"$C$2:$H$200"),5,FALSE),"") -> 01:28:11 | L67: =IFERROR(VLOOKUP(B67,INDIRECT("'"&$K$1&"'!"&"$C$2:$H$200"),6,FALSE),0) -> 115.0695046 | M67: =IFERROR(VLOOKUP(B67,INDIRECT("'"&$M$1&"'!"&"$C$2:$h$200"),5,FALSE),"") ->  | N67: =IFERROR(VLOOKUP(B67,INDIRECT("'"&$M$1&"'!"&"$C$2:$h$200"),6,FALSE),0) -> 0 | O67: =IFERROR(VLOOKUP(B67,INDIRECT("'"&$O$1&"'!"&"$C$2:$h$200"),5,FALSE),"") ->  | P67: =IFERROR(VLOOKUP(B67,INDIRECT("'"&$O$1&"'!"&"$C$2:$h$200"),6,FALSE),0) -> 0 | Q67: =IFERROR(VLOOKUP(B67,INDIRECT("'"&$Q$1&"'!"&"$C$2:$h$200"),5,FALSE),"") ->  | R67: =IFERROR(VLOOKUP(B67,INDIRECT("'"&$Q$1&"'!"&"$C$2:$h$200"),6,FALSE),0) -> 0 | S67: =IFERROR(VLOOKUP(D67,INDIRECT("'"&$Q$1&"'!"&"$C$2:$h$200"),5,FALSE),"") ->  | T67: =IFERROR(VLOOKUP(D67,INDIRECT("'"&$S$1&"'!"&"$C$2:$h$200"),6,FALSE),0) -> 0 | U67: =7-COUNTIF(G67:T67,"") -> 1 | V67: =F67/IF(U67>4,4,U67) -> 115.0695046
A68: =ROW(A66) -> 66 | B68: Chris Chambers | C68: =IFERROR(VLOOKUP(B68,INDIRECT("'"&$I$1&"'!"&"$C$2:$H$200"),2,FALSE),"") -> Mynydd Du | D68: =IFERROR(VLOOKUP(B68,INDIRECT("'"&$I$1&"'!"&"$C$2:$H$200"),3,FALSE),"") -> M | E68: =IFERROR(VLOOKUP(B68,INDIRECT("'"&$I$1&"'!"&"$C$2:$H$200"),4,FALSE),"") -> MV40 | F68: =SUM(LARGE((H68,J68,L68,N68,P68,R68),{1,2,3,4})) -> 114.8134928 | H68: 0 | I68: 3.314583333 | J68: 114.8134928 | L68: 0 | N68: 0 | P68: 0 | R68: 0 | T68: 0 | U68: 1 | V68: 114.8134928
A69: 67 | B69: Mark Edward Hopkinson | C69: =IFERROR(VLOOKUP(B69,INDIRECT("'"&$G$1&"'!"&"$C$2:$H$200"),2,FALSE),"") -> Mymydd Du | D69: =IFERROR(VLOOKUP(B69,INDIRECT("'"&$G$1&"'!"&"$C$2:$H$200"),3,FALSE),"") -> M | E69: =IFERROR(VLOOKUP(B69,INDIRECT("'"&$G$1&"'!"&"$C$2:$H$200"),4,FALSE),"") -> Open | F69: =SUM(LARGE((H69,J69,L69,N69,P69,R69),{1,2,3,4})) -> 114.7336331 | G69: 02:46:53 | H69: 114.7336331 | J69: 0 | L69: 0 | N69: 0 | P69: 0 | R69: 0 | T69: 0 | U69: 1 | V69: 114.7336331
A70: 68 | B70: Toby Dickens | C70: =IFERROR(VLOOKUP(B70,INDIRECT("'"&$G$1&"'!"&"$C$2:$H$200"),2,FALSE),"") -> Monross Trailblazers | D70: =IFERROR(VLOOKUP(B70,INDIRECT("'"&$G$1&"'!"&"$C$2:$H$200"),3,FALSE),"") -> M | E70: =IFERROR(VLOOKUP(B70,INDIRECT("'"&$G$1&"'!"&"$C$2:$H$200"),4,FALSE),"") -> U23 | F70: =SUM(LARGE((H70,J70,L70,N70,P70,R70),{1,2,3,4})) -> 114.4185571 | G70: 02:47:30 | H70: 114.4185571 | J70: 0 | L70: 0 | N70: 0 | P70: 0 | R70: 0 | T70: 0 | U70: 1 | V70: 114.4185571
A71: 69 | B71: james brown | C71: =IFERROR(VLOOKUP(B71,INDIRECT("'"&$I$1&"'!"&"$C$2:$H$200"),2,FALSE),"") -> 0 | D71: =IFERROR(VLOOKUP(B71,INDIRECT("'"&$I$1&"'!"&"$C$2:$H$200"),3,FALSE),"") -> M | E71: =IFERROR(VLOOKUP(B71,INDIRECT("'"&$I$1&"'!"&"$C$2:$H$200"),4,FALSE),"") -> SM | F71: =SUM(LARGE((H71,J71,L71,N71,P71,R71),{1,2,3,4})) -> 114.0817419 | H71: 0 | I71: 3.343055556 | J71: 114.0817419 | L71: 0 | N71: 0 | P71: 0 | R71: 0 | T71: 0 | U71: 1 | V71: 114.0817419
A72: 70 | B72: Robert Pritchard | C72: =IFERROR(VLOOKUP(B72,INDIRECT("'"&$G$1&"'!"&"$C$2:$H$200"),2,FALSE),"") -> Monross Trailblazers | D72: =IFERROR(VLOOKUP(B72,INDIRECT("'"&$G$1&"'!"&"$C$2:$H$200"),3,FALSE),"") -> M | E72: =IFERROR(VLOOKUP(B72,INDIRECT("'"&$G$1&"'!"&"$C$2:$H$200"),4,FALSE),"") -> Open | F72: =SUM(LARGE((H72,J72,L72,N72,P72,R72),{1,2,3,4})) -> 113.7798896 | G72: 02:48:45 | H72: 113.7798896 | J72: 0 | L72: 0 | N72: 0 | P72: 0 | R72: 0 | T72: 0 | U72: 1 | V72: 113.7798896
A73: 71 | B73: Sam Rayall | C73: =IFERROR(VLOOKUP(B73,INDIRECT("'"&$G$1&"'!"&"$C$2:$H$200"),2,FALSE),"") -> Pontypridd Roadents | D73: =IFERROR(VLOOKUP(B73,INDIRECT("'"&$G$1&"'!"&"$C$2:$H$200"),3,FALSE),"") -> M | E73: =IFERROR(VLOOKUP(B73,INDIRECT("'"&$G$1&"'!"&"$C$2:$H$200"),4,FALSE),"") -> V40 | F73: =SUM(LARGE((H73,J73,L73,N73,P73,R73),{1,2,3,4})) -> 113.7458274 | G73: 02:48:49 | H73: 113.7458274 | J73: 0 | L73: 0 | N73: 0 | P73: 0 | R73: 0 | T73: 0 | U73: 1 | V73: 113.7458274
A74: 72 | B74: Gethin Powell | C74: =IFERROR(VLOOKUP(B74,INDIRECT("'"&$I$1&"'!"&"$C$2:$H$200"),2,FALSE),"") -> Pontypridd Roadents Ac | D74: =IFERROR(VLOOKUP(B74,INDIRECT("'"&$I$1&"'!"&"$C$2:$H$200"),3,FALSE),"") -> M | E74: =IFERROR(VLOOKUP(B74,INDIRECT("'"&$I$1&"'!"&"$C$2:$H$200"),4,FALSE),"") -> SM | F74: =SUM(LARGE((H74,J74,L74,N74,P74,R74),{1,2,3,4})) -> 113.5820096 | H74: 0 | I74: 3.3625 | J74: 113.5820096 | L74: 0 | N74: 0 | P74: 0 | R74: 0 | T74: 0 | U74: 1 | V74: 113.5820096
A75: 73 | B75: Tim Woodier | C75: =IFERROR(VLOOKUP(B75,INDIRECT("'"&$G$1&"'!"&"$C$2:$H$200"),2,FALSE),"") -> Mynydd Du | D75: =IFERROR(VLOOKUP(B75,INDIRECT("'"&$G$1&"'!"&"$C$2:$H$200"),3,FALSE),"") -> M | E75: =IFERROR(VLOOKUP(B75,INDIRECT("'"&$G$1&"'!"&"$C$2:$H$200"),4,FALSE),"") -> Open | F75: =SUM(LARGE((H75,J75,L75,N75,P75,R75),{1,2,3,4})) -> 112.6302882 | G75: 02:51:00 | H75: 112.6302882 | J75: 0 | L75: 0 | N75: 0 | P75: 0 | R75: 0 | T75: 0 | U75: 1 | V75: 112.6302882
A76: 74 | B76: Anthony Powell | C76: =IFERROR(VLOOKUP(B76,INDIRECT("'"&$G$1&"'!"&"$C$2:$H$200"),2,FALSE),"") -> Maldwyn Harriers | D76: =IFERROR(VLOOKUP(B76,INDIRECT("'"&$G$1&"'!"&"$C$2:$H$200"),3,FALSE),"") -> M | E76: =IFERROR(VLOOKUP(B76,INDIRECT("'"&$G$1&"'!"&"$C$2:$H$200"),4,FALSE),"") -> V40 | F76: =SUM(LARGE((H76,J76,L76,N76,P76,R76),{1,2,3,4})) -> 112.5281014 | G76: 02:51:12 | H76: 112.5281014 | J76: 0 | L76: 0 | N76: 0 | P76: 0 | R76: 0 | T76: 0 | U76: 1 | V76: 112.5281014
A77: 75 | B77: Wyndham Turner | C77: =IFERROR(VLOOKUP(B77,INDIRECT("'"&$K$1&"'!"&"$C$2:$H$200"),2,FALSE),"") -> 0 | D77: =IFERROR(VLOOKUP(B77,INDIRECT("'"&$K$1&"'!"&"$C$2:$H$200"),3,FALSE),"") -> M | E77: =IFERROR(VLOOKUP(B77,INDIRECT("'"&$K$1&"'!"&"$C$2:$H$200"),4,FALSE),"") -> M | F77: =SUM(LARGE((H77,J77,L77,N77,P77,R77),{1,2,3,4})) -> 112.4691001 | H77: 0 | J77: 0 | K77: 01:30:53 | L77: 112.4691001 | N77: 0 | P77: 0 | R77: 0 | T77: 0 | U77: 1 | V77: 112.4691001
A78: 76 | B78: Sian Williams | C78: =IFERROR(VLOOKUP(B78,INDIRECT("'"&$G$1&"'!"&"$C$2:$H$200"),2,FALSE),"") -> Hebog | D78: =IFERROR(VLOOKUP(B78,INDIRECT("'"&$G$1&"'!"&"$C$2:$H$200"),3,FALSE),"") -> F | E78: =IFERROR(VLOOKUP(B78,INDIRECT("'"&$G$1&"'!"&"$C$2:$H$200"),4,FALSE),"") -> Open | F78: =SUM(LARGE((H78,J78,L78,N78,P78,R78),{1,2,3,4})) -> 112.417399 | G78: 02:51:25 | H78: 112.417399 | J78: 0 | L78: 0 | N78: 0 | P78: 0 | R78: 0 | T78: 0 | U78: 1 | V78: 112.417399
A79: 77 | B79: Mel Price | C79: =IFERROR(VLOOKUP(B79,INDIRECT("'"&$K$1&"'!"&"$C$2:$H$200"),2,FALSE),"") -> Mercia | D79: =IFERROR(VLOOKUP(B79,INDIRECT("'"&$K$1&"'!"&"$C$2:$H$200"),3,FALSE),"") -> F | E79: =IFERROR(VLOOKUP(B79,INDIRECT("'"&$K$1&"'!"&"$C$2:$H$200"),4,FALSE),"") -> F40 | F79: =SUM(LARGE((H79,J79,L79,N79,P79,R79),{1,2,3,4})) -> 112.2764776 | H79: 0 | J79: 0 | K79: 01:31:05 | L79: 112.2764776 | N79: 0 | P79: 0 | R79: 0 | T79: 0 | U79: 1 | V79: 112.2764776
A80: 78 | B80: Gary Davies | C80: =IFERROR(VLOOKUP(B80,INDIRECT("'"&$G$1&"'!"&"$C$2:$H$200"),2,FALSE),"") -> MDC | D80: =IFERROR(VLOOKUP(B80,INDIRECT("'"&$G$1&"'!"&"$C$2:$H$200"),3,FALSE),"") -> M | E80: =IFERROR(VLOOKUP(B80,INDIRECT("'"&$G$1&"'!"&"$C$2:$H$200"),4,FALSE),"") -> V40 | F80: =SUM(LARGE((H80,J80,L80,N80,P80,R80),{1,2,3,4})) -> 111.2167041 | G80: 02:53:46 | H80: 111.2167041 | J80: 0 | L80: 0 | N80: 0 | P80: 0 | R80: 0 | T80: 0 | U80: 1 | V80: 111.2167041
A81: 79 | B81: Andrew Han | C81: =IFERROR(VLOOKUP(B81,INDIRECT("'"&$G$1&"'!"&"$C$2:$H$200"),2,FALSE),"") -> Fulham Running Club | D81: =IFERROR(VLOOKUP(B81,INDIRECT("'"&$G$1&"'!"&"$C$2:$H$200"),3,FALSE),"") -> M | E81: =IFERROR(VLOOKUP(B81,INDIRECT("'"&$G$1&"'!"&"$C$2:$H$200"),4,FALSE),"") -> Open | F81: =SUM(LARGE((H81,J81,L81,N81,P81,R81),{1,2,3,4})) -> 111.0634239 | G81: 02:54:04 | H81: 111.0634239 | J81: 0 | L81: 0 | N81: 0 | P81: 0 | R81: 0 | T81: 0 | U81: 1 | V81: 111.0634239
A82: 80 | B82: Paul Beeson | C82: =IFERROR(VLOOKUP(B82,INDIRECT("'"&$G$1&"'!"&"$C$2:$H$200"),2,FALSE),"") -> Maudwyn Harriers | D82: =IFERROR(VLOOKUP(B82,INDIRECT("'"&$G$1&"'!"&"$C$2:$H$200"),3,FALSE),"") -> M | E82: =IFERROR(VLOOKUP(B82,INDIRECT("'"&$G$1&"'!"&"$C$2:$H$200"),4,FALSE),"") -> V50 | F82: =SUM(LARGE((H82,J82,L82,N82,P82,R82),{1,2,3,4})) -> 110.7568635 | G82: 02:54:40 | H82: 110.7568635 | J82: 0 | L82: 0 | N82: 0 | P82: 0 | R82: 0 | T82: 0 | U82: 1 | V82: 110.7568635
A83: 81 | B83: Vincent Kamp | C83: =IFERROR(VLOOKUP(B83,INDIRECT("'"&$I$1&"'!"&"$C$2:$H$200"),2,FALSE),"") -> 0 | D83: =IFERROR(VLOOKUP(B83,INDIRECT("'"&$I$1&"'!"&"$C$2:$H$200"),3,FALSE),"") -> M | E83: =IFERROR(VLOOKUP(B83,INDIRECT("'"&$I$1&"'!"&"$C$2:$H$200"),4,FALSE),"") -> MV40 | F83: =SUM(LARGE((H83,J83,L83,N83,P83,R83),{1,2,3,4})) -> 110.6907014 | H83: 0 | I83: 3.475 | J83: 110.6907014 | L83: 0 | N83: 0 | P83: 0 | R83: 0 | T83: 0 | U83: 1 | V83: 110.6907014
A84: 82 | B84: Nigeal Rogerson | C84: =IFERROR(VLOOKUP(B84,INDIRECT("'"&$K$1&"'!"&"$C$2:$H$200"),2,FALSE),"") -> 0 | D84: =IFERROR(VLOOKUP(B84,INDIRECT("'"&$K$1&"'!"&"$C$2:$H$200"),3,FALSE),"") -> M | E84: =IFERROR(VLOOKUP(B84,INDIRECT("'"&$K$1&"'!"&"$C$2:$H$200"),4,FALSE),"") -> M40 | F84: =SUM(LARGE((H84,J84,L84,N84,P84,R84),{1,2,3,4})) -> 110.4305114 | H84: 0 | J84: 0 | K84: 01:33:00 | L84: 110.4305114 | N84: 0 | P84: 0 | R84: 0 | T84: 0 | U84: 1 | V84: 110.4305114
A85: 83 | B85: Ian Luke | C85: =IFERROR(VLOOKUP(B85,INDIRECT("'"&$K$1&"'!"&"$C$2:$H$200"),2,FALSE),"") -> Poole R | D85: =IFERROR(VLOOKUP(B85,INDIRECT("'"&$K$1&"'!"&"$C$2:$H$200"),3,FALSE),"") -> M | E85: =IFERROR(VLOOKUP(B85,INDIRECT("'"&$K$1&"'!"&"$C$2:$H$200"),4,FALSE),"") -> M | F85: =SUM(LARGE((H85,J85,L85,N85,P85,R85),{1,2,3,4})) -> 110.1415776 | H85: 0 | J85: 0 | K85: 01:33:18 | L85: 110.1415776 | N85: 0 | P85: 0 | R85: 0 | T85: 0 | U85: 1 | V85: 110.1415776
A86: 84 | B86: Jonny Woolridge | C86: =IFERROR(VLOOKUP(B86,INDIRECT("'"&$I$1&"'!"&"$C$2:$H$200"),2,FALSE),"") -> 0 | D86: =IFERROR(VLOOKUP(B86,INDIRECT("'"&$I$1&"'!"&"$C$2:$H$200"),3,FALSE),"") -> M | E86: =IFERROR(VLOOKUP(B86,INDIRECT("'"&$I$1&"'!"&"$C$2:$H$200"),4,FALSE),"") -> SM | F86: =SUM(LARGE((H86,J86,L86,N86,P86,R86),{1,2,3,4})) -> 110.0660361 | H86: 0 | I86: 3.499305556 | J86: 110.0660361 | L86: 0 | N86: 0 | P86: 0 | R86: 0 | T86: 0 | U86: 1 | V86: 110.0660361
A87: 85 | B87: Martin Wright | C87: =IFERROR(VLOOKUP(B87,INDIRECT("'"&$G$1&"'!"&"$C$2:$H$200"),2,FALSE),"") -> Mynydd Du | D87: =IFERROR(VLOOKUP(B87,INDIRECT("'"&$G$1&"'!"&"$C$2:$H$200"),3,FALSE),"") -> M | E87: =IFERROR(VLOOKUP(B87,INDIRECT("'"&$G$1&"'!"&"$C$2:$H$200"),4,FALSE),"") -> V40 | F87: =SUM(LARGE((H87,J87,L87,N87,P87,R87),{1,2,3,4})) -> 110.0500715 | G87: 02:56:03 | H87: 110.0500715 | J87: 0 | L87: 0 | N87: 0 | P87: 0 | R87: 0 | T87: 0 | U87: 1 | V87: 110.0500715
A88: 86 | B88: Peter Nugent | C88: =IFERROR(VLOOKUP(B88,INDIRECT("'"&$I$1&"'!"&"$C$2:$H$200"),2,FALSE),"") -> Wye Valley Runners | D88: =IFERROR(VLOOKUP(B88,INDIRECT("'"&$I$1&"'!"&"$C$2:$H$200"),3,FALSE),"") -> M | E88: =IFERROR(VLOOKUP(B88,INDIRECT("'"&$I$1&"'!"&"$C$2:$H$200"),4,FALSE),"") -> SM | F88: =SUM(LARGE((H88,J88,L88,N88,P88,R88),{1,2,3,4})) -> 109.9054078 | H88: 0 | I88: 3.505555556 | J88: 109.9054078 | L88: 0 | N88: 0 | P88: 0 | R88: 0 | T88: 0 | U88: 1 | V88: 109.9054078
A89: 87 | B89: Dan Lewis | C89: =IFERROR(VLOOKUP(B89,INDIRECT("'"&$K$1&"'!"&"$C$2:$H$200"),2,FALSE),"") -> Wye V | D89: =IFERROR(VLOOKUP(B89,INDIRECT("'"&$K$1&"'!"&"$C$2:$H$200"),3,FALSE),"") -> M | E89: =IFERROR(VLOOKUP(B89,INDIRECT("'"&$K$1&"'!"&"$C$2:$H$200"),4,FALSE),"") -> M40 | F89: =SUM(LARGE((H89,J89,L89,N89,P89,R89),{1,2,3,4})) -> 109.017946 | H89: 0 | J89: 0 | K89: 01:34:28 | L89: 109.017946 | N89: 0 | P89: 0 | R89: 0 | T89: 0 | U89: 1 | V89: 109.017946
A90: 88 | B90: Faye Johnson | C90: =IFERROR(VLOOKUP(B90,INDIRECT("'"&$G$1&"'!"&"$C$2:$H$200"),2,FALSE),"") -> Mynydd Du | D90: =IFERROR(VLOOKUP(B90,INDIRECT("'"&$G$1&"'!"&"$C$2:$H$200"),3,FALSE),"") -> F | E90: =IFERROR(VLOOKUP(B90,INDIRECT("'"&$G$1&"'!"&"$C$2:$H$200"),4,FALSE),"") -> Open | F90: =SUM(LARGE((H90,J90,L90,N90,P90,R90),{1,2,3,4})) -> 108.8067988 | G90: 02:58:29 | H90: 108.8067988 | J90: 0 | L90: 0 | N90: 0 | P90: 0 | R90: 0 | T90: 0 | U90: 1 | V90: 108.8067988
A91: 89 | B91: Michael Reynolds | C91: =IFERROR(VLOOKUP(B91,INDIRECT("'"&$K$1&"'!"&"$C$2:$H$200"),2,FALSE),"") -> Mercia | D91: =IFERROR(VLOOKUP(B91,INDIRECT("'"&$K$1&"'!"&"$C$2:$H$200"),3,FALSE),"") -> M | E91: =IFERROR(VLOOKUP(B91,INDIRECT("'"&$K$1&"'!"&"$C$2:$H$200"),4,FALSE),"") -> M50 | F91: =SUM(LARGE((H91,J91,L91,N91,P91,R91),{1,2,3,4})) -> 108.7932197 | H91: 0 | J91: 0 | K91: 01:34:42 | L91: 108.7932197 | N91: 0 | P91: 0 | R91: 0 | T91: 0 | U91: 1 | V91: 108.7932197
A92: 90 | B92: Glyn Williams | C92: =IFERROR(VLOOKUP(B92,INDIRECT("'"&$I$1&"'!"&"$C$2:$H$200"),2,FALSE),"") -> Croft Ambrey RC | D92: =IFERROR(VLOOKUP(B92,INDIRECT("'"&$I$1&"'!"&"$C$2:$H$200"),3,FALSE),"") -> M | E92: =IFERROR(VLOOKUP(B92,INDIRECT("'"&$I$1&"'!"&"$C$2:$H$200"),4,FALSE),"") -> MV40 | F92: =SUM(LARGE((H92,J92,L92,N92,P92,R92),{1,2,3,4})) -> 108.6917723 | H92: 0 | I92: 3.552777778 | J92: 108.6917723 | L92: 0 | N92: 0 | P92: 0 | R92: 0 | T92: 0 | U92: 1 | V92: 108.6917723
A93: 91 | B93: Vic Belshaw | C93: =IFERROR(VLOOKUP(B93,INDIRECT("'"&$G$1&"'!"&"$C$2:$H$200"),2,FALSE),"") -> Denbigh Harriers | D93: =IFERROR(VLOOKUP(B93,INDIRECT("'"&$G$1&"'!"&"$C$2:$H$200"),3,FALSE),"") -> M | E93: =IFERROR(VLOOKUP(B93,INDIRECT("'"&$G$1&"'!"&"$C$2:$H$200"),4,FALSE),"") -> V50 | F93: =SUM(LARGE((H93,J93,L93,N93,P93,R93),{1,2,3,4})) -> 108.0914912 | G93: 02:59:53 | H93: 108.0914912 | J93: 0 | L93: 0 | N93: 0 | P93: 0 | R93: 0 | T93: 0 | U93: 1 | V93: 108.0914912
A94: 92 | B94: Alan Hughes | C94: =IFERROR(VLOOKUP(B94,INDIRECT("'"&$G$1&"'!"&"$C$2:$H$200"),2,FALSE),"") -> Exeter Tri Club | D94: =IFERROR(VLOOKUP(B94,INDIRECT("'"&$G$1&"'!"&"$C$2:$H$200"),3,FALSE),"") -> M | E94: =IFERROR(VLOOKUP(B94,INDIRECT("'"&$G$1&"'!"&"$C$2:$H$200"),4,FALSE),"") -> V40 | F94: =SUM(LARGE((H94,J94,L94,N94,P94,R94),{1,2,3,4})) -> 108.0148511 | G94: 03:00:02 | H94: 108.0148511 | J94: 0 | L94: 0 | N94: 0 | P94: 0 | R94: 0 | T94: 0 | U94: 1 | V94: 108.0148511
A95: 93 | B95: Gary Pearson | C95: =IFERROR(VLOOKUP(B95,INDIRECT("'"&$G$1&"'!"&"$C$2:$H$200"),2,FALSE),"") -> Croft Ambrey | D95: =IFERROR(VLOOKUP(B95,INDIRECT("'"&$G$1&"'!"&"$C$2:$H$200"),3,FALSE),"") -> M | E95: =IFERROR(VLOOKUP(B95,INDIRECT("'"&$G$1&"'!"&"$C$2:$H$200"),4,FALSE),"") -> V40 | F95: =SUM(LARGE((H95,J95,L95,N95,P95,R95),{1,2,3,4})) -> 107.9807889 | G95: 03:00:06 | H95: 107.9807889 | J95: 0 | L95: 0 | N95: 0 | P95: 0 | R95: 0 | T95: 0 | U95: 1 | V95: 107.9807889
A96: 94 | B96: Paul Marratt | C96: =IFERROR(VLOOKUP(B96,INDIRECT("'"&$I$1&"'!"&"$C$2:$H$200"),2,FALSE),"") -> Hereford Triathlon Club | D96: =IFERROR(VLOOKUP(B96,INDIRECT("'"&$I$1&"'!"&"$C$2:$H$200"),3,FALSE),"") -> M | E96: =IFERROR(VLOOKUP(B96,INDIRECT("'"&$I$1&"'!"&"$C$2:$H$200"),4,FALSE),"") -> MV50 | F96: =SUM(LARGE((H96,J96,L96,N96,P96,R96),{1,2,3,4})) -> 106.8534714 | H96: 0 | I96: 3.624305556 | J96: 106.8534714 | L96: 0 | N96: 0 | P96: 0 | R96: 0 | T96: 0 | U96: 1 | V96: 106.8534714
A97: 95 | B97: Niki Radnege | C97: =IFERROR(VLOOKUP(B97,INDIRECT("'"&$K$1&"'!"&"$C$2:$H$200"),2,FALSE),"") -> 0 | D97: =IFERROR(VLOOKUP(B97,INDIRECT("'"&$K$1&"'!"&"$C$2:$H$200"),3,FALSE),"") -> M | E97: =IFERROR(VLOOKUP(B97,INDIRECT("'"&$K$1&"'!"&"$C$2:$H$200"),4,FALSE),"") -> M40 | F97: =SUM(LARGE((H97,J97,L97,N97,P97,R97),{1,2,3,4})) -> 106.6743716 | H97: 0 | J97: 0 | K97: 01:36:54 | L97: 106.6743716 | N97: 0 | P97: 0 | R97: 0 | T97: 0 | U97: 1 | V97: 106.6743716
A98: 96 | B98: Tim Hargreaves | C98: =IFERROR(VLOOKUP(B98,INDIRECT("'"&$G$1&"'!"&"$C$2:$H$200"),2,FALSE),"") -> Buckley Runners | D98: =IFERROR(VLOOKUP(B98,INDIRECT("'"&$G$1&"'!"&"$C$2:$H$200"),3,FALSE),"") -> M | E98: =IFERROR(VLOOKUP(B98,INDIRECT("'"&$G$1&"'!"&"$C$2:$H$200"),4,FALSE),"") -> V50 | F98: =SUM(LARGE((H98,J98,L98,N98,P98,R98),{1,2,3,4})) -> 106.4565025 | G98: 03:03:05 | H98: 106.4565025 | J98: 0 | L98: 0 | N98: 0 | P98: 0 | R98: 0 | T98: 0 | U98: 1 | V98: 106.4565025
A99: 97 | B99: Lou Awesomus Summers | C99: =IFERROR(VLOOKUP(B99,INDIRECT("'"&$G$1&"'!"&"$C$2:$H$200"),2,FALSE),"") -> Mynydd Du | D99: =IFERROR(VLOOKUP(B99,INDIRECT("'"&$G$1&"'!"&"$C$2:$H$200"),3,FALSE),"") -> F | E99: =IFERROR(VLOOKUP(B99,INDIRECT("'"&$G$1&"'!"&"$C$2:$H$200"),4,FALSE),"") -> V50 | F99: =SUM(LARGE((H99,J99,L99,N99,P99,R99),{1,2,3,4})) -> 106.3372846 | G99: 03:03:19 | H99: 106.3372846 | J99: 0 | L99: 0 | N99: 0 | P99: 0 | R99: 0 | T99: 0 | U99: 1 | V99: 106.3372846
A100: 98 | B100: Donna Morris | C100: =IFERROR(VLOOKUP(B100,INDIRECT("'"&$I$1&"'!"&"$C$2:$H$200"),2,FALSE),"") -> Breccon AC | D100: =IFERROR(VLOOKUP(B100,INDIRECT("'"&$I$1&"'!"&"$C$2:$H$200"),3,FALSE),"") -> F | E100: =IFERROR(VLOOKUP(B100,INDIRECT("'"&$I$1&"'!"&"$C$2:$H$200"),4,FALSE),"") -> SF | F100: =SUM(LARGE((H100,J100,L100,N100,P100,R100),{1,2,3,4})) -> 106.1931108 | H100: 0 | I100: 3.65 | J100: 106.1931108 | L100: 0 | N100: 0 | P100: 0 | R100: 0 | T100: 0 | U100: 1 | V100: 106.1931108
A101: 99 | B101: Sam Harness | C101: =IFERROR(VLOOKUP(B101,INDIRECT("'"&$G$1&"'!"&"$C$2:$H$200"),2,FALSE),"") -> Monross Trailblazers | D101: =IFERROR(VLOOKUP(B101,INDIRECT("'"&$G$1&"'!"&"$C$2:$H$200"),3,FALSE),"") -> M | E101: =IFERROR(VLOOKUP(B101,INDIRECT("'"&$G$1&"'!"&"$C$2:$H$200"),4,FALSE),"") -> V40 | F101: =SUM(LARGE((H101,J101,L101,N101,P101,R101),{1,2,3,4})) -> 106.1754888 | G101: 03:03:38 | H101: 106.1754888 | J101: 0 | L101: 0 | N101: 0 | P101: 0 | R101: 0 | T101: 0 | U101: 1 | V101: 106.1754888
A102: 100 | B102: Mark Agnew | C102: =IFERROR(VLOOKUP(B102,INDIRECT("'"&$K$1&"'!"&"$C$2:$H$200"),2,FALSE),"") -> Mercia | D102: =IFERROR(VLOOKUP(B102,INDIRECT("'"&$K$1&"'!"&"$C$2:$H$200"),3,FALSE),"") -> M | E102: =IFERROR(VLOOKUP(B102,INDIRECT("'"&$K$1&"'!"&"$C$2:$H$200"),4,FALSE),"") -> M50 | F102: =SUM(LARGE((H102,J102,L102,N102,P102,R102),{1,2,3,4})) -> 106.0644001 | H102: 0 | J102: 0 | K102: 01:37:32 | L102: 106.0644001 | N102: 0 | P102: 0 | R102: 0 | T102: 0 | U102: 1 | V102: 106.0644001
A103: 101 | B103: Nick Syrett | C103: =IFERROR(VLOOKUP(B103,INDIRECT("'"&$I$1&"'!"&"$C$2:$H$200"),2,FALSE),"") -> Chorlton Runners | D103: =IFERROR(VLOOKUP(B103,INDIRECT("'"&$I$1&"'!"&"$C$2:$H$200"),3,FALSE),"") -> M | E103: =IFERROR(VLOOKUP(B103,INDIRECT("'"&$I$1&"'!"&"$C$2:$H$200"),4,FALSE),"") -> MV40 | F103: =SUM(LARGE((H103,J103,L103,N103,P103,R103),{1,2,3,4})) -> 105.9967874 | H103: 0 | I103: 3.657638889 | J103: 105.9967874 | L103: 0 | N103: 0 | P103: 0 | R103: 0 | T103: 0 | U103: 1 | V103: 105.9967874
A104: 102 | B104: Andy Horlick | C104: =IFERROR(VLOOKUP(B104,INDIRECT("'"&$K$1&"'!"&"$C$2:$H$200"),2,FALSE),"") -> FOD | D104: =IFERROR(VLOOKUP(B104,INDIRECT("'"&$K$1&"'!"&"$C$2:$H$200"),3,FALSE),"") -> M | E104: =IFERROR(VLOOKUP(B104,INDIRECT("'"&$K$1&"'!"&"$C$2:$H$200"),4,FALSE),"") -> M40 | F104: =SUM(LARGE((H104,J104,L104,N104,P104,R104),{1,2,3,4})) -> 105.9199332 | H104: 0 | J104: 0 | K104: 01:37:41 | L104: 105.9199332 | N104: 0 | P104: 0 | R104: 0 | T104: 0 | U104: 1 | V104: 105.9199332
A105: 103 | B105: Gareth Bradbury | C105: =IFERROR(VLOOKUP(B105,INDIRECT("'"&$I$1&"'!"&"$C$2:$H$200"),2,FALSE),"") -> MonrossTrailblazers | D105: =IFERROR(VLOOKUP(B105,INDIRECT("'"&$I$1&"'!"&"$C$2:$H$200"),3,FALSE),"") -> M | E105: =IFERROR(VLOOKUP(B105,INDIRECT("'"&$I$1&"'!"&"$C$2:$H$200"),4,FALSE),"") -> MV40 | F105: =SUM(LARGE((H105,J105,L105,N105,P105,R105),{1,2,3,4})) -> 105.7647689 | H105: 0 | I105: 3.666666667 | J105: 105.7647689 | L105: 0 | N105: 0 | P105: 0 | R105: 0 | T105: 0 | U105: 1 | V105: 105.7647689
A106: 104 | B106: Andy Vaudin | C106: =IFERROR(VLOOKUP(B106,INDIRECT("'"&$K$1&"'!"&"$C$2:$H$200"),2,FALSE),"") -> 0 | D106: =IFERROR(VLOOKUP(B106,INDIRECT("'"&$K$1&"'!"&"$C$2:$H$200"),3,FALSE),"") -> M | E106: =IFERROR(VLOOKUP(B106,INDIRECT("'"&$K$1&"'!"&"$C$2:$H$200"),4,FALSE),"") -> M50 | F106: =SUM(LARGE((H106,J106,L106,N106,P106,R106),{1,2,3,4})) -> 105.679155 | H106: 0 | J106: 0 | K106: 01:37:56 | L106: 105.679155 | N106: 0 | P106: 0 | R106: 0 | T106: 0 | U106: 1 | V106: 105.679155
A107: 105 | B107: Luke Wedmore | C107: =IFERROR(VLOOKUP(B107,INDIRECT("'"&$I$1&"'!"&"$C$2:$H$200"),2,FALSE),"") -> 0 | D107: =IFERROR(VLOOKUP(B107,INDIRECT("'"&$I$1&"'!"&"$C$2:$H$200"),3,FALSE),"") -> M | E107: =IFERROR(VLOOKUP(B107,INDIRECT("'"&$I$1&"'!"&"$C$2:$H$200"),4,FALSE),"") -> SM | F107: =SUM(LARGE((H107,J107,L107,N107,P107,R107),{1,2,3,4})) -> 105.4970551 | H107: 0 | I107: 3.677083333 | J107: 105.4970551 | L107: 0 | N107: 0 | P107: 0 | R107: 0 | T107: 0 | U107: 1 | V107: 105.4970551
A108: 106 | B108: Robin Bacon | C108: =IFERROR(VLOOKUP(B108,INDIRECT("'"&$K$1&"'!"&"$C$2:$H$200"),2,FALSE),"") -> Mercia | D108: =IFERROR(VLOOKUP(B108,INDIRECT("'"&$K$1&"'!"&"$C$2:$H$200"),3,FALSE),"") -> M | E108: =IFERROR(VLOOKUP(B108,INDIRECT("'"&$K$1&"'!"&"$C$2:$H$200"),4,FALSE),"") -> M50 | F108: =SUM(LARGE((H108,J108,L108,N108,P108,R108),{1,2,3,4})) -> 105.3741693 | H108: 0 | J108: 0 | K108: 01:38:15 | L108: 105.3741693 | N108: 0 | P108: 0 | R108: 0 | T108: 0 | U108: 1 | V108: 105.3741693
A109: 107 | B109: Richard Haynes | C109: =IFERROR(VLOOKUP(B109,INDIRECT("'"&$I$1&"'!"&"$C$2:$H$200"),2,FALSE),"") -> N/A | D109: =IFERROR(VLOOKUP(B109,INDIRECT("'"&$I$1&"'!"&"$C$2:$H$200"),3,FALSE),"") -> M | E109: =IFERROR(VLOOKUP(B109,INDIRECT("'"&$I$1&"'!"&"$C$2:$H$200"),4,FALSE),"") -> MV50 | F109: =SUM(LARGE((H109,J109,L109,N109,P109,R109),{1,2,3,4})) -> 105.247189 | H109: 0 | I109: 3.686805556 | J109: 105.247189 | L109: 0 | N109: 0 | P109: 0 | R109: 0 | T109: 0 | U109: 1 | V109: 105.247189
A110: 108 | B110: Alexander Eynon | C110: =IFERROR(VLOOKUP(B110,INDIRECT("'"&$K$1&"'!"&"$C$2:$H$200"),2,FALSE),"") -> 0 | D110: =IFERROR(VLOOKUP(B110,INDIRECT("'"&$K$1&"'!"&"$C$2:$H$200"),3,FALSE),"") -> M | E110: =IFERROR(VLOOKUP(B110,INDIRECT("'"&$K$1&"'!"&"$C$2:$H$200"),4,FALSE),"") -> M50 | F110: =SUM(LARGE((H110,J110,L110,N110,P110,R110),{1,2,3,4})) -> 105.0370798 | H110: 0 | J110: 0 | K110: 01:38:36 | L110: 105.0370798 | N110: 0 | P110: 0 | R110: 0 | T110: 0 | U110: 1 | V110: 105.0370798
A111: 109 | B111: Orlando Timmerman | C111: =IFERROR(VLOOKUP(B111,INDIRECT("'"&$I$1&"'!"&"$C$2:$H$200"),2,FALSE),"") -> 0 | D111: =IFERROR(VLOOKUP(B111,INDIRECT("'"&$I$1&"'!"&"$C$2:$H$200"),3,FALSE),"") -> M | E111: =IFERROR(VLOOKUP(B111,INDIRECT("'"&$I$1&"'!"&"$C$2:$H$200"),4,FALSE),"") -> SM | F111: =SUM(LARGE((H111,J111,L111,N111,P111,R111),{1,2,3,4})) -> 104.693914 | H111: 0 | I111: 3.708333333 | J111: 104.693914 | L111: 0 | N111: 0 | P111: 0 | R111: 0 | T111: 0 | U111: 1 | V111: 104.693914
A112: 110 | B112: James Bellin | C112: =IFERROR(VLOOKUP(B112,INDIRECT("'"&$K$1&"'!"&"$C$2:$H$200"),2,FALSE),"") -> 0 | D112: =IFERROR(VLOOKUP(B112,INDIRECT("'"&$K$1&"'!"&"$C$2:$H$200"),3,FALSE),"") -> M | E112: =IFERROR(VLOOKUP(B112,INDIRECT("'"&$K$1&"'!"&"$C$2:$H$200"),4,FALSE),"") -> M | F112: =SUM(LARGE((H112,J112,L112,N112,P112,R112),{1,2,3,4})) -> 104.6036791 | H112: 0 | J112: 0 | K112: 01:39:03 | L112: 104.6036791 | N112: 0 | P112: 0 | R112: 0 | T112: 0 | U112: 1 | V112: 104.6036791
A113: 111 | B113: Andy Creber | C113: =IFERROR(VLOOKUP(B113,INDIRECT("'"&$I$1&"'!"&"$C$2:$H$200"),2,FALSE),"") -> Mynydd Du | D113: =IFERROR(VLOOKUP(B113,INDIRECT("'"&$I$1&"'!"&"$C$2:$H$200"),3,FALSE),"") -> M | E113: =IFERROR(VLOOKUP(B113,INDIRECT("'"&$I$1&"'!"&"$C$2:$H$200"),4,FALSE),"") -> MV60 | F113: =SUM(LARGE((H113,J113,L113,N113,P113,R113),{1,2,3,4})) -> 104.4440478 | H113: 0 | I113: 3.718055556 | J113: 104.4440478 | L113: 0 | N113: 0 | P113: 0 | R113: 0 | T113: 0 | U113: 1 | V113: 104.4440478
A114: 112 | B114: Ross Walker | C114: =IFERROR(VLOOKUP(B114,INDIRECT("'"&$I$1&"'!"&"$C$2:$H$200"),2,FALSE),"") -> Chepstow Harriers | D114: =IFERROR(VLOOKUP(B114,INDIRECT("'"&$I$1&"'!"&"$C$2:$H$200"),3,FALSE),"") -> M | E114: =IFERROR(VLOOKUP(B114,INDIRECT("'"&$I$1&"'!"&"$C$2:$H$200"),4,FALSE),"") -> MV40 | F114: =SUM(LARGE((H114,J114,L114,N114,P114,R114),{1,2,3,4})) -> 103.4802784 | H114: 0 | I114: 3.755555556 | J114: 103.4802784 | L114: 0 | N114: 0 | P114: 0 | R114: 0 | T114: 0 | U114: 1 | V114: 103.4802784
A115: 113 | B115: Andrew Brasington | C115: =IFERROR(VLOOKUP(B115,INDIRECT("'"&$K$1&"'!"&"$C$2:$H$200"),2,FALSE),"") -> Ebbw Vale | D115: =IFERROR(VLOOKUP(B115,INDIRECT("'"&$K$1&"'!"&"$C$2:$H$200"),3,FALSE),"") -> M | E115: =IFERROR(VLOOKUP(B115,INDIRECT("'"&$K$1&"'!"&"$C$2:$H$200"),4,FALSE),"") -> M50 | F115: =SUM(LARGE((H115,J115,L115,N115,P115,R115),{1,2,3,4})) -> 103.4318919 | H115: 0 | J115: 0 | K115: 01:40:16 | L115: 103.4318919 | N115: 0 | P115: 0 | R115: 0 | T115: 0 | U115: 1 | V115: 103.4318919
A116: 114 | B116: Glyn Fletcher | C116: =IFERROR(VLOOKUP(B116,INDIRECT("'"&$G$1&"'!"&"$C$2:$H$200"),2,FALSE),"") -> Maldwyn Harriers | D116: =IFERROR(VLOOKUP(B116,INDIRECT("'"&$G$1&"'!"&"$C$2:$H$200"),3,FALSE),"") -> M | E116: =IFERROR(VLOOKUP(B116,INDIRECT("'"&$G$1&"'!"&"$C$2:$H$200"),4,FALSE),"") -> V50 | F116: =SUM(LARGE((H116,J116,L116,N116,P116,R116),{1,2,3,4})) -> 103.3568363 | G116: 03:09:09 | H116: 103.3568363 | J116: 0 | L116: 0 | N116: 0 | P116: 0 | R116: 0 | T116: 0 | U116: 1 | V116: 103.3568363
A117: 115 | B117: Andrew Pritchard | C117: =IFERROR(VLOOKUP(B117,INDIRECT("'"&$K$1&"'!"&"$C$2:$H$200"),2,FALSE),"") -> Buckley Runners | D117: =IFERROR(VLOOKUP(B117,INDIRECT("'"&$K$1&"'!"&"$C$2:$H$200"),3,FALSE),"") -> M | E117: =IFERROR(VLOOKUP(B117,INDIRECT("'"&$K$1&"'!"&"$C$2:$H$200"),4,FALSE),"") -> M40 | F117: =SUM(LARGE((H117,J117,L117,N117,P117,R117),{1,2,3,4})) -> 103.1750618 | H117: 0 | J117: 0 | K117: 01:40:32 | L117: 103.1750618 | N117: 0 | P117: 0 | R117: 0 | T117: 0 | U117: 1 | V117: 103.1750618
A118: 116 | B118: Sanjai Sharma | C118: =IFERROR(VLOOKUP(B118,INDIRECT("'"&$K$1&"'!"&"$C$2:$H$200"),2,FALSE),"") -> Bounemouth | D118: =IFERROR(VLOOKUP(B118,INDIRECT("'"&$K$1&"'!"&"$C$2:$H$200"),3,FALSE),"") -> M | E118: =IFERROR(VLOOKUP(B118,INDIRECT("'"&$K$1&"'!"&"$C$2:$H$200"),4,FALSE),"") -> M50 | F118: =SUM(LARGE((H118,J118,L118,N118,P118,R118),{1,2,3,4})) -> 103.0787505 | H118: 0 | J118: 0 | K118: 01:40:38 | L118: 103.0787505 | N118: 0 | P118: 0 | R118: 0 | T118: 0 | U118: 1 | V118: 103.0787505
A119: 117 | B119: Sam Charrington | C119: =IFERROR(VLOOKUP(B119,INDIRECT("'"&$G$1&"'!"&"$C$2:$H$200"),2,FALSE),"") -> Mynydd Du | D119: =IFERROR(VLOOKUP(B119,INDIRECT("'"&$G$1&"'!"&"$C$2:$H$200"),3,FALSE),"") -> M | E119: =IFERROR(VLOOKUP(B119,INDIRECT("'"&$G$1&"'!"&"$C$2:$H$200"),4,FALSE),"") -> V40 | F119: =SUM(LARGE((H119,J119,L119,N119,P119,R119),{1,2,3,4})) -> 103.0417603 | G119: 03:09:46 | H119: 103.0417603 | J119: 0 | L119: 0 | N119: 0 | P119: 0 | R119: 0 | T119: 0 | U119: 1 | V119: 103.0417603
A120: 118 | B120: Phil Richards | C120: =IFERROR(VLOOKUP(B120,INDIRECT("'"&$K$1&"'!"&"$C$2:$H$200"),2,FALSE),"") -> Weston | D120: =IFERROR(VLOOKUP(B120,INDIRECT("'"&$K$1&"'!"&"$C$2:$H$200"),3,FALSE),"") -> F | E120: =IFERROR(VLOOKUP(B120,INDIRECT("'"&$K$1&"'!"&"$C$2:$H$200"),4,FALSE),"") -> F40 | F120: =SUM(LARGE((H120,J120,L120,N120,P120,R120),{1,2,3,4})) -> 102.8379723 | H120: 0 | J120: 0 | K120: 01:40:53 | L120: 102.8379723 | N120: 0 | P120: 0 | R120: 0 | T120: 0 | U120: 1 | V120: 102.8379723
A121: 119 | B121: alex banks | C121: =IFERROR(VLOOKUP(B121,INDIRECT("'"&$I$1&"'!"&"$C$2:$H$200"),2,FALSE),"") -> Bristol and West AC (est. 1882) | D121: =IFERROR(VLOOKUP(B121,INDIRECT("'"&$I$1&"'!"&"$C$2:$H$200"),3,FALSE),"") -> M | E121: =IFERROR(VLOOKUP(B121,INDIRECT("'"&$I$1&"'!"&"$C$2:$H$200"),4,FALSE),"") -> SM | F121: =SUM(LARGE((H121,J121,L121,N121,P121,R121),{1,2,3,4})) -> 102.5522042 | H121: 0 | I121: 3.791666667 | J121: 102.5522042 | L121: 0 | N121: 0 | P121: 0 | R121: 0 | T121: 0 | U121: 1 | V121: 102.5522042
A122: 120 | B122: Sue Howarth | C122: =IFERROR(VLOOKUP(B122,INDIRECT("'"&$G$1&"'!"&"$C$2:$H$200"),2,FALSE),"") -> Mercia | D122: =IFERROR(VLOOKUP(B122,INDIRECT("'"&$G$1&"'!"&"$C$2:$H$200"),3,FALSE),"") -> F | E122: =IFERROR(VLOOKUP(B122,INDIRECT("'"&$G$1&"'!"&"$C$2:$H$200"),4,FALSE),"") -> V50 | F122: =SUM(LARGE((H122,J122,L122,N122,P122,R122),{1,2,3,4})) -> 102.4627018 | G122: 03:10:54 | H122: 102.4627018 | J122: 0 | L122: 0 | N122: 0 | P122: 0 | R122: 0 | T122: 0 | U122: 1 | V122: 102.4627018
A123: 121 | B123: David Mackie | C123: =IFERROR(VLOOKUP(B123,INDIRECT("'"&$G$1&"'!"&"$C$2:$H$200"),2,FALSE),"") -> Corsham Running Club | D123: =IFERROR(VLOOKUP(B123,INDIRECT("'"&$G$1&"'!"&"$C$2:$H$200"),3,FALSE),"") -> M | E123: =IFERROR(VLOOKUP(B123,INDIRECT("'"&$G$1&"'!"&"$C$2:$H$200"),4,FALSE),"") -> V40 | F123: =SUM(LARGE((H123,J123,L123,N123,P123,R123),{1,2,3,4})) -> 102.3775462 | G123: 03:11:04 | H123: 102.3775462 | J123: 0 | L123: 0 | N123: 0 | P123: 0 | R123: 0 | T123: 0 | U123: 1 | V123: 102.3775462
A124: 122 | B124: Kevin Hagley | C124: =IFERROR(VLOOKUP(B124,INDIRECT("'"&$K$1&"'!"&"$C$2:$H$200"),2,FALSE),"") -> SWRR | D124: =IFERROR(VLOOKUP(B124,INDIRECT("'"&$K$1&"'!"&"$C$2:$H$200"),3,FALSE),"") -> M | E124: =IFERROR(VLOOKUP(B124,INDIRECT("'"&$K$1&"'!"&"$C$2:$H$200"),4,FALSE),"") -> M50 | F124: =SUM(LARGE((H124,J124,L124,N124,P124,R124),{1,2,3,4})) -> 102.1958971 | H124: 0 | J124: 0 | K124: 01:41:33 | L124: 102.1958971 | N124: 0 | P124: 0 | R124: 0 | T124: 0 | U124: 1 | V124: 102.1958971
A125: 123 | B125: David Wood | C125: =IFERROR(VLOOKUP(B125,INDIRECT("'"&$I$1&"'!"&"$C$2:$H$200"),2,FALSE),"") -> Dursley Running Club | D125: =IFERROR(VLOOKUP(B125,INDIRECT("'"&$I$1&"'!"&"$C$2:$H$200"),3,FALSE),"") -> M | E125: =IFERROR(VLOOKUP(B125,INDIRECT("'"&$I$1&"'!"&"$C$2:$H$200"),4,FALSE),"") -> MV50 | F125: =SUM(LARGE((H125,J125,L125,N125,P125,R125),{1,2,3,4})) -> 101.7847582 | H125: 0 | I125: 3.821527778 | J125: 101.7847582 | L125: 0 | N125: 0 | P125: 0 | R125: 0 | T125: 0 | U125: 1 | V125: 101.7847582
A126: 124 | B126: Peter Sowerby | C126: =IFERROR(VLOOKUP(B126,INDIRECT("'"&$K$1&"'!"&"$C$2:$H$200"),2,FALSE),"") -> Brecon | D126: =IFERROR(VLOOKUP(B126,INDIRECT("'"&$K$1&"'!"&"$C$2:$H$200"),3,FALSE),"") -> M | E126: =IFERROR(VLOOKUP(B126,INDIRECT("'"&$K$1&"'!"&"$C$2:$H$200"),4,FALSE),"") -> M50 | F126: =SUM(LARGE((H126,J126,L126,N126,P126,R126),{1,2,3,4})) -> 101.7143407 | H126: 0 | J126: 0 | K126: 01:42:03 | L126: 101.7143407 | N126: 0 | P126: 0 | R126: 0 | T126: 0 | U126: 1 | V126: 101.7143407
A127: 125 | B127: Tony Wooldridge | C127: =IFERROR(VLOOKUP(B127,INDIRECT("'"&$I$1&"'!"&"$C$2:$H$200"),2,FALSE),"") -> Dursley Running Club | D127: =IFERROR(VLOOKUP(B127,INDIRECT("'"&$I$1&"'!"&"$C$2:$H$200"),3,FALSE),"") -> M | E127: =IFERROR(VLOOKUP(B127,INDIRECT("'"&$I$1&"'!"&"$C$2:$H$200"),4,FALSE),"") -> MV65 | F127: =SUM(LARGE((H127,J127,L127,N127,P127,R127),{1,2,3,4})) -> 101.2671783 | H127: 0 | I127: 3.841666667 | J127: 101.2671783 | L127: 0 | N127: 0 | P127: 0 | R127: 0 | T127: 0 | U127: 1 | V127: 101.2671783
A128: 126 | B128: Graeme Hughes | C128: =IFERROR(VLOOKUP(B128,INDIRECT("'"&$G$1&"'!"&"$C$2:$H$200"),2,FALSE),"") -> N/A | D128: =IFERROR(VLOOKUP(B128,INDIRECT("'"&$G$1&"'!"&"$C$2:$H$200"),3,FALSE),"") -> M | E128: =IFERROR(VLOOKUP(B128,INDIRECT("'"&$G$1&"'!"&"$C$2:$H$200"),4,FALSE),"") -> V40 | F128: =SUM(LARGE((H128,J128,L128,N128,P128,R128),{1,2,3,4})) -> 100.5381838 | G128: 03:14:40 | H128: 100.5381838 | J128: 0 | L128: 0 | N128: 0 | P128: 0 | R128: 0 | T128: 0 | U128: 1 | V128: 100.5381838
A129: 127 | B129: Laura Lelievre | C129: =IFERROR(VLOOKUP(B129,INDIRECT("'"&$G$1&"'!"&"$C$2:$H$200"),2,FALSE),"") -> Monross Trailblazers | D129: =IFERROR(VLOOKUP(B129,INDIRECT("'"&$G$1&"'!"&"$C$2:$H$200"),3,FALSE),"") -> F | E129: =IFERROR(VLOOKUP(B129,INDIRECT("'"&$G$1&"'!"&"$C$2:$H$200"),4,FALSE),"") -> Open | F129: =SUM(LARGE((H129,J129,L129,N129,P129,R129),{1,2,3,4})) -> 100.5126371 | G129: 03:14:43 | H129: 100.5126371 | J129: 0 | L129: 0 | N129: 0 | P129: 0 | R129: 0 | T129: 0 | U129: 1 | V129: 100.5126371
A130: 128 | B130: Kenneth Cox | C130: =IFERROR(VLOOKUP(B130,INDIRECT("'"&$K$1&"'!"&"$C$2:$H$200"),2,FALSE),"") -> Southville | D130: =IFERROR(VLOOKUP(B130,INDIRECT("'"&$K$1&"'!"&"$C$2:$H$200"),3,FALSE),"") -> M | E130: =IFERROR(VLOOKUP(B130,INDIRECT("'"&$K$1&"'!"&"$C$2:$H$200"),4,FALSE),"") -> M | F130: =SUM(LARGE((H130,J130,L130,N130,P130,R130),{1,2,3,4})) -> 100.3820347 | H130: 0 | J130: 0 | K130: 01:43:26 | L130: 100.3820347 | N130: 0 | P130: 0 | R130: 0 | T130: 0 | U130: 1 | V130: 100.3820347
A131: 129 | B131: Nick Biggs | C131: =IFERROR(VLOOKUP(B131,INDIRECT("'"&$K$1&"'!"&"$C$2:$H$200"),2,FALSE),"") -> 0 | D131: =IFERROR(VLOOKUP(B131,INDIRECT("'"&$K$1&"'!"&"$C$2:$H$200"),3,FALSE),"") -> M | E131: =IFERROR(VLOOKUP(B131,INDIRECT("'"&$K$1&"'!"&"$C$2:$H$200"),4,FALSE),"") -> M40 | F131: =SUM(LARGE((H131,J131,L131,N131,P131,R131),{1,2,3,4})) -> 100.0931009 | G131: =IFERROR(VLOOKUP(B131,INDIRECT("'"&$G$1&"'!"&"$C$2:$H$200"),5,FALSE),"") ->  | H131: =IFERROR(VLOOKUP(B131,INDIRECT("'"&$G$1&"'!"&"$C$2:$H$200"),6,FALSE),0) -> 0 | I131: =IFERROR(VLOOKUP(B131,INDIRECT("'"&$I$1&"'!"&"$C$2:$G$200"),5,FALSE),"") ->  | J131: =IFERROR(VLOOKUP(B131,INDIRECT("'"&$I$1&"'!"&"$C$2:$H$200"),6,FALSE),0) -> 0 | K131: =IFERROR(VLOOKUP(B131,INDIRECT("'"&$K$1&"'!"&"$C$2:$H$200"),5,FALSE),"") -> 01:43:44 | L131: =IFERROR(VLOOKUP(B131,INDIRECT("'"&$K$1&"'!"&"$C$2:$H$200"),6,FALSE),0) -> 100.0931009 | M131: =IFERROR(VLOOKUP(B131,INDIRECT("'"&$M$1&"'!"&"$C$2:$h$200"),5,FALSE),"") ->  | N131: =IFERROR(VLOOKUP(B131,INDIRECT("'"&$M$1&"'!"&"$C$2:$h$200"),6,FALSE),0) -> 0 | O131: =IFERROR(VLOOKUP(B131,INDIRECT("'"&$O$1&"'!"&"$C$2:$h$200"),5,FALSE),"") ->  | P131: =IFERROR(VLOOKUP(B131,INDIRECT("'"&$O$1&"'!"&"$C$2:$h$200"),6,FALSE),0) -> 0 | Q131: =IFERROR(VLOOKUP(B131,INDIRECT("'"&$Q$1&"'!"&"$C$2:$h$200"),5,FALSE),"") ->  | R131: =IFERROR(VLOOKUP(B131,INDIRECT("'"&$Q$1&"'!"&"$C$2:$h$200"),6,FALSE),0) -> 0 | S131: =IFERROR(VLOOKUP(D131,INDIRECT("'"&$Q$1&"'!"&"$C$2:$h$200"),5,FALSE),"") ->  | T131: =IFERROR(VLOOKUP(D131,INDIRECT("'"&$S$1&"'!"&"$C$2:$h$200"),6,FALSE),0) -> 0 | U131: =7-COUNTIF(G131:T131,"") -> 1 | V131: =F131/IF(U131>4,4,U131) -> 100.0931009
A132: =ROW(A130) -> 130 | B132: Rhys Pippard | C132: =IFERROR(VLOOKUP(B132,INDIRECT("'"&$G$1&"'!"&"$C$2:$H$200"),2,FALSE),"") -> Mynydd Du | D132: =IFERROR(VLOOKUP(B132,INDIRECT("'"&$G$1&"'!"&"$C$2:$H$200"),3,FALSE),"") -> M | E132: =IFERROR(VLOOKUP(B132,INDIRECT("'"&$G$1&"'!"&"$C$2:$H$200"),4,FALSE),"") -> Open | F132: =SUM(LARGE((H132,J132,L132,N132,P132,R132),{1,2,3,4})) -> 99.49076913 | G132: 03:16:43 | H132: 99.49076913 | J132: 0 | L132: 0 | N132: 0 | P132: 0 | R132: 0 | T132: 0 | U132: 1 | V132: 99.49076913
A133: 131 | B133: Gareth Bryer | C133: =IFERROR(VLOOKUP(B133,INDIRECT("'"&$K$1&"'!"&"$C$2:$H$200"),2,FALSE),"") -> Mynydd Du | D133: =IFERROR(VLOOKUP(B133,INDIRECT("'"&$K$1&"'!"&"$C$2:$H$200"),3,FALSE),"") -> M | E133: =IFERROR(VLOOKUP(B133,INDIRECT("'"&$K$1&"'!"&"$C$2:$H$200"),4,FALSE),"") -> M40 | F133: =SUM(LARGE((H133,J133,L133,N133,P133,R133),{1,2,3,4})) -> 99.12998812 | H133: 0 | J133: 0 | K133: 01:44:44 | L133: 99.12998812 | N133: 0 | P133: 0 | R133: 0 | T133: 0 | U133: 1 | V133: 99.12998812
A134: 132 | B134: Andrew Blackmore | C134: =IFERROR(VLOOKUP(B134,INDIRECT("'"&$I$1&"'!"&"$C$2:$H$200"),2,FALSE),"") -> Mynyddwyr de Cymru | D134: =IFERROR(VLOOKUP(B134,INDIRECT("'"&$I$1&"'!"&"$C$2:$H$200"),3,FALSE),"") -> M | E134: =IFERROR(VLOOKUP(B134,INDIRECT("'"&$I$1&"'!"&"$C$2:$H$200"),4,FALSE),"") -> MV50 | F134: =SUM(LARGE((H134,J134,L134,N134,P134,R134),{1,2,3,4})) -> 98.80421203 | H134: 0 | I134: 3.9375 | J134: 98.80421203 | L134: 0 | N134: 0 | P134: 0 | R134: 0 | T134: 0 | U134: 1 | V134: 98.80421203
A135: 133 | B135: James Gale | C135: =IFERROR(VLOOKUP(B135,INDIRECT("'"&$K$1&"'!"&"$C$2:$H$200"),2,FALSE),"") -> Southville | D135: =IFERROR(VLOOKUP(B135,INDIRECT("'"&$K$1&"'!"&"$C$2:$H$200"),3,FALSE),"") -> M | E135: =IFERROR(VLOOKUP(B135,INDIRECT("'"&$K$1&"'!"&"$C$2:$H$200"),4,FALSE),"") -> M | F135: =SUM(LARGE((H135,J135,L135,N135,P135,R135),{1,2,3,4})) -> 98.74474301 | H135: 0 | J135: 0 | K135: 01:45:08 | L135: 98.74474301 | N135: 0 | P135: 0 | R135: 0 | T135: 0 | U135: 1 | V135: 98.74474301
A136: 134 | B136: Jerome Mearcister | C136: =IFERROR(VLOOKUP(B136,INDIRECT("'"&$G$1&"'!"&"$C$2:$H$200"),2,FALSE),"") -> FRA | D136: =IFERROR(VLOOKUP(B136,INDIRECT("'"&$G$1&"'!"&"$C$2:$H$200"),3,FALSE),"") -> M | E136: =IFERROR(VLOOKUP(B136,INDIRECT("'"&$G$1&"'!"&"$C$2:$H$200"),4,FALSE),"") -> V40 | F136: =SUM(LARGE((H136,J136,L136,N136,P136,R136),{1,2,3,4})) -> 98.70733701 | G136: 03:18:15 | H136: 98.70733701 | J136: 0 | L136: 0 | N136: 0 | P136: 0 | R136: 0 | T136: 0 | U136: 1 | V136: 98.70733701
A137: 135 | B137: Sasha Habgood | C137: =IFERROR(VLOOKUP(B137,INDIRECT("'"&$K$1&"'!"&"$C$2:$H$200"),2,FALSE),"") -> Mynydd Du | D137: =IFERROR(VLOOKUP(B137,INDIRECT("'"&$K$1&"'!"&"$C$2:$H$200"),3,FALSE),"") -> F | E137: =IFERROR(VLOOKUP(B137,INDIRECT("'"&$K$1&"'!"&"$C$2:$H$200"),4,FALSE),"") -> F40 | F137: =SUM(LARGE((H137,J137,L137,N137,P137,R137),{1,2,3,4})) -> 98.08661594 | H137: 0 | J137: 0 | K137: 01:45:49 | L137: 98.08661594 | N137: 0 | P137: 0 | R137: 0 | T137: 0 | U137: 1 | V137: 98.08661594
A138: 136 | B138: Vanessa Lawson | C138: =IFERROR(VLOOKUP(B138,INDIRECT("'"&$I$1&"'!"&"$C$2:$H$200"),2,FALSE),"") -> Chepstow Harriers | D138: =IFERROR(VLOOKUP(B138,INDIRECT("'"&$I$1&"'!"&"$C$2:$H$200"),3,FALSE),"") -> F | E138: =IFERROR(VLOOKUP(B138,INDIRECT("'"&$I$1&"'!"&"$C$2:$H$200"),4,FALSE),"") -> FV40 | F138: =SUM(LARGE((H138,J138,L138,N138,P138,R138),{1,2,3,4})) -> 97.94752811 | H138: 0 | I138: 3.970833333 | J138: 97.94752811 | L138: 0 | N138: 0 | P138: 0 | R138: 0 | T138: 0 | U138: 1 | V138: 97.94752811
A139: 137 | B139: Tom Morfey | C139: =IFERROR(VLOOKUP(B139,INDIRECT("'"&$K$1&"'!"&"$C$2:$H$200"),2,FALSE),"") -> Cardiff Harlequins | D139: =IFERROR(VLOOKUP(B139,INDIRECT("'"&$K$1&"'!"&"$C$2:$H$200"),3,FALSE),"") -> M | E139: =IFERROR(VLOOKUP(B139,INDIRECT("'"&$K$1&"'!"&"$C$2:$H$200"),4,FALSE),"") -> U23 | F139: =SUM(LARGE((H139,J139,L139,N139,P139,R139),{1,2,3,4})) -> 97.84583775 | H139: 0 | J139: 0 | K139: 01:46:04 | L139: 97.84583775 | N139: 0 | P139: 0 | R139: 0 | T139: 0 | U139: 1 | V139: 97.84583775
A140: 138 | B140: Emily Cox | C140: =IFERROR(VLOOKUP(B140,INDIRECT("'"&$K$1&"'!"&"$C$2:$H$200"),2,FALSE),"") -> Southville | D140: =IFERROR(VLOOKUP(B140,INDIRECT("'"&$K$1&"'!"&"$C$2:$H$200"),3,FALSE),"") -> F | E140: =IFERROR(VLOOKUP(B140,INDIRECT("'"&$K$1&"'!"&"$C$2:$H$200"),4,FALSE),"") -> F | F140: =SUM(LARGE((H140,J140,L140,N140,P140,R140),{1,2,3,4})) -> 97.65321519 | H140: 0 | J140: 0 | K140: 01:46:16 | L140: 97.65321519 | N140: 0 | P140: 0 | R140: 0 | T140: 0 | U140: 1 | V140: 97.65321519
A141: 139 | B141: Dan Gregory | C141: =IFERROR(VLOOKUP(B141,INDIRECT("'"&$G$1&"'!"&"$C$2:$H$200"),2,FALSE),"") -> N/A | D141: =IFERROR(VLOOKUP(B141,INDIRECT("'"&$G$1&"'!"&"$C$2:$H$200"),3,FALSE),"") -> M | E141: =IFERROR(VLOOKUP(B141,INDIRECT("'"&$G$1&"'!"&"$C$2:$H$200"),4,FALSE),"") -> V40 | F141: =SUM(LARGE((H141,J141,L141,N141,P141,R141),{1,2,3,4})) -> 97.64289121 | G141: 03:20:20 | H141: 97.64289121 | J141: 0 | L141: 0 | N141: 0 | P141: 0 | R141: 0 | T141: 0 | U141: 1 | V141: 97.64289121
A142: 140 | B142: Tom Dudding | C142: N/A | D142: M | E142: Open | F142: =SUM(LARGE((H142,J142,L142,N142,P142,R142),{1,2,3,4})) -> 97.57476667 | G142: 03:20:28 | H142: 97.57476667 | J142: 0 | L142: 0 | N142: 0 | P142: 0 | R142: 0 | T142: 0 | U142: 1 | V142: 97.57476667
A143: 141 | B143: Tom Walker | C143: N/A | D143: M | E143: Open | F143: =SUM(LARGE((H143,J143,L143,N143,P143,R143),{1,2,3,4})) -> 97.54921997 | G143: 03:20:31 | H143: 97.54921997 | J143: 0 | L143: 0 | N143: 0 | P143: 0 | R143: 0 | T143: 0 | U143: 1 | V143: 97.54921997
A144: 142 | B144: James Fletcher | C144: Monross Trailblazers | D144: M | E144: V50 | F144: =SUM(LARGE((H144,J144,L144,N144,P144,R144),{1,2,3,4})) -> 97.47257988 | G144: 03:20:40 | H144: 97.47257988 | J144: 0 | L144: 0 | N144: 0 | P144: 0 | R144: 0 | T144: 0 | U144: 1 | V144: 97.47257988
A145: 143 | B145: Andrew Clemant | C145: TROT | D145: M | E145: V50 | F145: =SUM(LARGE((H145,J145,L145,N145,P145,R145),{1,2,3,4})) -> 97.18305062 | G145: 03:21:14 | H145: 97.18305062 | J145: 0 | L145: 0 | N145: 0 | P145: 0 | R145: 0 | T145: 0 | U145: 1 | V145: 97.18305062
A146: 144 | B146: Stephen Priesonall | C146: Running Somewhere Else | D146: M | E146: V50 | F146: =SUM(LARGE((H146,J146,L146,N146,P146,R146),{1,2,3,4})) -> 96.45922747 | G146: 03:22:39 | H146: 96.45922747 | J146: 0 | L146: 0 | N146: 0 | P146: 0 | R146: 0 | T146: 0 | U146: 1 | V146: 96.45922747
A147: 145 | B147: Duncan Loughrey | C147: =IFERROR(VLOOKUP(B147,INDIRECT("'"&$I$1&"'!"&"$C$2:$H$200"),2,FALSE),"") -> 0 | D147: =IFERROR(VLOOKUP(B147,INDIRECT("'"&$I$1&"'!"&"$C$2:$H$200"),3,FALSE),"") -> M | E147: =IFERROR(VLOOKUP(B147,INDIRECT("'"&$I$1&"'!"&"$C$2:$H$200"),4,FALSE),"") -> MV50 | F147: =SUM(LARGE((H147,J147,L147,N147,P147,R147),{1,2,3,4})) -> 96.23416027 | H147: 0 | I147: 4.0375 | J147: 96.23416027 | L147: 0 | N147: 0 | P147: 0 | R147: 0 | T147: 0 | U147: 1 | V147: 96.23416027
A148: 146 | B148: James Woodier | C148: =IFERROR(VLOOKUP(B148,INDIRECT("'"&$K$1&"'!"&"$C$2:$H$200"),2,FALSE),"") -> Mynydd Du | D148: =IFERROR(VLOOKUP(B148,INDIRECT("'"&$K$1&"'!"&"$C$2:$H$200"),3,FALSE),"") -> M | E148: =IFERROR(VLOOKUP(B148,INDIRECT("'"&$K$1&"'!"&"$C$2:$H$200"),4,FALSE),"") -> M | F148: =SUM(LARGE((H148,J148,L148,N148,P148,R148),{1,2,3,4})) -> 96.2245979 | H148: 0 | J148: 0 | K148: 01:47:45 | L148: 96.2245979 | N148: 0 | P148: 0 | R148: 0 | T148: 0 | U148: 1 | V148: 96.2245979
A149: 147 | B149: Martin Carter | C149: =IFERROR(VLOOKUP(B149,INDIRECT("'"&$G$1&"'!"&"$C$2:$H$200"),2,FALSE),"") -> Hay Hotfooters | D149: =IFERROR(VLOOKUP(B149,INDIRECT("'"&$G$1&"'!"&"$C$2:$H$200"),3,FALSE),"") -> M | E149: =IFERROR(VLOOKUP(B149,INDIRECT("'"&$G$1&"'!"&"$C$2:$H$200"),4,FALSE),"") -> V50 | F149: =SUM(LARGE((H149,J149,L149,N149,P149,R149),{1,2,3,4})) -> 96.01641801 | G149: 03:23:31 | H149: 96.01641801 | J149: 0 | L149: 0 | N149: 0 | P149: 0 | R149: 0 | T149: 0 | U149: 1 | V149: 96.01641801
A150: 148 | B150: Natahniel Swain | C150: =IFERROR(VLOOKUP(B150,INDIRECT("'"&$G$1&"'!"&"$C$2:$H$200"),2,FALSE),"") -> MDC | D150: =IFERROR(VLOOKUP(B150,INDIRECT("'"&$G$1&"'!"&"$C$2:$H$200"),3,FALSE),"") -> M | E150: =IFERROR(VLOOKUP(B150,INDIRECT("'"&$G$1&"'!"&"$C$2:$H$200"),4,FALSE),"") -> Open | F150: =SUM(LARGE((H150,J150,L150,N150,P150,R150),{1,2,3,4})) -> 95.99087131 | G150: 03:23:34 | H150: 95.99087131 | J150: 0 | L150: 0 | N150: 0 | P150: 0 | R150: 0 | T150: 0 | U150: 1 | V150: 95.99087131
A151: 149 | B151: Jono Simpson | C151: =IFERROR(VLOOKUP(B151,INDIRECT("'"&$G$1&"'!"&"$C$2:$H$200"),2,FALSE),"") -> N/A | D151: =IFERROR(VLOOKUP(B151,INDIRECT("'"&$G$1&"'!"&"$C$2:$H$200"),3,FALSE),"") -> M | E151: =IFERROR(VLOOKUP(B151,INDIRECT("'"&$G$1&"'!"&"$C$2:$H$200"),4,FALSE),"") -> V50 | F151: =SUM(LARGE((H151,J151,L151,N151,P151,R151),{1,2,3,4})) -> 95.84610668 | G151: 03:23:51 | H151: 95.84610668 | J151: 0 | L151: 0 | N151: 0 | P151: 0 | R151: 0 | T151: 0 | U151: 1 | V151: 95.84610668
A152: 150 | B152: Martin Chammings | C152: =IFERROR(VLOOKUP(B152,INDIRECT("'"&$I$1&"'!"&"$C$2:$H$200"),2,FALSE),"") -> Parc Bryn Bach | D152: =IFERROR(VLOOKUP(B152,INDIRECT("'"&$I$1&"'!"&"$C$2:$H$200"),3,FALSE),"") -> M | E152: =IFERROR(VLOOKUP(B152,INDIRECT("'"&$I$1&"'!"&"$C$2:$H$200"),4,FALSE),"") -> SM | F152: =SUM(LARGE((H152,J152,L152,N152,P152,R152),{1,2,3,4})) -> 95.78797073 | H152: 0 | I152: 4.054861111 | J152: 95.78797073 | L152: 0 | N152: 0 | P152: 0 | R152: 0 | T152: 0 | U152: 1 | V152: 95.78797073
A153: 151 | B153: Darren Owen | C153: =IFERROR(VLOOKUP(B153,INDIRECT("'"&$G$1&"'!"&"$C$2:$H$200"),2,FALSE),"") -> IND | D153: =IFERROR(VLOOKUP(B153,INDIRECT("'"&$G$1&"'!"&"$C$2:$H$200"),3,FALSE),"") -> M | E153: =IFERROR(VLOOKUP(B153,INDIRECT("'"&$G$1&"'!"&"$C$2:$H$200"),4,FALSE),"") -> V40 | F153: =SUM(LARGE((H153,J153,L153,N153,P153,R153),{1,2,3,4})) -> 95.34368826 | G153: 03:24:50 | H153: 95.34368826 | J153: 0 | L153: 0 | N153: 0 | P153: 0 | R153: 0 | T153: 0 | U153: 1 | V153: 95.34368826
A154: 152 | B154: Chris Munton | C154: Forest of Dean AC | D154: M | E154: Open | F154: =SUM(LARGE((H154,J154,L154,N154,P154,R154),{1,2,3,4})) -> 94.91790994 | G154: 03:25:40 | H154: 94.91790994 | J154: 0 | L154: 0 | N154: 0 | P154: 0 | R154: 0 | T154: 0 | U154: 1 | V154: 94.91790994
A155: 153 | B155: Tim Adam Oliver | C155: Monross Trailblazers | D155: M | E155: V40 | F155: =SUM(LARGE((H155,J155,L155,N155,P155,R155),{1,2,3,4})) -> 94.90087881 | G155: 03:25:42 | H155: 94.90087881 | J155: 0 | L155: 0 | N155: 0 | P155: 0 | R155: 0 | T155: 0 | U155: 1 | V155: 94.90087881
A156: 154 | B156: Rhys Thomas | C156: N/A | D156: M | E156: V40 | F156: =SUM(LARGE((H156,J156,L156,N156,P156,R156),{1,2,3,4})) -> 94.88384767 | G156: 03:25:44 | H156: 94.88384767 | J156: 0 | L156: 0 | N156: 0 | P156: 0 | R156: 0 | T156: 0 | U156: 1 | V156: 94.88384767
A157: 155 | B157: Meinir Jones | C157: Mynydd Du | D157: F | E157: V40 | F157: =SUM(LARGE((H157,J157,L157,N157,P157,R157),{1,2,3,4})) -> 94.84978541 | G157: 03:25:48 | H157: 94.84978541 | J157: 0 | L157: 0 | N157: 0 | P157: 0 | R157: 0 | T157: 0 | U157: 1 | V157: 94.84978541
A158: 156 | B158: Kim Braznell | C158: Mercia | D158: F | E158: V60 | F158: =SUM(LARGE((H158,J158,L158,N158,P158,R158),{1,2,3,4})) -> 94.57728728 | G158: 03:26:20 | H158: 94.57728728 | J158: 0 | L158: 0 | N158: 0 | P158: 0 | R158: 0 | T158: 0 | U158: 1 | V158: 94.57728728
A159: 157 | B159: Rhys Ashbridge | C159: N/A | D159: M | E159: Open | F159: =SUM(LARGE((H159,J159,L159,N159,P159,R159),{1,2,3,4})) -> 94.49213162 | G159: 03:26:30 | H159: 94.49213162 | J159: 0 | L159: 0 | N159: 0 | P159: 0 | R159: 0 | T159: 0 | U159: 1 | V159: 94.49213162
A160: 158 | B160: Hannah Hopkinson | C160: =IFERROR(VLOOKUP(B160,INDIRECT("'"&$K$1&"'!"&"$C$2:$H$200"),2,FALSE),"") -> 0 | D160: =IFERROR(VLOOKUP(B160,INDIRECT("'"&$K$1&"'!"&"$C$2:$H$200"),3,FALSE),"") -> F | E160: =IFERROR(VLOOKUP(B160,INDIRECT("'"&$K$1&"'!"&"$C$2:$H$200"),4,FALSE),"") -> F | F160: =SUM(LARGE((H160,J160,L160,N160,P160,R160),{1,2,3,4})) -> 93.80076407 | H160: 0 | J160: 0 | K160: 01:50:16 | L160: 93.80076407 | N160: 0 | P160: 0 | R160: 0 | T160: 0 | U160: 1 | V160: 93.80076407
A161: 159 | B161: Matthew Marshall | C161: =IFERROR(VLOOKUP(B161,INDIRECT("'"&$K$1&"'!"&"$C$2:$H$200"),2,FALSE),"") -> Southville | D161: =IFERROR(VLOOKUP(B161,INDIRECT("'"&$K$1&"'!"&"$C$2:$H$200"),3,FALSE),"") -> M | E161: =IFERROR(VLOOKUP(B161,INDIRECT("'"&$K$1&"'!"&"$C$2:$H$200"),4,FALSE),"") -> M | F161: =SUM(LARGE((H161,J161,L161,N161,P161,R161),{1,2,3,4})) -> 93.80076407 | H161: 0 | J161: 0 | K161: 01:50:16 | L161: 93.80076407 | N161: 0 | P161: 0 | R161: 0 | T161: 0 | U161: 1 | V161: 93.80076407
A162: 160 | B162: Dave Farrow | C162: =IFERROR(VLOOKUP(B162,INDIRECT("'"&$I$1&"'!"&"$C$2:$H$200"),2,FALSE),"") -> Mercia Fell Runners | D162: =IFERROR(VLOOKUP(B162,INDIRECT("'"&$I$1&"'!"&"$C$2:$H$200"),3,FALSE),"") -> M | E162: =IFERROR(VLOOKUP(B162,INDIRECT("'"&$I$1&"'!"&"$C$2:$H$200"),4,FALSE),"") -> MV50 | F162: =SUM(LARGE((H162,J162,L162,N162,P162,R162),{1,2,3,4})) -> 93.68195609 | H162: 0 | I162: 4.136805556 | J162: 93.68195609 | L162: 0 | N162: 0 | P162: 0 | R162: 0 | T162: 0 | U162: 1 | V162: 93.68195609
A163: 161 | B163: Ben Watkins | C163: =IFERROR(VLOOKUP(B163,INDIRECT("'"&$I$1&"'!"&"$C$2:$H$200"),2,FALSE),"") -> Mynydd Du | D163: =IFERROR(VLOOKUP(B163,INDIRECT("'"&$I$1&"'!"&"$C$2:$H$200"),3,FALSE),"") -> M | E163: =IFERROR(VLOOKUP(B163,INDIRECT("'"&$I$1&"'!"&"$C$2:$H$200"),4,FALSE),"") -> SM | F163: =SUM(LARGE((H163,J163,L163,N163,P163,R163),{1,2,3,4})) -> 93.07513832 | H163: 0 | I163: 4.160416667 | J163: 93.07513832 | L163: 0 | N163: 0 | P163: 0 | R163: 0 | T163: 0 | U163: 1 | V163: 93.07513832
A164: 162 | B164: Richard Stanley | C164: =IFERROR(VLOOKUP(B164,INDIRECT("'"&$G$1&"'!"&"$C$2:$H$200"),2,FALSE),"") -> Ampthill and Flitwick Flyers | D164: =IFERROR(VLOOKUP(B164,INDIRECT("'"&$G$1&"'!"&"$C$2:$H$200"),3,FALSE),"") -> M | E164: =IFERROR(VLOOKUP(B164,INDIRECT("'"&$G$1&"'!"&"$C$2:$H$200"),4,FALSE),"") -> V50 | F164: =SUM(LARGE((H164,J164,L164,N164,P164,R164),{1,2,3,4})) -> 92.99339192 | G164: 03:29:26 | H164: 92.99339192 | J164: 0 | L164: 0 | N164: 0 | P164: 0 | R164: 0 | T164: 0 | U164: 1 | V164: 92.99339192
A165: 163 | B165: James Griffiths | C165: =IFERROR(VLOOKUP(B165,INDIRECT("'"&$I$1&"'!"&"$C$2:$H$200"),2,FALSE),"") -> Newent Runners | D165: =IFERROR(VLOOKUP(B165,INDIRECT("'"&$I$1&"'!"&"$C$2:$H$200"),3,FALSE),"") -> M | E165: =IFERROR(VLOOKUP(B165,INDIRECT("'"&$I$1&"'!"&"$C$2:$H$200"),4,FALSE),"") -> MV50 | F165: =SUM(LARGE((H165,J165,L165,N165,P165,R165),{1,2,3,4})) -> 92.87881492 | H165: 0 | I165: 4.168055556 | J165: 92.87881492 | L165: 0 | N165: 0 | P165: 0 | R165: 0 | T165: 0 | U165: 1 | V165: 92.87881492
A166: 164 | B166: Andy Blackmore | C166: =IFERROR(VLOOKUP(B166,INDIRECT("'"&$K$1&"'!"&"$C$2:$H$200"),2,FALSE),"") -> MDC | D166: =IFERROR(VLOOKUP(B166,INDIRECT("'"&$K$1&"'!"&"$C$2:$H$200"),3,FALSE),"") -> M | E166: =IFERROR(VLOOKUP(B166,INDIRECT("'"&$K$1&"'!"&"$C$2:$H$200"),4,FALSE),"") -> M50 | F166: =SUM(LARGE((H166,J166,L166,N166,P166,R166),{1,2,3,4})) -> 92.53266558 | G166: rtd | H166: 0 | J166: 0 | K166: 01:51:35 | L166: 92.53266558 | N166: 0 | P166: 0 | R166: 0 | T166: 0 | U166: 2 | V166: 46.26633279
A167: 165 | B167: Eluned Malone | C167: =IFERROR(VLOOKUP(B167,INDIRECT("'"&$G$1&"'!"&"$C$2:$H$200"),2,FALSE),"") -> N/A | D167: =IFERROR(VLOOKUP(B167,INDIRECT("'"&$G$1&"'!"&"$C$2:$H$200"),3,FALSE),"") -> F | E167: =IFERROR(VLOOKUP(B167,INDIRECT("'"&$G$1&"'!"&"$C$2:$H$200"),4,FALSE),"") -> Open | F167: =SUM(LARGE((H167,J167,L167,N167,P167,R167),{1,2,3,4})) -> 92.03113291 | G167: 03:31:19 | H167: 92.03113291 | J167: 0 | L167: 0 | N167: 0 | P167: 0 | R167: 0 | T167: 0 | U167: 1 | V167: 92.03113291
A168: 166 | B168: Emma Collins | C168: =IFERROR(VLOOKUP(B168,INDIRECT("'"&$G$1&"'!"&"$C$2:$H$200"),2,FALSE),"") -> Denbigh Harriers | D168: =IFERROR(VLOOKUP(B168,INDIRECT("'"&$G$1&"'!"&"$C$2:$H$200"),3,FALSE),"") -> F | E168: =IFERROR(VLOOKUP(B168,INDIRECT("'"&$G$1&"'!"&"$C$2:$H$200"),4,FALSE),"") -> V50 | F168: =SUM(LARGE((H168,J168,L168,N168,P168,R168),{1,2,3,4})) -> 91.88636828 | G168: 03:31:36 | H168: 91.88636828 | J168: 0 | L168: 0 | N168: 0 | P168: 0 | R168: 0 | T168: 0 | U168: 1 | V168: 91.88636828
A169: 167 | B169: Andy Pollintine | C169: =IFERROR(VLOOKUP(B169,INDIRECT("'"&$G$1&"'!"&"$C$2:$H$200"),2,FALSE),"") -> IND | D169: =IFERROR(VLOOKUP(B169,INDIRECT("'"&$G$1&"'!"&"$C$2:$H$200"),3,FALSE),"") -> M | E169: =IFERROR(VLOOKUP(B169,INDIRECT("'"&$G$1&"'!"&"$C$2:$H$200"),4,FALSE),"") -> V50 | F169: =SUM(LARGE((H169,J169,L169,N169,P169,R169),{1,2,3,4})) -> 91.68199469 | G169: 03:32:00 | H169: 91.68199469 | J169: 0 | L169: 0 | N169: 0 | P169: 0 | R169: 0 | T169: 0 | U169: 1 | V169: 91.68199469
A170: 168 | B170: Celia Mills | C170: =IFERROR(VLOOKUP(B170,INDIRECT("'"&$I$1&"'!"&"$C$2:$H$200"),2,FALSE),"") -> 0 | D170: =IFERROR(VLOOKUP(B170,INDIRECT("'"&$I$1&"'!"&"$C$2:$H$200"),3,FALSE),"") -> F | E170: =IFERROR(VLOOKUP(B170,INDIRECT("'"&$I$1&"'!"&"$C$2:$H$200"),4,FALSE),"") -> MV60 | F170: =SUM(LARGE((H170,J170,L170,N170,P170,R170),{1,2,3,4})) -> 91.66517937 | H170: 0 | I170: 4.215277778 | J170: 91.66517937 | L170: 0 | N170: 0 | P170: 0 | R170: 0 | T170: 0 | U170: 1 | V170: 91.66517937
A171: 169 | B171: Hugh Morgan Jones | C171: =IFERROR(VLOOKUP(B171,INDIRECT("'"&$I$1&"'!"&"$C$2:$H$200"),2,FALSE),"") -> WFRA | D171: =IFERROR(VLOOKUP(B171,INDIRECT("'"&$I$1&"'!"&"$C$2:$H$200"),3,FALSE),"") -> M | E171: =IFERROR(VLOOKUP(B171,INDIRECT("'"&$I$1&"'!"&"$C$2:$H$200"),4,FALSE),"") -> MV50 | F171: =SUM(LARGE((H171,J171,L171,N171,P171,R171),{1,2,3,4})) -> 91.64733179 | H171: 0 | I171: 4.215972222 | J171: 91.64733179 | L171: 0 | N171: 0 | P171: 0 | R171: 0 | T171: 0 | U171: 1 | V171: 91.64733179
A172: 170 | B172: Tom Mollekin | C172: =IFERROR(VLOOKUP(B172,INDIRECT("'"&$G$1&"'!"&"$C$2:$H$200"),2,FALSE),"") -> Mynydd Du | D172: =IFERROR(VLOOKUP(B172,INDIRECT("'"&$G$1&"'!"&"$C$2:$H$200"),3,FALSE),"") -> M | E172: =IFERROR(VLOOKUP(B172,INDIRECT("'"&$G$1&"'!"&"$C$2:$H$200"),4,FALSE),"") -> Open | F172: =SUM(LARGE((H172,J172,L172,N172,P172,R172),{1,2,3,4})) -> 91.52019892 | G172: 03:32:19 | H172: 91.52019892 | J172: 0 | L172: 0 | N172: 0 | P172: 0 | R172: 0 | T172: 0 | U172: 1 | V172: 91.52019892
A173: 171 | B173: Emily Ford | C173: =IFERROR(VLOOKUP(B173,INDIRECT("'"&$I$1&"'!"&"$C$2:$H$200"),2,FALSE),"") -> MDC | D173: =IFERROR(VLOOKUP(B173,INDIRECT("'"&$I$1&"'!"&"$C$2:$H$200"),3,FALSE),"") -> F | E173: =IFERROR(VLOOKUP(B173,INDIRECT("'"&$I$1&"'!"&"$C$2:$H$200"),4,FALSE),"") -> SF | F173: =SUM(LARGE((H173,J173,L173,N173,P173,R173),{1,2,3,4})) -> 91.46885597 | H173: 0 | I173: 4.222916667 | J173: 91.46885597 | L173: 0 | N173: 0 | P173: 0 | R173: 0 | T173: 0 | U173: 1 | V173: 91.46885597
A174: 172 | B174: Daniel Wickham | C174: =IFERROR(VLOOKUP(B174,INDIRECT("'"&$G$1&"'!"&"$C$2:$H$200"),2,FALSE),"") -> N/A | D174: =IFERROR(VLOOKUP(B174,INDIRECT("'"&$G$1&"'!"&"$C$2:$H$200"),3,FALSE),"") -> M | E174: =IFERROR(VLOOKUP(B174,INDIRECT("'"&$G$1&"'!"&"$C$2:$H$200"),4,FALSE),"") -> Open | F174: =SUM(LARGE((H174,J174,L174,N174,P174,R174),{1,2,3,4})) -> 90.83043804 | G174: 03:33:40 | H174: 90.83043804 | J174: 0 | L174: 0 | N174: 0 | P174: 0 | R174: 0 | T174: 0 | U174: 1 | V174: 90.83043804
A175: 173 | B175: alan stanley | C175: =IFERROR(VLOOKUP(B175,INDIRECT("'"&$I$1&"'!"&"$C$2:$H$200"),2,FALSE),"") -> n/a | D175: =IFERROR(VLOOKUP(B175,INDIRECT("'"&$I$1&"'!"&"$C$2:$H$200"),3,FALSE),"") -> M | E175: =IFERROR(VLOOKUP(B175,INDIRECT("'"&$I$1&"'!"&"$C$2:$H$200"),4,FALSE),"") -> MV50 | F175: =SUM(LARGE((H175,J175,L175,N175,P175,R175),{1,2,3,4})) -> 90.80849545 | H175: 0 | I175: 4.248611111 | J175: 90.80849545 | L175: 0 | N175: 0 | P175: 0 | R175: 0 | T175: 0 | U175: 1 | V175: 90.80849545
A176: 174 | B176: Jo Shelmerdine | C176: =IFERROR(VLOOKUP(B176,INDIRECT("'"&$I$1&"'!"&"$C$2:$H$200"),2,FALSE),"") -> Andover AC | D176: =IFERROR(VLOOKUP(B176,INDIRECT("'"&$I$1&"'!"&"$C$2:$H$200"),3,FALSE),"") -> F | E176: =IFERROR(VLOOKUP(B176,INDIRECT("'"&$I$1&"'!"&"$C$2:$H$200"),4,FALSE),"") -> SF | F176: =SUM(LARGE((H176,J176,L176,N176,P176,R176),{1,2,3,4})) -> 90.48723898 | H176: 0 | I176: 4.261111111 | J176: 90.48723898 | L176: 0 | N176: 0 | P176: 0 | R176: 0 | T176: 0 | U176: 1 | V176: 90.48723898
A177: 175 | B177: Naomi Law | C177: =IFERROR(VLOOKUP(B177,INDIRECT("'"&$K$1&"'!"&"$C$2:$H$200"),2,FALSE),"") -> Mynydd Du | D177: =IFERROR(VLOOKUP(B177,INDIRECT("'"&$K$1&"'!"&"$C$2:$H$200"),3,FALSE),"") -> F | E177: =IFERROR(VLOOKUP(B177,INDIRECT("'"&$K$1&"'!"&"$C$2:$H$200"),4,FALSE),"") -> F40 | F177: =SUM(LARGE((H177,J177,L177,N177,P177,R177),{1,2,3,4})) -> 90.44592122 | H177: 0 | J177: 0 | K177: 01:53:45 | L177: 90.44592122 | N177: 0 | P177: 0 | R177: 0 | T177: 0 | U177: 1 | V177: 90.44592122
A178: 176 | B178: Sharon Woods | C178: =IFERROR(VLOOKUP(B178,INDIRECT("'"&$G$1&"'!"&"$C$2:$H$200"),2,FALSE),"") -> Mynydd Du | D178: =IFERROR(VLOOKUP(B178,INDIRECT("'"&$G$1&"'!"&"$C$2:$H$200"),3,FALSE),"") -> F | E178: =IFERROR(VLOOKUP(B178,INDIRECT("'"&$G$1&"'!"&"$C$2:$H$200"),4,FALSE),"") -> V50 | F178: =SUM(LARGE((H178,J178,L178,N178,P178,R178),{1,2,3,4})) -> 90.27692622 | G178: 03:34:45 | H178: 90.27692622 | J178: 0 | L178: 0 | N178: 0 | P178: 0 | R178: 0 | T178: 0 | U178: 1 | V178: 90.27692622
A179: 177 | B179: Roger Mills | C179: Fairwater Runners | D179: M | E179: V40 | F179: =SUM(LARGE((H179,J179,L179,N179,P179,R179),{1,2,3,4})) -> 90.15770829 | G179: 03:34:59 | H179: 90.15770829 | J179: 0 | L179: 0 | N179: 0 | P179: 0 | R179: 0 | T179: 0 | U179: 1 | V179: 90.15770829
A180: 178 | B180: Jenny Yate | C180: Mynydd Du | D180: F | E180: Open | F180: =SUM(LARGE((H180,J180,L180,N180,P180,R180),{1,2,3,4})) -> 90.13216159 | G180: 03:35:02 | H180: 90.13216159 | J180: 0 | L180: 0 | N180: 0 | P180: 0 | R180: 0 | T180: 0 | U180: 1 | V180: 90.13216159
A181: 179 | B181: Rhys White | C181: N/A | D181: M | E181: V60 | F181: =SUM(LARGE((H181,J181,L181,N181,P181,R181),{1,2,3,4})) -> 90.09809933 | G181: 03:35:06 | H181: 90.09809933 | J181: 0 | L181: 0 | N181: 0 | P181: 0 | R181: 0 | T181: 0 | U181: 1 | V181: 90.09809933
A182: 180 | B182: Callum Greenaway | C182: N/A | D182: M | E182: Open | F182: =SUM(LARGE((H182,J182,L182,N182,P182,R182),{1,2,3,4})) -> 88.86334219 | G182: 03:37:31 | H182: 88.86334219 | J182: 0 | L182: 0 | N182: 0 | P182: 0 | R182: 0 | T182: 0 | U182: 1 | V182: 88.86334219
A183: 181 | B183: Victoria Howarth | C183: N/A | D183: F | E183: Open | F183: =SUM(LARGE((H183,J183,L183,N183,P183,R183),{1,2,3,4})) -> 88.83779549 | G183: 03:37:34 | H183: 88.83779549 | J183: 0 | L183: 0 | N183: 0 | P183: 0 | R183: 0 | T183: 0 | U183: 1 | V183: 88.83779549
A184: 182 | B184: Jane Lewis | C184: N/A | D184: F | E184: V50 | F184: =SUM(LARGE((H184,J184,L184,N184,P184,R184),{1,2,3,4})) -> 88.79521766 | G184: 03:37:39 | H184: 88.79521766 | J184: 0 | L184: 0 | N184: 0 | P184: 0 | R184: 0 | T184: 0 | U184: 1 | V184: 88.79521766
A185: 183 | B185: Anthony Howells | C185: MDC | D185: M | E185: V50 | F185: =SUM(LARGE((H185,J185,L185,N185,P185,R185),{1,2,3,4})) -> 88.72709313 | G185: 03:37:47 | H185: 88.72709313 | J185: 0 | L185: 0 | N185: 0 | P185: 0 | R185: 0 | T185: 0 | U185: 1 | V185: 88.72709313
A186: 184 | B186: Michael Marks | C186: =IFERROR(VLOOKUP(B186,INDIRECT("'"&$I$1&"'!"&"$C$2:$H$200"),2,FALSE),"") -> FODAC | D186: =IFERROR(VLOOKUP(B186,INDIRECT("'"&$I$1&"'!"&"$C$2:$H$200"),3,FALSE),"") -> M | E186: =IFERROR(VLOOKUP(B186,INDIRECT("'"&$I$1&"'!"&"$C$2:$H$200"),4,FALSE),"") -> MV50 | F186: =SUM(LARGE((H186,J186,L186,N186,P186,R186),{1,2,3,4})) -> 87.39960735 | H186: 0 | I186: 4.38125 | J186: 87.39960735 | L186: 0 | N186: 0 | P186: 0 | R186: 0 | T186: 0 | U186: 1 | V186: 87.39960735
A187: 185 | B187: Mike Harris | C187: =IFERROR(VLOOKUP(B187,INDIRECT("'"&$K$1&"'!"&"$C$2:$H$200"),2,FALSE),"") -> Westbury | D187: =IFERROR(VLOOKUP(B187,INDIRECT("'"&$K$1&"'!"&"$C$2:$H$200"),3,FALSE),"") -> M | E187: =IFERROR(VLOOKUP(B187,INDIRECT("'"&$K$1&"'!"&"$C$2:$H$200"),4,FALSE),"") -> M60 | F187: =SUM(LARGE((H187,J187,L187,N187,P187,R187),{1,2,3,4})) -> 86.97871521 | H187: 0 | J187: 0 | K187: 01:57:21 | L187: 86.97871521 | N187: 0 | P187: 0 | R187: 0 | T187: 0 | U187: 1 | V187: 86.97871521
A188: 186 | B188: Kate O'Sullivan | C188: =IFERROR(VLOOKUP(B188,INDIRECT("'"&$K$1&"'!"&"$C$2:$H$200"),2,FALSE),"") -> Aberystwyth | D188: =IFERROR(VLOOKUP(B188,INDIRECT("'"&$K$1&"'!"&"$C$2:$H$200"),3,FALSE),"") -> F | E188: =IFERROR(VLOOKUP(B188,INDIRECT("'"&$K$1&"'!"&"$C$2:$H$200"),4,FALSE),"") -> F50 | F188: =SUM(LARGE((H188,J188,L188,N188,P188,R188),{1,2,3,4})) -> 86.22427686 | H188: 0 | J188: 0 | K188: 01:58:08 | L188: 86.22427686 | N188: 0 | P188: 0 | R188: 0 | T188: 0 | U188: 1 | V188: 86.22427686
A189: 187 | B189: Steve Harrhy | C189: =IFERROR(VLOOKUP(B189,INDIRECT("'"&$K$1&"'!"&"$C$2:$H$200"),2,FALSE),"") -> Pont y Pwl | D189: =IFERROR(VLOOKUP(B189,INDIRECT("'"&$K$1&"'!"&"$C$2:$H$200"),3,FALSE),"") -> M | E189: =IFERROR(VLOOKUP(B189,INDIRECT("'"&$K$1&"'!"&"$C$2:$H$200"),4,FALSE),"") -> M50 | F189: =SUM(LARGE((H189,J189,L189,N189,P189,R189),{1,2,3,4})) -> 86.12796558 | H189: 0 | J189: 0 | K189: 01:58:14 | L189: 86.12796558 | N189: 0 | P189: 0 | R189: 0 | T189: 0 | U189: 1 | V189: 86.12796558
A190: 188 | B190: Ellie Salisbury | C190: =IFERROR(VLOOKUP(B190,INDIRECT("'"&$G$1&"'!"&"$C$2:$H$200"),2,FALSE),"") -> Eryri Harriers | D190: =IFERROR(VLOOKUP(B190,INDIRECT("'"&$G$1&"'!"&"$C$2:$H$200"),3,FALSE),"") -> F | E190: =IFERROR(VLOOKUP(B190,INDIRECT("'"&$G$1&"'!"&"$C$2:$H$200"),4,FALSE),"") -> V50 | F190: =SUM(LARGE((H190,J190,L190,N190,P190,R190),{1,2,3,4})) -> 85.12500852 | G190: 03:44:50 | H190: 85.12500852 | J190: 0 | L190: 0 | N190: 0 | P190: 0 | R190: 0 | T190: 0 | U190: 1 | V190: 85.12500852
A191: 189 | B191: Bev Tucker | C191: =IFERROR(VLOOKUP(B191,INDIRECT("'"&$K$1&"'!"&"$C$2:$H$200"),2,FALSE),"") -> Mynydd Du | D191: =IFERROR(VLOOKUP(B191,INDIRECT("'"&$K$1&"'!"&"$C$2:$H$200"),3,FALSE),"") -> F | E191: =IFERROR(VLOOKUP(B191,INDIRECT("'"&$K$1&"'!"&"$C$2:$H$200"),4,FALSE),"") -> F50 | F191: =SUM(LARGE((H191,J191,L191,N191,P191,R191),{1,2,3,4})) -> 83.91280619 | H191: 0 | J191: 0 | K191: 02:00:32 | L191: 83.91280619 | N191: 0 | P191: 0 | R191: 0 | T191: 0 | U191: 1 | V191: 83.91280619
A192: 190 | B192: Christine Farr | C192: =IFERROR(VLOOKUP(B192,INDIRECT("'"&$K$1&"'!"&"$C$2:$H$200"),2,FALSE),"") -> MDC | D192: =IFERROR(VLOOKUP(B192,INDIRECT("'"&$K$1&"'!"&"$C$2:$H$200"),3,FALSE),"") -> F | E192: =IFERROR(VLOOKUP(B192,INDIRECT("'"&$K$1&"'!"&"$C$2:$H$200"),4,FALSE),"") -> F40 | F192: =SUM(LARGE((H192,J192,L192,N192,P192,R192),{1,2,3,4})) -> 83.83254679 | H192: 0 | J192: 0 | K192: 02:00:37 | L192: 83.83254679 | N192: 0 | P192: 0 | R192: 0 | T192: 0 | U192: 1 | V192: 83.83254679
A193: 191 | B193: Hugh Morgan-Jones | C193: =IFERROR(VLOOKUP(B193,INDIRECT("'"&$K$1&"'!"&"$C$2:$H$200"),2,FALSE),"") -> WFRA | D193: =IFERROR(VLOOKUP(B193,INDIRECT("'"&$K$1&"'!"&"$C$2:$H$200"),3,FALSE),"") -> M | E193: =IFERROR(VLOOKUP(B193,INDIRECT("'"&$K$1&"'!"&"$C$2:$H$200"),4,FALSE),"") -> M50 | F193: =SUM(LARGE((H193,J193,L193,N193,P193,R193),{1,2,3,4})) -> 83.68807987 | H193: 0 | J193: 0 | K193: 02:00:46 | L193: 83.68807987 | N193: 0 | P193: 0 | R193: 0 | T193: 0 | U193: 1 | V193: 83.68807987
A194: 192 | B194: Vanessa Ball | C194: =IFERROR(VLOOKUP(B194,INDIRECT("'"&$G$1&"'!"&"$C$2:$H$200"),2,FALSE),"") -> Monross Trailblazers | D194: =IFERROR(VLOOKUP(B194,INDIRECT("'"&$G$1&"'!"&"$C$2:$H$200"),3,FALSE),"") -> F | E194: =IFERROR(VLOOKUP(B194,INDIRECT("'"&$G$1&"'!"&"$C$2:$H$200"),4,FALSE),"") -> Open | F194: =SUM(LARGE((H194,J194,L194,N194,P194,R194),{1,2,3,4})) -> 83.38783296 | G194: 03:48:14 | H194: 83.38783296 | J194: 0 | L194: 0 | N194: 0 | P194: 0 | R194: 0 | T194: 0 | U194: 1 | V194: 83.38783296
A195: 193 | B195: Simon Dancel | C195: =IFERROR(VLOOKUP(B195,INDIRECT("'"&$K$1&"'!"&"$C$2:$H$200"),2,FALSE),"") -> Bristol Up & Runners | D195: =IFERROR(VLOOKUP(B195,INDIRECT("'"&$K$1&"'!"&"$C$2:$H$200"),3,FALSE),"") -> M | E195: =IFERROR(VLOOKUP(B195,INDIRECT("'"&$K$1&"'!"&"$C$2:$H$200"),4,FALSE),"") -> M40 | F195: =SUM(LARGE((H195,J195,L195,N195,P195,R195),{1,2,3,4})) -> 83.38309416 | G195: =IFERROR(VLOOKUP(B195,INDIRECT("'"&$G$1&"'!"&"$C$2:$H$200"),5,FALSE),"") ->  | H195: =IFERROR(VLOOKUP(B195,INDIRECT("'"&$G$1&"'!"&"$C$2:$H$200"),6,FALSE),0) -> 0 | I195: =IFERROR(VLOOKUP(B195,INDIRECT("'"&$I$1&"'!"&"$C$2:$G$200"),5,FALSE),"") ->  | J195: =IFERROR(VLOOKUP(B195,INDIRECT("'"&$I$1&"'!"&"$C$2:$H$200"),6,FALSE),0) -> 0 | K195: =IFERROR(VLOOKUP(B195,INDIRECT("'"&$K$1&"'!"&"$C$2:$H$200"),5,FALSE),"") -> 02:01:05 | L195: =IFERROR(VLOOKUP(B195,INDIRECT("'"&$K$1&"'!"&"$C$2:$H$200"),6,FALSE),0) -> 83.38309416 | M195: =IFERROR(VLOOKUP(B195,INDIRECT("'"&$M$1&"'!"&"$C$2:$h$200"),5,FALSE),"") ->  | N195: =IFERROR(VLOOKUP(B195,INDIRECT("'"&$M$1&"'!"&"$C$2:$h$200"),6,FALSE),0) -> 0 | O195: =IFERROR(VLOOKUP(B195,INDIRECT("'"&$O$1&"'!"&"$C$2:$h$200"),5,FALSE),"") ->  | P195: =IFERROR(VLOOKUP(B195,INDIRECT("'"&$O$1&"'!"&"$C$2:$h$200"),6,FALSE),0) -> 0 | Q195: =IFERROR(VLOOKUP(B195,INDIRECT("'"&$Q$1&"'!"&"$C$2:$h$200"),5,FALSE),"") ->  | R195: =IFERROR(VLOOKUP(B195,INDIRECT("'"&$Q$1&"'!"&"$C$2:$h$200"),6,FALSE),0) -> 0 | S195: =IFERROR(VLOOKUP(D195,INDIRECT("'"&$Q$1&"'!"&"$C$2:$h$200"),5,FALSE),"") ->  | T195: =IFERROR(VLOOKUP(D195,INDIRECT("'"&$S$1&"'!"&"$C$2:$h$200"),6,FALSE),0) -> 0 | U195: =7-COUNTIF(G195:T195,"") -> 1 | V195: =F195/IF(U195>4,4,U195) -> 83.38309416
A196: =ROW(A194) -> 194 | B196: Alice Williams | C196: =IFERROR(VLOOKUP(B196,INDIRECT("'"&$G$1&"'!"&"$C$2:$H$200"),2,FALSE),"") -> Buckley Runners | D196: =IFERROR(VLOOKUP(B196,INDIRECT("'"&$G$1&"'!"&"$C$2:$H$200"),3,FALSE),"") -> F | E196: =IFERROR(VLOOKUP(B196,INDIRECT("'"&$G$1&"'!"&"$C$2:$H$200"),4,FALSE),"") -> V40 | F196: =SUM(LARGE((H196,J196,L196,N196,P196,R196),{1,2,3,4})) -> 83.37080183 | G196: 03:48:16 | H196: 83.37080183 | J196: 0 | L196: 0 | N196: 0 | P196: 0 | R196: 0 | T196: 0 | U196: 1 | V196: 83.37080183
A197: 195 | B197: Peter Vokes | C197: =IFERROR(VLOOKUP(B197,INDIRECT("'"&$G$1&"'!"&"$C$2:$H$200"),2,FALSE),"") -> N/A | D197: =IFERROR(VLOOKUP(B197,INDIRECT("'"&$G$1&"'!"&"$C$2:$H$200"),3,FALSE),"") -> M | E197: =IFERROR(VLOOKUP(B197,INDIRECT("'"&$G$1&"'!"&"$C$2:$H$200"),4,FALSE),"") -> Open | F197: =SUM(LARGE((H197,J197,L197,N197,P197,R197),{1,2,3,4})) -> 83.34525513 | G197: 03:48:19 | H197: 83.34525513 | J197: 0 | L197: 0 | N197: 0 | P197: 0 | R197: 0 | T197: 0 | U197: 1 | V197: 83.34525513
A198: 196 | B198: Jill Davies | C198: =IFERROR(VLOOKUP(B198,INDIRECT("'"&$G$1&"'!"&"$C$2:$H$200"),2,FALSE),"") -> Saddleworth Runners | D198: =IFERROR(VLOOKUP(B198,INDIRECT("'"&$G$1&"'!"&"$C$2:$H$200"),3,FALSE),"") -> F | E198: =IFERROR(VLOOKUP(B198,INDIRECT("'"&$G$1&"'!"&"$C$2:$H$200"),4,FALSE),"") -> V60 | F198: =SUM(LARGE((H198,J198,L198,N198,P198,R198),{1,2,3,4})) -> 81.95721779 | G198: 03:51:02 | H198: 81.95721779 | J198: 0 | L198: 0 | N198: 0 | P198: 0 | R198: 0 | T198: 0 | U198: 1 | V198: 81.95721779
A199: 197 | B199: Tim Buckley | C199: =IFERROR(VLOOKUP(B199,INDIRECT("'"&$I$1&"'!"&"$C$2:$H$200"),2,FALSE),"") -> Chepstow Harriers | D199: =IFERROR(VLOOKUP(B199,INDIRECT("'"&$I$1&"'!"&"$C$2:$H$200"),3,FALSE),"") -> M | E199: =IFERROR(VLOOKUP(B199,INDIRECT("'"&$I$1&"'!"&"$C$2:$H$200"),4,FALSE),"") -> MV50 | F199: =SUM(LARGE((H199,J199,L199,N199,P199,R199),{1,2,3,4})) -> 81.40281992 | H199: 0 | I199: 4.614583333 | J199: 81.40281992 | L199: 0 | N199: 0 | P199: 0 | R199: 0 | T199: 0 | U199: 1 | V199: 81.40281992
A200: 198 | B200: Pete Morfey | C200: =IFERROR(VLOOKUP(B200,INDIRECT("'"&$K$1&"'!"&"$C$2:$H$200"),2,FALSE),"") -> Cardiff Harlequins | D200: =IFERROR(VLOOKUP(B200,INDIRECT("'"&$K$1&"'!"&"$C$2:$H$200"),3,FALSE),"") -> M | E200: =IFERROR(VLOOKUP(B200,INDIRECT("'"&$K$1&"'!"&"$C$2:$H$200"),4,FALSE),"") -> M60 | F200: =SUM(LARGE((H200,J200,L200,N200,P200,R200),{1,2,3,4})) -> 80.78268965 | H200: 0 | J200: 0 | K200: 02:03:47 | L200: 80.78268965 | N200: 0 | P200: 0 | R200: 0 | T200: 0 | U200: 1 | V200: 80.78268965
... 58 more rows

Sheet Llanbedr 2 Bleanafon
A1: Position | B1: Number | C1: Name | D1: Club | E1: Gender | F1: Category | G1: Time | H1: Points
A2: 1 | B2: 552 | C2: Charlie Lowther | D2: Mynydd Du | E2: M | F2: V40 | G2: 02:14:22 | H2: =(2-(G2/L$10))*100 -> 131.3475032
A3: =A2+1 -> 2 | B3: 530 | C3: Hugh Aggleton | D3: MDC | E3: M | F3: Open | G3: 02:15:29 | H3: =(2-(G3/L$10))*100 -> 130.7769603 | J3: Number of runners | K3: Position | L3: Time (min.sec)
A4: =A3+1 -> 3 | B4: 575 | C4: Peter Ryder | D4: Aberdare Valley | E4: M | F4: Open | G4: 02:15:35 | H4: 130.7258669 | J4: =COUNT(B2:B201) -> 121 | K4: =K6+2 -> 63 | L4: =VLOOKUP(K4,A$2:G$201,7,FALSE) -> 03:18:15
A5: 4 | B5: 496 | C5: Matt O'Keefe | D5: MDC | E5: M | F5: Open | G5: 02:27:24 | H5: 124.6883303 | J5: =ISEVEN(J4) -> FALSE | K5: =K6+1 -> 62 | L5: =VLOOKUP(K5,A$2:G$201,7,FALSE) -> 03:16:43
A6: 5 | B6: 531 | C6: Richard Roberts | D6: Eryri Harriers | E6: M | F6: Open | G6: 02:28:51 | H6: 123.947476 | K6: =IF(J5 = TRUE,(J4/2),((J4+1)/2)) -> 61 | L6: 03:14:43
A7: 6 | B7: 577 | C7: Jez Brown | D7: Buckley Runners | E7: M | F7: V40 | G7: 02:29:07 | H7: 123.8112269 | K7: =K6-1 -> 60 | L7: 03:14:40
A8: 7 | B8: 502 | C8: Martin Humphreys | D8: Stroud AC | E8: M | F8: V40 | G8: 02:29:09 | H8: 123.7941958 | K8: =K6-2 -> 59 | L8: 03:14:15
A9: 8 | B9: 514 | C9: Dan Sandford | D9: Forest of Dean AC | E9: M | F9: V40 | G9: 02:31:11 | H9: 122.7552967 | K9: =IF(J5 = TRUE, K6-3, " ") -> 
A10: 9 | B10: 556 | C10: Andrew Salt | D10: Croft Ambrey | E10: M | F10: Open | G10: 02:31:21 | H10: 122.670141 | L10: =IF(J5=TRUE,AVERAGE(L4:L9),AVERAGE(L4:L8)) -> 03:15:43.200
A11: 10 | B11: 494 | C11: Stuart Bellamy | D11: Mercia Fell Runners | E11: M | F11: V40 | G11: 02:31:28 | H11: 122.6105321
A12: 11 | B12: 519 | C12: Iestyn Awesome Rhodes | D12: Mynydd Du | E12: M | F12: V40 | G12: 02:31:44 | H12: 122.474283
A13: 12 | B13: 534 | C13: Evan Davies | D13: Mynydd Du | E13: M | F13: U23 | G13: 02:35:19 | H13: 120.6434362
A14: 13 | B14: 592 | C14: Andrew Stephens | D14: Monross Trailblazers | E14: M | F14: V40 | G14: 02:35:32 | H14: 120.5327338
A15: 14 | B15: 548 | C15: Oliver Blomfield | D15: Eden Runners | E15: M | F15: V40 | G15: 02:39:27 | H15: 118.5315757
A16: 15 | B16: 571 | C16: Stephen Jones | D16: Eryri Harriers | E16: M | F16: V60 | G16: 02:39:31 | H16: 118.4975135
A17: 16 | B17: 524 | C17: Helen Brown | D17: Mynydd Du | E17: F | F17: V40 | G17: 02:41:09 | H17: 117.6629879
A18: 17 | B18: 529 | C18: Leon Davies | D18: NWRRC | E18: M | F18: V40 | G18: 02:41:29 | H18: 117.4926766
A19: 18 | B19: 481 | C19: Andy Davies | D19: Mercia | E19: M | F19: V50 | G19: 02:41:52 | H19: 117.2968186
A20: 19 | B20: 522 | C20: Craig Jones | D20: Eryri Harriers | E20: M | F20: V40 | G20: 02:42:22 | H20: 117.0413516
A21: 20 | B21: 550 | C21: Paul Jeggo | D21: Springfield | E21: M | F21: V50 | G21: 02:43:43 | H21: 116.3515907
A22: 21 | B22: 497 | C22: Dave Powell | D22: Aberystwyth Ac | E22: M | F22: V50 | G22: 02:44:01 | H22: 116.1983105
A23: 22 | B23: 493 | C23: Katie Ironside | D23: MDC | E23: F | F23: Open | G23: 02:45:30 | H23: 115.4404251
A24: 23 | B24: 512 | C24: Ian Whitstance | D24: Mynydd Du | E24: M | F24: V40 | G24: 02:46:05 | H24: 115.1423803
A25: 24 | B25: 576 | C25: Hayley Evans | D25: Buckley Runners | E25: F | F25: Open | G25: 02:46:34 | H25: 114.8954288
A26: 25 | B26: 596 | C26: Mark Edward Hopkinson | D26: Mymydd Du | E26: M | F26: Open | G26: 02:46:53 | H26: 114.7336331
A27: 26 | B27: 585 | C27: Toby Dickens | D27: Monross Trailblazers | E27: M | F27: U23 | G27: 02:47:30 | H27: 114.4185571
A28: 27 | B28: 582 | C28: Robert Pritchard | D28: Monross Trailblazers | E28: M | F28: Open | G28: 02:48:45 | H28: 113.7798896
A29: 28 | B29: 564 | C29: Sam Rayall | D29: Pontypridd Roadents | E29: M | F29: V40 | G29: 02:48:49 | H29: 113.7458274
A30: 29 | B30: 533 | C30: John Aggleton | D30: MDC | E30: M | F30: V60 | G30: 02:49:48 | H30: 113.243409
A31: 30 | B31: 488 | C31: Tim Woodier | D31: Mynydd Du | E31: M | F31: Open | G31: 02:51:00 | H31: 112.6302882
A32: 31 | B32: 555 | C32: Anthony Powell | D32: Maldwyn Harriers | E32: M | F32: V40 | G32: 02:51:12 | H32: 112.5281014
A33: 32 | B33: 541 | C33: Sian Williams | D33: Hebog | E33: F | F33: Open | G33: 02:51:25 | H33: 112.417399
A34: 33 | B34: 499 | C34: Gary Davies | D34: MDC | E34: M | F34: V40 | G34: 02:53:46 | H34: 111.2167041
A35: 34 | B35: 578 | C35: Andy Pritchard | D35: Buckley Runners | E35: M | F35: V40 | G35: 02:53:52 | H35: 111.1656107
A36: 35 | B36: 561 | C36: Andrew Han | D36: Fulham Running Club | E36: M | F36: Open | G36: 02:54:04 | H36: 111.0634239
A37: 36 | B37: 558 | C37: Paul Beeson | D37: Maudwyn Harriers | E37: M | F37: V50 | G37: 02:54:40 | H37: 110.7568635
A38: 37 | B38: 508 | C38: Steve 'Amazing' Hepton… | D38: Mynydd Du | E38: M | F38: V40 | G38: 02:55:44 | H38: 110.2118673
A39: 38 | B39: 597 | C39: Martin Wright | D39: Mynydd Du | E39: M | F39: V40 | G39: 02:56:03 | H39: 110.0500715
A40: 39 | B40: 523 | C40: Faye Johnson | D40: Mynydd Du | E40: F | F40: Open | G40: 02:58:29 | H40: 108.8067988
A41: 40 | B41: 482 | C41: Rhian Probert | D41: Mynydd Du | E41: F | F41: V40 | G41: 02:58:49 | H41: 108.6364875
A42: 41 | B42: 559 | C42: Matthew Lawson | D42: Chepstow Harriers | E42: M | F42: V40 | G42: 02:59:46 | H42: 108.1511002
A43: 42 | B43: 527 | C43: Vic Belshaw | D43: Denbigh Harriers | E43: M | F43: V50 | G43: 02:59:53 | H43: 108.0914912
A44: 43 | B44: 504 | C44: Alan Hughes | D44: Exeter Tri Club | E44: M | F44: V40 | G44: 03:00:02 | H44: 108.0148511
A45: 44 | B45: 565 | C45: Gary Pearson | D45: Croft Ambrey | E45: M | F45: V40 | G45: 03:00:06 | H45: 107.9807889
A46: 45 | B46: 515 | C46: Richard Cronin | D46: MDC | E46: M | F46: Open | G46: 03:03:00 | H46: 106.4990803
A47: 46 | B47: 487 | C47: Tim Hargreaves | D47: Buckley Runners | E47: M | F47: V50 | G47: 03:03:05 | H47: 106.4565025
A48: 47 | B48: 591 | C48: Sam Weale | D48: Monross Trailblazers | E48: M | F48: Open | G48: 03:03:15 | H48: 106.3713468
A49: 48 | B49: 500 | C49: Lou Awesomus Summers | D49: Mynydd Du | E49: F | F49: V50 | G49: 03:03:19 | H49: 106.3372846
A50: 49 | B50: 586 | C50: Sam Harness | D50: Monross Trailblazers | E50: M | F50: V40 | G50: 03:03:38 | H50: 106.1754888
A51: 50 | B51: 492 | C51: Oliver Lamford | D51: MDC | E51: M | F51: Open | G51: 03:04:14 | H51: 105.8689284
A52: 51 | B52: 495 | C52: Louise Barker | D52: Aberystwyth Ac | E52: F | F52: V40 | G52: 03:04:31 | H52: 105.7241638
A53: 52 | B53: 538 | C53: Sammi Toop | D53: Mynydd Du | E53: F | F53: Open | G53: 03:04:45 | H53: 105.6049458
A54: 53 | B54: 580 | C54: Paul Tucker | D54: Mynydd Du | E54: M | F54: V50 | G54: 03:08:20 | H54: 103.7740991
A55: 54 | B55: 557 | C55: Glyn Fletcher | D55: Maldwyn Harriers | E55: M | F55: V50 | G55: 03:09:09 | H55: 103.3568363
A56: 55 | B56: 543 | C56: Sam Charrington | D56: Mynydd Du | E56: M | F56: V40 | G56: 03:09:46 | H56: 103.0417603
A57: 56 | B57: 516 | C57: Sue Howarth | D57: Mercia | E57: F | F57: V50 | G57: 03:10:54 | H57: 102.4627018
A58: 57 | B58: 545 | C58: David Mackie | D58: Corsham Running Club | E58: M | F58: V40 | G58: 03:11:04 | H58: 102.3775462
A59: 58 | B59: 501 | C59: Luke Davies | D59: Swansea Harriers | E59: M | F59: U23 | G59: 03:13:11 | H59: 101.2960692
A60: 59 | B60: 505 | C60: Debbie Stenner | D60: Forest of Dean AC | E60: F | F60: V40 | G60: 03:14:15 | H60: 100.751073
A61: 60 | B61: 503 | C61: Graeme Hughes | D61: N/A | E61: M | F61: V40 | G61: 03:14:40 | H61: 100.5381838
A62: 61 | B62: 583 | C62: Laura Lelievre | D62: Monross Trailblazers | E62: F | F62: Open | G62: 03:14:43 | H62: 100.5126371
A63: 62 | B63: 532 | C63: Rhys Pippard | D63: Mynydd Du | E63: M | F63: Open | G63: 03:16:43 | H63: 99.49076913
A64: 63 | B64: 598 | C64: Jerome Mearcister | D64: FRA | E64: M | F64: V40 | G64: 03:18:15 | H64: 98.70733701
A65: 64 | B65: 486 | C65: Dan Gregory | D65: N/A | E65: M | F65: V40 | G65: 03:20:20 | H65: 97.64289121
A66: 65 | B66: 547 | C66: Tom Dudding | D66: N/A | E66: M | F66: Open | G66: 03:20:28 | H66: 97.57476667
A67: 66 | B67: 546 | C67: Tom Walker | D67: N/A | E67: M | F67: Open | G67: 03:20:31 | H67: =(2-(G67/L$10))*100 -> 97.54921997
A68: =A67+1 -> 67 | B68: 581 | C68: James Fletcher | D68: Monross Trailblazers | E68: M | F68: V50 | G68: 03:20:40 | H68: 97.47257988
A69: 68 | B69: 511 | C69: Andrew Clemant | D69: TROT | E69: M | F69: V50 | G69: 03:21:14 | H69: 97.18305062
A70: 69 | B70: 600 | C70: Stephen Priesonall | D70: Running Somewhere Else | E70: M | F70: V50 | G70: 03:22:39 | H70: 96.45922747
A71: 70 | B71: 485 | C71: Martin Carter | D71: Hay Hotfooters | E71: M | F71: V50 | G71: 03:23:31 | H71: 96.01641801
A72: 71 | B72: 498 | C72: Natahniel Swain | D72: MDC | E72: M | F72: Open | G72: 03:23:34 | H72: 95.99087131
A73: 72 | B73: 544 | C73: Jono Simpson | D73: N/A | E73: M | F73: V50 | G73: 03:23:51 | H73: 95.84610668
A74: 73 | B74: 572 | C74: Darren Owen | D74: IND | E74: M | F74: V40 | G74: 03:24:50 | H74: 95.34368826
A75: 74 | B75: 506 | C75: Chris Munton | D75: Forest of Dean AC | E75: M | F75: Open | G75: 03:25:40 | H75: 94.91790994
A76: 75 | B76: 587 | C76: Tim Adam Oliver | D76: Monross Trailblazers | E76: M | F76: V40 | G76: 03:25:42 | H76: 94.90087881
A77: 76 | B77: 536 | C77: Rhys Thomas | D77: N/A | E77: M | F77: V40 | G77: 03:25:44 | H77: 94.88384767
A78: 77 | B78: 535 | C78: Meinir Jones | D78: Mynydd Du | E78: F | F78: V40 | G78: 03:25:48 | H78: 94.84978541
A79: 78 | B79: 579 | C79: Beverley Tucker | D79: Mynydd Du | E79: F | F79: V50 | G79: 03:26:18 | H79: 94.59431841
A80: 79 | B80: 484 | C80: Kim Braznell | D80: Mercia | E80: F | F80: V60 | G80: 03:26:20 | H80: 94.57728728
A81: 80 | B81: 525 | C81: Rhys Ashbridge | D81: N/A | E81: M | F81: Open | G81: 03:26:30 | H81: 94.49213162
A82: 81 | B82: 520 | C82: Richard Stanley | D82: Ampthill and Flitwick Flyers | E82: M | F82: V50 | G82: 03:29:26 | H82: 92.99339192
A83: 82 | B83: 521 | C83: Eluned Malone | D83: N/A | E83: F | F83: Open | G83: 03:31:19 | H83: 92.03113291
A84: 83 | B84: 528 | C84: Emma Collins | D84: Denbigh Harriers | E84: F | F84: V50 | G84: 03:31:36 | H84: 91.88636828
A85: 84 | B85: 567 | C85: Andy Pollintine | D85: IND | E85: M | F85: V50 | G85: 03:32:00 | H85: 91.68199469
A86: 85 | B86: 589 | C86: Tom Mollekin | D86: Mynydd Du | E86: M | F86: Open | G86: 03:32:19 | H86: 91.52019892
A87: 86 | B87: 573 | C87: Andrew Wood | D87: IND | E87: M | F87: Open | G87: 03:32:38 | H87: 91.35840316
A88: 87 | B88: 510 | C88: Daniel Wickham | D88: N/A | E88: M | F88: Open | G88: 03:33:40 | H88: 90.83043804
A89: 88 | B89: 551 | C89: Sharon Woods | D89: Mynydd Du | E89: F | F89: V50 | G89: 03:34:45 | H89: 90.27692622
A90: 89 | B90: 563 | C90: Roger Mills | D90: Fairwater Runners | E90: M | F90: V40 | G90: 03:34:59 | H90: 90.15770829
A91: 90 | B91: 537 | C91: Jenny Yate | D91: Mynydd Du | E91: F | F91: Open | G91: 03:35:02 | H91: 90.13216159
A92: 91 | B92: 517 | C92: Rhys White | D92: N/A | E92: M | F92: V60 | G92: 03:35:06 | H92: 90.09809933
A93: 92 | B93: 539 | C93: Callum Greenaway | D93: N/A | E93: M | F93: Open | G93: 03:37:31 | H93: 88.86334219
A94: 93 | B94: 513 | C94: Victoria Howarth | D94: N/A | E94: F | F94: Open | G94: 03:37:34 | H94: 88.83779549
A95: 94 | B95: 542 | C95: Jane Lewis | D95: N/A | E95: F | F95: V50 | G95: 03:37:39 | H95: 88.79521766
A96: 95 | B96: 540 | C96: Anthony Howells | D96: MDC | E96: M | F96: V50 | G96: 03:37:47 | H96: 88.72709313
A97: 96 | B97: 509 | C97: John Jaspers | D97: N/A | E97: M | F97: V40 | G97: 03:44:27 | H97: 85.32086654
A98: 97 | B98: 599 | C98: Ellie Salisbury | D98: Eryri Harriers | E98: F | F98: V50 | G98: 03:44:50 | H98: 85.12500852
A99: 98 | B99: 594 | C99: Jim Jones | D99: Helsby RC | E99: M | F99: V50 | G99: 03:45:25 | H99: 84.82696369
A100: 99 | B100: 568 | C100: Gareth Welch | D100: IND | E100: M | F100: V40 | G100: 03:45:29 | H100: 84.79290142
A101: 100 | B101: 570 | C101: Karen Elvers | D101: MDC | E101: F | F101: V40 | G101: 03:46:00 | H101: 84.52891886
A102: 101 | B102: 562 | C102: Caroline Dallimore | D102: MDC | E102: F | F102: V60 | G102: 03:46:27 | H102: 84.29899857
A103: 102 | B103: 560 | C103: Nick Dallimore | D103: MDC | E103: M | F103: V60 | G103: 03:46:35 | H103: 84.23087404
A104: 103 | B104: 584 | C104: Vanessa Ball | D104: Monross Trailblazers | E104: F | F104: Open | G104: 03:48:14 | H104: 83.38783296
A105: 104 | B105: 574 | C105: Alice Williams | D105: Buckley Runners | E105: F | F105: V40 | G105: 03:48:16 | H105: 83.37080183
A106: 105 | B106: 490 | C106: Peter Vokes | D106: N/A | E106: M | F106: Open | G106: 03:48:19 | H106: 83.34525513
A107: 106 | B107: 566 | C107: Andrew Chambers | D107: IND | E107: M | F107: V40 | G107: 03:48:21 | H107: 83.32822399
A108: 107 | B108: 507 | C108: Jill Davies | D108: Saddleworth Runners | E108: F | F108: V60 | G108: 03:51:02 | H108: 81.95721779
A109: 108 | B109: 554 | C109: Janet Richards | D109: Mynydd Du | E109: F | F109: V50 | G109: 04:02:00 | H109: 76.35397507
A110: 109 | B110: 569 | C110: Gareth D Jones | D110: MDC | E110: M | F110: V70 | G110: 04:05:27 | H110: 74.59125281
A111: 110 | B111: 526 | C111: Dougal Davrvill | D111: N/A | E111: M | F111: V50 | G111: 04:05:31 | H111: 74.55719054
A112: 111 | B112: 553 | C112: Rod Sutcliffe | D112: Calder Valley | E112: M | F112: V60 | G112: 04:12:12 | H112: 71.1424484
A113: 112 | B113: 549 | C113: Les Williams | D113: Rhedwyr Eryri | E113: M | F113: V70 | G113: 04:12:23 | H113: 71.04877716
A114: 113 | B114: 590 | C114: Gary Gunner | D114: Croft Ambrey | E114: M | F114: V70 | G114: 04:18:58 | H114: 67.68512841
A115: 114 | B115: 491 | C115: Rebecca Smith-Williams | D115: MDC | E115: F | F115: Open | G115: 04:24:10 | H115: 65.02827168
A116: 115 | B116: 518 | C116: Jack Hayon Harington | D116: Frome Running Club | E116: M | F116: Open | G116: 04:27:15 | H116: 63.45289189
A117: 116 | B117: 483 | C117: Robert Wood | D117: Lliswerry Runners | E117: M | F117: V40 | G117: 05:19:26 | H117: 36.79065331
A118: 117 | B118: 595 | C118: Andy Blackmore | D118: MDC | E118: M | F118: V50 | G118: rtd
A119: 118 | B119: 588 | C119: Annie Dobson | D119: IND | E119: F | F119: V40 | G119: rtd
A120: 119 | B120: 593 | C120: Daniela Gormley (SWEEPER) | D120: Mynydd Du | E120: F | F120: V40 | G120: rtd
A121: 120 | B121: 489 | C121: John Price | D121: Hay Hotfooters | E121: M | F121: V60 | G121: rtd
A122: 121 | B122: 480 | C122: Richard Born | D122: Mysteruns | E122: M | F122: V50 | G122: rtd

Sheet Longtown Loop
A1: Position | B1: Number | C1: Name | D1: Club | E1: Gender | F1: Category | G1: Time | H1: Points
A2: 1 | C2: Mark Hopkinson | D2: Mynydd Du | E2: =IF('[2]Longtown Llanthony Loop race pr'!$E2="Male","M","F") -> M | F2: SM | G2: 2.810416667 | H2: =(2-(G2/L$10))*100 -> 127.7708371
A3: 2 | C3: Peter Ryder | D3: Aberdare Valley | E3: =IF('[2]Longtown Llanthony Loop race pr'!$E3="Male","M","F") -> M | F3: SM | G3: 2.840277778 | H3: =(2-(G3/L$10))*100 -> 127.003391 | J3: Number of runners | K3: Position | L3: Time (min.sec)
A4: 3 | C4: Alec Hough | D4: Mercia fell runners | E4: =IF('[2]Longtown Llanthony Loop race pr'!$E4="Male","M","F") -> M | F4: SM | G4: 2.936111111 | H4: 124.5404248 | J4: 87 | K4: =K6+2 -> 46 | L4: =VLOOKUP(K4,A2:G201,7,FALSE) -> 3.946527778
A5: 4 | C5: Matt O'Keefe | D5: MDC | E5: =IF('[2]Longtown Llanthony Loop race pr'!$E5="Male","M","F") -> M | F5: SM | G5: 3.020138889 | H5: 122.3808674 | J5: Was it an even field? | K5: =K6+1 -> 45 | L5: 3.9375
A6: 5 | C6: James Blore | D6: MDC | E6: =IF('[2]Longtown Llanthony Loop race pr'!$E6="Male","M","F") -> M | F6: SM | G6: 3.040972222 | H6: 121.8454399 | J6: =ISEVEN(J4) -> FALSE | K6: =IF(J6 = TRUE,(J4/2),((J4+1)/2)) -> 44 | L6: 3.907638889
A7: 6 | C7: Jim Masters | D7: Wye Valley Runners | E7: =IF('[2]Longtown Llanthony Loop race pr'!$E7="Male","M","F") -> M | F7: MV40 | G7: 3.177083333 | H7: 118.3473139 | K7: =K6-1 -> 43 | L7: 3.841666667
A8: 7 | C8: Dan Sandford | D8: FODAC | E8: =IF('[2]Longtown Llanthony Loop race pr'!$E8="Male","M","F") -> M | F8: MV40 | G8: 3.185416667 | H8: 118.133143 | K8: =K6-2 -> 42 | L8: 3.821527778
A9: 8 | C9: Chris Chambers | D9: Mynydd Du | E9: =IF('[2]Longtown Llanthony Loop race pr'!$E9="Male","M","F") -> M | F9: MV40 | G9: 3.314583333 | H9: 114.8134928 | K9: =IF(J6 = TRUE, K6-3, Na) -> 
A10: 9 | C10: Tom Turner | D10: Mynydd Du | E10: =IF('[2]Longtown Llanthony Loop race pr'!$E10="Male","M","F") -> M | F10: SM | G10: 3.320833333 | H10: 114.6528645 | L10: =IF(J6=TRUE,AVERAGE(L4:L9),AVERAGE(L4:L8)) -> 3.890972222
A11: 10 | C11: james brown | E11: =IF('[2]Longtown Llanthony Loop race pr'!$E11="Male","M","F") -> M | F11: SM | G11: 3.343055556 | H11: 114.0817419
A12: 11 | C12: Paul Jeggo | D12: Springfield | E12: =IF('[2]Longtown Llanthony Loop race pr'!$E12="Male","M","F") -> M | F12: MV50 | G12: 3.354166667 | H12: 113.7961806
A13: 12 | C13: Gethin Powell | D13: Pontypridd Roadents Ac | E13: =IF('[2]Longtown Llanthony Loop race pr'!$E13="Male","M","F") -> M | F13: SM | G13: 3.3625 | H13: 113.5820096
A14: 13 | C14: Helen Brown | D14: Mynydd Du | E14: =IF('[2]Longtown Llanthony Loop race pr'!$E14="Male","M","F") -> F | F14: FV40 | G14: 3.448611111 | H14: 111.3689095
A15: 14 | C15: John Aggleton | D15: MDC | E15: =IF('[2]Longtown Llanthony Loop race pr'!$E15="Male","M","F") -> M | F15: MV60 | G15: 3.452777778 | H15: 111.261824
A16: 15 | C16: Steven 'Amazing' Hepton… | D16: Mynydd Du | E16: =IF('[2]Longtown Llanthony Loop race pr'!$E16="Male","M","F") -> M | F16: MV40 | G16: 3.465277778 | H16: 110.9405676
A17: 16 | C17: Vincent Kamp | E17: =IF('[2]Longtown Llanthony Loop race pr'!$E17="Male","M","F") -> M | F17: MV40 | G17: 3.475 | H17: 110.6907014
A18: 17 | C18: Jonny Woolridge | E18: =IF('[2]Longtown Llanthony Loop race pr'!$E18="Male","M","F") -> M | F18: SM | G18: 3.499305556 | H18: 110.0660361
A19: 18 | C19: David Mullin | D19: Mercia Fell Runners | E19: =IF('[2]Longtown Llanthony Loop race pr'!$E19="Male","M","F") -> M | F19: MV40 | G19: 3.501388889 | H19: 110.0124933
A20: 19 | C20: Peter Nugent | D20: Wye Valley Runners | E20: =IF('[2]Longtown Llanthony Loop race pr'!$E20="Male","M","F") -> M | F20: SM | G20: 3.505555556 | H20: 109.9054078
A21: 20 | C21: Andy Pritchard | D21: Buckley Runners | E21: =IF('[2]Longtown Llanthony Loop race pr'!$E21="Male","M","F") -> M | F21: MV40 | G21: 3.523611111 | H21: 109.4413707
A22: 21 | C22: Hayley Evans | D22: Buckley Runners | E22: =IF('[2]Longtown Llanthony Loop race pr'!$E22="Male","M","F") -> F | F22: SF | G22: 3.547916667 | H22: 108.8167053
A23: 22 | C23: Glyn Williams | D23: Croft Ambrey RC | E23: =IF('[2]Longtown Llanthony Loop race pr'!$E23="Male","M","F") -> M | F23: MV40 | G23: 3.552777778 | H23: 108.6917723
A24: 23 | C24: Helen Marshall | D24: Aberystwyth AC | E24: =IF('[2]Longtown Llanthony Loop race pr'!$E24="Male","M","F") -> F | F24: SF | G24: 3.556944444 | H24: 108.5846868
A25: 24 | C25: Dave Powell | D25: Aberystwyth AC | E25: =IF('[2]Longtown Llanthony Loop race pr'!$E25="Male","M","F") -> M | F25: MV50 | G25: 3.583333333 | H25: 107.9064787
A26: 25 | C26: Oliver Lamford | D26: MDC | E26: =IF('[2]Longtown Llanthony Loop race pr'!$E26="Male","M","F") -> M | F26: SM | G26: 3.614583333 | H26: 107.1033375
A27: 26 | C27: Paul Marratt | D27: Hereford Triathlon Club | E27: =IF('[2]Longtown Llanthony Loop race pr'!$E27="Male","M","F") -> M | F27: MV50 | G27: 3.624305556 | H27: 106.8534714
A28: 27 | C28: Nick Dallimore | D28: MDC | E28: =IF('[2]Longtown Llanthony Loop race pr'!$E28="Male","M","F") -> M | F28: MV60 | G28: 3.636805556 | H28: 106.5322149
A29: 28 | C29: Paul Tucker | D29: Mynydd Du | E29: =IF('[2]Longtown Llanthony Loop race pr'!$E29="Male","M","F") -> M | F29: MV50 | G29: 3.644444444 | H29: 106.3358915
A30: 29 | C30: Donna Morris | D30: Breccon AC | E30: =IF('[2]Longtown Llanthony Loop race pr'!$E30="Male","M","F") -> F | F30: SF | G30: 3.65 | H30: 106.1931108
A31: 30 | C31: Nick Syrett | D31: Chorlton Runners | E31: =IF('[2]Longtown Llanthony Loop race pr'!$E31="Male","M","F") -> M | F31: MV40 | G31: 3.657638889 | H31: 105.9967874
A32: 31 | C32: Gareth Bradbury | D32: MonrossTrailblazers | E32: =IF('[2]Longtown Llanthony Loop race pr'!$E32="Male","M","F") -> M | F32: MV40 | G32: 3.666666667 | H32: 105.7647689
A33: 32 | C33: Luke Wedmore | E33: =IF('[2]Longtown Llanthony Loop race pr'!$E33="Male","M","F") -> M | F33: SM | G33: 3.677083333 | H33: 105.4970551
A34: 33 | C34: Richard Haynes | D34: N/A | E34: =IF('[2]Longtown Llanthony Loop race pr'!$E34="Male","M","F") -> M | F34: MV50 | G34: 3.686805556 | H34: 105.247189
A35: 34 | C35: Debbie Stenner | D35: Forest of Dean AC | E35: =IF('[2]Longtown Llanthony Loop race pr'!$E35="Male","M","F") -> F | F35: FV40 | G35: 3.692361111 | H35: 105.1044084
A36: 35 | C36: Rhian Probert | D36: Mynydd Du | E36: =IF('[2]Longtown Llanthony Loop race pr'!$E36="Male","M","F") -> F | F36: FV40 | G36: 3.697916667 | H36: 104.9616277
A37: 36 | C37: Orlando Timmerman | E37: =IF('[2]Longtown Llanthony Loop race pr'!$E37="Male","M","F") -> M | F37: SM | G37: 3.708333333 | H37: 104.693914
A38: 37 | C38: Andy Creber | D38: Mynydd Du | E38: =IF('[2]Longtown Llanthony Loop race pr'!$E38="Male","M","F") -> M | F38: MV60 | G38: 3.718055556 | H38: 104.4440478
A39: 38 | C39: Matthew Haynes | D39: Builth & District RC | E39: =IF('[2]Longtown Llanthony Loop race pr'!$E39="Male","M","F") -> M | F39: MV40 | G39: 3.725694444 | H39: 104.2477244
A40: 39 | C40: Ross Walker | D40: Chepstow Harriers | E40: =IF('[2]Longtown Llanthony Loop race pr'!$E40="Male","M","F") -> M | F40: MV40 | G40: 3.755555556 | H40: 103.4802784
A41: 40 | C41: alex banks | D41: Bristol and West AC (est. 1882) | E41: =IF('[2]Longtown Llanthony Loop race pr'!$E41="Male","M","F") -> M | F41: SM | G41: 3.791666667 | H41: 102.5522042
A42: 41 | C42: Luke Davies | D42: Swansea Harriers | E42: =IF('[2]Longtown Llanthony Loop race pr'!$E42="Male","M","F") -> M | F42: SM | G42: 3.80625 | H42: 102.177405
A43: 42 | C43: David Wood | D43: Dursley Running Club | E43: =IF('[2]Longtown Llanthony Loop race pr'!$E43="Male","M","F") -> M | F43: MV50 | G43: 3.821527778 | H43: 101.7847582
A44: 43 | C44: Tony Wooldridge | D44: Dursley Running Club | E44: =IF('[2]Longtown Llanthony Loop race pr'!$E44="Male","M","F") -> M | F44: MV65 | G44: 3.841666667 | H44: 101.2671783
A45: 44 | C45: Louise Barker | D45: Aberystwyth AC | E45: =IF('[2]Longtown Llanthony Loop race pr'!$E45="Male","M","F") -> F | F45: FV40 | G45: 3.907638889 | H45: 99.57165804
A46: 45 | C46: Andrew Blackmore | D46: Mynyddwyr de Cymru | E46: =IF('[2]Longtown Llanthony Loop race pr'!$E46="Male","M","F") -> M | F46: MV50 | G46: 3.9375 | H46: 98.80421203
A47: 46 | C47: Richard Simpson | E47: =IF('[2]Longtown Llanthony Loop race pr'!$E47="Male","M","F") -> M | F47: MV40 | G47: 3.946527778 | H47: 98.57219347
A48: 47 | C48: Vanessa Lawson | D48: Chepstow Harriers | E48: =IF('[2]Longtown Llanthony Loop race pr'!$E48="Male","M","F") -> F | F48: FV40 | G48: 3.970833333 | H48: 97.94752811
A49: 48 | C49: gareth welch | E49: =IF('[2]Longtown Llanthony Loop race pr'!$E49="Male","M","F") -> M | F49: MV40 | G49: 4.014583333 | H49: 96.82313047
A50: 49 | C50: Andrew Wood | E50: =IF('[2]Longtown Llanthony Loop race pr'!$E50="Male","M","F") -> M | F50: SM | G50: 4.015972222 | H50: 96.7874353
A51: 50 | C51: Duncan Loughrey | E51: =IF('[2]Longtown Llanthony Loop race pr'!$E51="Male","M","F") -> M | F51: MV50 | G51: 4.0375 | H51: 96.23416027
A52: 51 | C52: Martin Chammings | D52: Parc Bryn Bach | E52: =IF('[2]Longtown Llanthony Loop race pr'!$E52="Male","M","F") -> M | F52: SM | G52: 4.054861111 | H52: 95.78797073
A53: 52 | C53: Martin Simmons | E53: =IF('[2]Longtown Llanthony Loop race pr'!$E53="Male","M","F") -> M | F53: MV50 | G53: 4.060416667 | H53: 95.64519008
A54: 53 | C54: Andy Stott | D54: MDC | E54: =IF('[2]Longtown Llanthony Loop race pr'!$E54="Male","M","F") -> M | F54: MV50 | G54: 4.089583333 | H54: 94.89559165
A55: 54 | C55: Dave Farrow | D55: Mercia Fell Runners | E55: =IF('[2]Longtown Llanthony Loop race pr'!$E55="Male","M","F") -> M | F55: MV50 | G55: 4.136805556 | H55: 93.68195609
A56: 55 | C56: Ben Watkins | D56: Mynydd Du | E56: =IF('[2]Longtown Llanthony Loop race pr'!$E56="Male","M","F") -> M | F56: SM | G56: 4.160416667 | H56: 93.07513832
A57: 56 | C57: James Griffiths | D57: Newent Runners | E57: =IF('[2]Longtown Llanthony Loop race pr'!$E57="Male","M","F") -> M | F57: MV50 | G57: 4.168055556 | H57: 92.87881492
A58: 57 | C58: Rona Davies | D58: Mynydd Du | E58: =IF('[2]Longtown Llanthony Loop race pr'!$E58="Male","M","F") -> F | F58: FV50 | G58: 4.182638889 | H58: 92.50401571
A59: 58 | C59: John Jaspers | E59: =IF('[2]Longtown Llanthony Loop race pr'!$E59="Male","M","F") -> M | F59: MV40 | G59: 4.190972222 | H59: 92.28984473
A60: 59 | C60: Celia Mills | E60: =IF('[2]Longtown Llanthony Loop race pr'!$E60="Male","M","F") -> F | F60: MV60 | G60: 4.215277778 | H60: 91.66517937
A61: 60 | C61: Hugh Morgan Jones | D61: WFRA | E61: =IF('[2]Longtown Llanthony Loop race pr'!$E61="Male","M","F") -> M | F61: MV50 | G61: 4.215972222 | H61: 91.64733179
A62: 61 | C62: Emily Ford | D62: MDC | E62: =IF('[2]Longtown Llanthony Loop race pr'!$E62="Male","M","F") -> F | F62: SF | G62: 4.222916667 | H62: 91.46885597
A63: 62 | C63: alan stanley | D63: n/a | E63: =IF('[2]Longtown Llanthony Loop race pr'!$E63="Male","M","F") -> M | F63: MV50 | G63: 4.248611111 | H63: 90.80849545
A64: 63 | C64: Jo Shelmerdine | D64: Andover AC | E64: =IF('[2]Longtown Llanthony Loop race pr'!$E64="Male","M","F") -> F | F64: SF | G64: 4.261111111 | H64: 90.48723898
A65: 64 | C65: Beverley Tucker | D65: Mynydd Du | E65: =IF('[2]Longtown Llanthony Loop race pr'!$E65="Male","M","F") -> F | F65: FV50 | G65: 4.365972222 | H65: 87.79225415
A66: 65 | C66: Michael Marks | D66: FODAC | E66: =IF('[2]Longtown Llanthony Loop race pr'!$E66="Male","M","F") -> M | F66: MV50 | G66: 4.38125 | H66: 87.39960735
A67: 66 | C67: Jim Jones | D67: Helsby Running Club | E67: =IF('[2]Longtown Llanthony Loop race pr'!$E67="Male","M","F") -> M | F67: MV50 | G67: 4.407638889 | H67: =(2-(G67/L$10))*100 -> 86.72139925
A68: 67 | C68: Andrew Chambers | E68: =IF('[2]Longtown Llanthony Loop race pr'!$E68="Male","M","F") -> M | F68: MV40 | G68: 4.528472222 | H68: 83.61592004
A69: 68 | C69: Gary Gunner | D69: Croft Ambrey RC | E69: =IF('[2]Longtown Llanthony Loop race pr'!$E69="Male","M","F") -> M | F69: MV70 | G69: 4.552777778 | H69: 82.99125468
A70: 69 | C70: Caroline Dallimore | D70: MDC | E70: =IF('[2]Longtown Llanthony Loop race pr'!$E70="Male","M","F") -> F | F70: FV60 | G70: 4.561805556 | H70: 82.75923612
A71: 70 | C71: Tim Buckley | D71: Chepstow Harriers | E71: =IF('[2]Longtown Llanthony Loop race pr'!$E71="Male","M","F") -> M | F71: MV50 | G71: 4.614583333 | H71: 81.40281992
A72: 71 | C72: Paul Symons | E72: =IF('[2]Longtown Llanthony Loop race pr'!$E72="Male","M","F") -> M | F72: MV50 | G72: 4.65625 | H72: 80.33196502
A73: 72 | C73: Les Williams | D73: rhedwyr eryri | E73: =IF('[2]Longtown Llanthony Loop race pr'!$E73="Male","M","F") -> M | F73: MV70 | G73: 4.734722222 | H73: 78.31518829
A74: 73 | C74: Hamish Hughson | D74: Chepstow Harriers | E74: =IF('[2]Longtown Llanthony Loop race pr'!$E74="Male","M","F") -> M | F74: MV40 | G74: 4.758333333 | H74: 77.70837052
A75: 74 | C75: Archie Gemell | E75: =IF('[2]Longtown Llanthony Loop race pr'!$E75="Male","M","F") -> M | F75: MV50 | G75: 4.789583333 | H75: 76.90522934
A76: 75 | C76: Janet Richards | D76: Mynydd Du | E76: =IF('[2]Longtown Llanthony Loop race pr'!$E76="Male","M","F") -> F | F76: FV50 | G76: 4.797222222 | H76: 76.70890594
A77: 76 | C77: Flora Gunner | D77: Croft Ambrey RC | E77: =IF('[2]Longtown Llanthony Loop race pr'!$E77="Male","M","F") -> F | F77: MV50 | G77: 4.81875 | H77: 76.15563091
A78: 77 | C78: John Price | D78: Hay Hotfooters | E78: =IF('[2]Longtown Llanthony Loop race pr'!$E78="Male","M","F") -> M | F78: MV60 | G78: 4.836805556 | H78: 75.69159379
A79: 78 | C79: Stefanie Francis | D79: Forest of Dean AC | E79: =IF('[2]Longtown Llanthony Loop race pr'!$E79="Male","M","F") -> F | F79: MV50 | G79: 4.86875 | H79: 74.87060503
A80: 79 | C80: Tom Davies | D80: Croft Ambrey RC | E80: =IF('[2]Longtown Llanthony Loop race pr'!$E80="Male","M","F") -> M | F80: MV65 | G80: 4.984722222 | H80: 71.8900589
A81: 80 | C81: Charlotte Goodwin | E81: =IF('[2]Longtown Llanthony Loop race pr'!$E81="Male","M","F") -> F | F81: SM | G81: 4.993055556 | H81: 71.67588792
A82: 81 | C82: William Darby | D82: Mynydd Du | E82: =IF('[2]Longtown Llanthony Loop race pr'!$E82="Male","M","F") -> M | F82: MV60 | G82: 5.291666667 | H82: 64.00142781
A83: 82 | C83: Chris Hawkins | D83: Forest of Dean AC | E83: =IF('[2]Longtown Llanthony Loop race pr'!$E83="Male","M","F") -> M | F83: MV65 | G83: 5.393055556 | H83: 61.39568089
A84: 83 | C84: Liselette Adams | D84: FODAC | E84: =IF('[2]Longtown Llanthony Loop race pr'!$E84="Male","M","F") -> F | F84: FV40 | G84: 5.393055556 | H84: 61.39568089
A85: 85 | C85: claire carden | D85: none | E85: =IF('[2]Longtown Llanthony Loop race pr'!$E85="Male","M","F") -> F | F85: MV40 | G85: 5.440277778 | H85: 60.18204533
A86: 86 | C86: Matthew Knight | D86: Hereford Couriers | E86: =IF('[2]Longtown Llanthony Loop race pr'!$E86="Male","M","F") -> M | F86: SM | G86: 5.573611111 | H86: 56.75530966
A87: 87 | C87: Paul Colley-Davies | D87: Croft Ambrey RC | E87: =IF('[2]Longtown Llanthony Loop race pr'!$E87="Male","M","F") -> M | F87: MV50 | G87: 5.574305556 | H87: 56.73746207
A136: 136 | H136: =(2-(G136/L$10))*100 -> 200

Sheet Cwmdu
A1: Position | B1: Number | C1: Name | D1: Club | E1: Gender | F1: Category | G1: Time | H1: Points
A2: 1 | C2: Sam Tosh | D2: Rossendale H | E2: M | F2: SM | G2: 01:17:32 | H2: =(2-(G2/L$10))*100 -> 125.3266558
A3: 2 | C3: Pete Ryder | D3: Aberdare | E3: M | F3: SM | G3: 0.0562962963 | H3: =(2-(G3/L$10))*100 -> 121.9236573 | J3: Number of runners | K3: Position | L3: Time (hr.min.sec)
A4: 3 | C4: Jack Agnew | D4: Mercia | E4: M | F4: U23 | G4: 0.06015046296 | H4: 116.5783813 | J4: 71 | K4: =K6+2 -> 38 | L4: =VLOOKUP(K4,A$2:G$201,7,FALSE) -> 01:45:02
A5: 4 | C5: Andy Stephens | D5: Monross | E5: M | F5: M40 | G5: 0.06123842593 | H5: 115.0695046 | J5: Was it an even field? | K5: =K6+1 -> 37 | L5: =VLOOKUP(K5,A$2:G$201,7,FALSE) -> 01:44:44
A6: 5 | C6: Tom Turner | D6: Mynydd Du | E6: M | F6: M | G6: 0.06251157407 | H6: 113.3037979 | J6: =ISEVEN(J4) -> FALSE | K6: =IF(J6 = TRUE,(J4/2),((J4+1)/2)) -> 36 | L6: 01:43:44
A7: 6 | C7: Wyndham Turner | E7: M | F7: M | G7: 0.06311342593 | H7: 112.4691001 | K7: =K6-1 -> 35 | L7: 01:43:26
A8: 7 | C8: Mel Price | D8: Mercia | E8: F | F8: F40 | G8: 0.06325231481 | H8: 112.2764776 | K8: =K6-2 -> 34 | L8: =VLOOKUP(K8,A$2:G$201,7,FALSE) -> 01:42:13
A9: 8 | C9: Dan Sandford | D9: FOD | E9: M | F9: M40 | G9: 0.06393518519 | H9: 111.3294167 | L9: =VLOOKUP(K9,A7:G206,7,FALSE) -> 
A10: 9 | C10: Nigeal Rogerson | E10: M | F10: M40 | G10: 0.06458333333 | H10: 110.4305114 | L10: =IF(J6=TRUE,AVERAGE(L4:L9),AVERAGE(L4:L8)) -> 01:43:49.800
A11: 10 | C11: Matt O'Keefe | D11: MDC | E11: M | F11: M | G11: 0.06465277778 | H11: 110.3342001
A12: 11 | C12: Helen Brown | D12: Mynydd Du | E12: F | F12: F40 | G12: 0.06474537037 | H12: 110.2057851
A13: 12 | C13: Ian Luke | D13: Poole R | E13: M | F13: M | G13: 0.06479166667 | H13: 110.1415776
A14: 13 | C14: Dan Lewis | D14: Wye V | E14: M | F14: M40 | G14: 0.06560185185 | H14: 109.017946
A15: 14 | C15: Michael Reynolds | D15: Mercia | E15: M | F15: M50 | G15: 0.06576388889 | H15: 108.7932197
A16: 15 | C16: John Aggleton | D16: MDC | E16: M | F16: M60 | G16: 0.06672453704 | H16: 107.4609137
A17: 16 | C17: Steve 'Amazing' Hepton… | D17: Mynydd Du | E17: M | F17: M40 | G17: 0.06704861111 | H17: 107.011461
A18: 17 | C18: Helen Marshall | D18: Aberystwyth | E18: F | F18: F | G18: 0.06724537037 | H18: 106.7385791
A19: 18 | C19: Niki Radnege | E19: M | F19: M40 | G19: 0.06729166667 | H19: 106.6743716
A20: 19 | C20: Mark Agnew | D20: Mercia | E20: M | F20: M50 | G20: 0.06773148148 | H20: 106.0644001
A21: 20 | C21: Andy Horlick | D21: FOD | E21: M | F21: M40 | G21: 0.06783564815 | H21: 105.9199332
A22: 21 | C22: Andy Vaudin | E22: M | F22: M50 | G22: 0.06800925926 | H22: 105.679155
A23: 22 | C23: Robin Bacon | D23: Mercia | E23: M | F23: M50 | G23: 0.06822916667 | H23: 105.3741693
A24: 23 | C24: Paul Tucker | D24: Mynydd Du | E24: M | F24: M50 | G24: 0.06833333333 | H24: 105.2297024
A25: 24 | C25: Alexander Eynon | E25: M | F25: M50 | G25: 0.06847222222 | H25: 105.0370798
A26: 25 | C26: James Bellin | E26: M | F26: M | G26: 0.06878472222 | H26: 104.6036791
A27: 26 | C27: Andrew Brasington | D27: Ebbw Vale | E27: M | F27: M50 | G27: 0.06962962963 | H27: 103.4318919
A28: 27 | C28: Andrew Pritchard | D28: Buckley Runners | E28: M | F28: M40 | G28: 0.06981481481 | H28: 103.1750618
A29: 28 | C29: Sanjai Sharma | D29: Bounemouth | E29: M | F29: M50 | G29: 0.06988425926 | H29: 103.0787505
A30: 29 | C30: Phil Richards | D30: Weston | E30: F | F30: F40 | G30: 0.07005787037 | H30: 102.8379723
A31: 30 | C31: David Mullin | D31: Mercia | E31: M | F31: M40 | G31: 0.07049768519 | H31: 102.2280009
A32: 31 | C32: Kevin Hagley | D32: SWRR | E32: M | F32: M50 | G32: 0.07052083333 | H32: 102.1958971
A33: 32 | C33: Peter Sowerby | D33: Brecon | E33: M | F33: M50 | G33: 0.07086805556 | H33: 101.7143407
A34: 33 | C34: Rhian Probert | D34: Mynydd Du | E34: F | F34: F40 | G34: 0.07094907407 | H34: 101.6019776
A35: 34 | C35: Sam Weale | D35: Monross | E35: M | F35: M | G35: 0.0709837963 | H35: 101.553822
A36: 35 | C36: Kenneth Cox | D36: Southville | E36: M | F36: M | G36: 0.0718287037 | H36: 100.3820347
A37: 36 | C37: Nick Biggs | E37: M | F37: M40 | G37: 0.07203703704 | H37: 100.0931009
A38: 37 | C38: Gareth Bryer | D38: Mynydd Du | E38: M | F38: M40 | G38: 0.07273148148 | H38: 99.12998812
A39: 38 | C39: Sammi Toop | D39: Mynydd Du | E39: F | F39: F | G39: 0.07293981481 | H39: 98.84105429
A40: 39 | C40: James Gale | D40: Southville | E40: M | F40: M | G40: 0.07300925926 | H40: 98.74474301
A41: 40 | C41: Richard Cronin | D41: MDC | E41: M | F41: M | G41: 0.07326388889 | H41: 98.39160166
A42: 41 | C42: Matthew Haynes | D42: Hay Hotfooters | E42: M | F42: M40 | G42: 0.07334490741 | H42: 98.2792385
A43: 42 | C43: Matthew Lawson | D43: Chepstw | E43: M | F43: M40 | G43: 0.07346064815 | H43: 98.1187197
A44: 43 | C44: Sasha Habgood | D44: Mynydd Du | E44: F | F44: F40 | G44: 0.0734837963 | H44: 98.08661594
A45: 44 | C45: Tom Morfey | D45: Cardiff Harlequins | E45: M | F45: U23 | G45: 0.07365740741 | H45: 97.84583775
A46: 45 | C46: James Woodier | D46: Mynydd Du | E46: M | F46: M | G46: 0.07482638889 | H46: 96.2245979
A47: 46 | C47: Martin Simmons | E47: M | F47: M50 | G47: 0.07511574074 | H47: 95.82330091
A48: 47 | C48: Debbie Stenner | D48: FOD | E48: F | F48: F40 | G48: 0.07618055556 | H48: 94.34652798
A49: 48= | C49: Hannah Hopkinson | E49: F | F49: F | G49: 0.07657407407 | H49: 93.80076407
A50: 48= | C50: Matthew Marshall | D50: Southville | E50: M | F50: M | G50: 0.07657407407 | H50: 93.80076407
A51: 50 | C51: Emily Cox | D51: Southville | E51: F | F51: F | G51: 0.0737962963 | H51: 97.65321519
A52: 51 | C52: Andy Blackmore | D52: MDC | E52: M | F52: M50 | G52: 0.07748842593 | H52: 92.53266558
A53: 52 | C53: Naomi Law | D53: Mynydd Du | E53: F | F53: F40 | G53: 0.07899305556 | H53: 90.44592122
A54: 53 | C54: Gareth Welch | E54: M | F54: M40 | G54: 0.07987268519 | H54: 89.22597836
A55: 54 | C55: John Jaspers | E55: M | F55: M40 | G55: 0.08045138889 | H55: 88.42338438
A56: 55 | C56: Mike Harris | D56: Westbury | E56: M | F56: M60 | G56: 0.08149305556 | H56: 86.97871521
A57: 56 | C57: Richard Simpson | E57: M | F57: M40 | G57: 0.08197916667 | H57: 86.30453626
A58: 57 | C58: Kate O'Sullivan | D58: Aberystwyth | E58: F | F58: F50 | G58: 0.08203703704 | H58: 86.22427686
A59: 58 | C59: Steve Harrhy | D59: Pont y Pwl | E59: M | F59: M50 | G59: 0.08210648148 | H59: 86.12796558
A60: 59 | C60: Andy Stott | D60: MDC | E60: M | F60: M50 | G60: 0.08259259259 | H60: 85.45378664
A61: 60 | C61: Bev Tucker | D61: Mynydd Du | E61: F | F61: F50 | G61: 0.0837037037 | H61: 83.91280619
A62: 61 | C62: Christine Farr | D62: MDC | E62: F | F62: F40 | G62: 0.08376157407 | H62: 83.83254679
A63: 62 | C63: Hugh Morgan-Jones | D63: WFRA | E63: M | F63: M50 | G63: 0.08386574074 | H63: 83.68807987
A64: 63 | C64: Simon Dancel | D64: Bristol Up & Runners | E64: M | F64: M40 | G64: 0.08408564815 | H64: 83.38309416
A65: 64 | C65: Rona Davies | D65: Mynydd Du | E65: F | F65: F50 | G65: 0.08571759259 | H65: 81.11977913
A66: 65 | C66: Pete Morfey | D66: Cardiff Harlequins | E66: M | F66: M60 | G66: 0.08596064815 | H66: 80.78268965
A67: 66 | C67: Gareth Jones | D67: MDC | E67: M | F67: M70 | G67: 0.08748842593 | H67: =(2-(G67/L$10))*100 -> 78.66384154
A68: 67 | C68: Caroline Dallimore | D68: MDC | E68: F | F68: F60 | G68: 0.08940972222 | H68: 75.99922951
A69: 68 | C69: Jonathan Humphries | E69: M | F69: M | G69: 0.09259259259 | H69: 71.5849626
A70: 69 | C70: Karen Elvers | D70: MDC | E70: F | F70: F40 | G70: 0.09439814815 | H70: 69.08086937
A71: 70 | C71: Gary Gunner | D71: Croft Ambrey | E71: M | F71: M70 | G71: 0.09875 | H71: 63.04536261
A72: 71 | C72: Les Williams | D72: Eryri | E72: M | F72: M70 | G72: 0.09951388889 | H72: 61.98593855

Sheet Middletown Show
A1: Position | B1: Number | C1: Name | D1: Club | E1: Gender | F1: Category | G1: Time | H1: Points
A2: 1
A3: =A2+1 -> 2 | J3: Number of runners | K3: Position | L3: Time (min.sec)
A4: =A3+1 -> 3 | J4: =COUNT(A2:A201) -> 96 | K4: =K6+2 -> 50 | L4: =VLOOKUP(K4,A2:G201,7,FALSE) -> 00:00:00
A5: 4 | J5: =ISEVEN(J4) -> TRUE | K5: =K6+1 -> 49 | L5: =VLOOKUP(K5,A3:G202,7,FALSE) -> 00:00:00
A6: 5 | K6: =IF(J5 = TRUE,(J4/2),((J4+1)/2)) -> 48 | L6: 00:00:00
A7: 6 | K7: =K6-1 -> 47 | L7: 00:00:00
A8: 7 | K8: =K6-2 -> 46 | L8: 00:00:00
A9: 8 | K9: =IF(J5 = TRUE, K6-3, Na) -> 45 | L9: 00:00:00
A10: 9 | L10: =IF(J5=TRUE,AVERAGE(L4:L9),AVERAGE(L4:L8)) -> 00:00:00
A11: 10
A12: 11
A13: 12
A14: 13
A15: 14
A16: 15
A17: 16
A18: 17
A19: 18
A20: 19
A21: 20
A22: 21
A23: 22
A24: 23
A25: 24
A26: 25
A27: 26
A28: 27
A29: 28
A30: 29
A31: 30
A32: 31
A33: 32
A34: 33
A35: 34
A36: 35
A37: 36
A38: 37
A39: 38
A40: 39
A41: 40
A42: 41
A43: 42
A44: 43
A45: 44
A46: 45
A47: 46
A48: 47
A49: 48
A50: 49
A51: 50
A52: 51
A53: 52
A54: 53
A55: 54
A56: 55
A57: 56
A58: 57
A59: 58
A60: 59
A61: 60
A62: 61
A63: 62
A64: 63
A65: 64
A66: 65
A67: 66
A68: =A67+1 -> 67
A69: 68
A70: 69
A71: 70
A72: 71
A73: 72
A74: 73
A75: 74
A76: 75
A77: 76
A78: 77
A79: 78
A80: 79
A81: 80
A82: 81
A83: 82
A84: 83
A85: 84
A86: 85
A87: 86
A88: 87
A89: 88
A90: 89
A91: 90
A92: 91
A93: 92
A94: 93
A95: 94
A96: 95
A97: 96

Sheet Guto Nyth Bran
A1: Position | B1: Number | C1: Name | D1: Club | E1: Gender | F1: Category | G1: Time | H1: Points
A2: 1
A3: =A2+1 -> 2 | J3: Number of runners | K3: Position | L3: Time (min.sec)
A4: =A3+1 -> 3 | J4: =COUNT(A2:A201) -> 38 | K4: =K6+2 -> 21 | L4: =VLOOKUP(K4,A2:G201,7,FALSE) -> 00:00:00
A5: 4 | J5: =ISEVEN(J4) -> TRUE | K5: =K6+1 -> 20 | L5: 00:00:00
A6: 5 | K6: =IF(J5 = TRUE,(J4/2),((J4+1)/2)) -> 19 | L6: 00:00:00
A7: 6 | K7: =K6-1 -> 18 | L7: 00:00:00
A8: 7 | K8: =K6-2 -> 17 | L8: 00:00:00
A9: 8 | K9: =IF(J5 = TRUE, K6-3, Na) -> 16 | L9: 00:00:00
A10: 9 | L10: =IF(J5=TRUE,AVERAGE(L4:L9),AVERAGE(L4:L8)) -> 00:00:00
A11: 10
A12: 11
A13: 12
A14: 13
A15: 14
A16: 15
A17: 16
A18: 17
A19: 18
A20: 19
A21: 20
A22: 21
A23: 22
A24: 23
A25: 24
A26: 25
A27: 26
A28: 27
A29: 28
A30: 29
A31: 30
A32: 31
A33: 32
A34: 33
A35: 34
A36: 35
A37: 36
A38: 37
A39: 38

Sheet Brecon Beacons
A1: Position | B1: Number | C1: Name | D1: Club | E1: Sex | F1: Category | G1: Time | H1: Points
A2: 1
A3: 2 | J3: Number of runners | K3: Position | L3: Time (min.sec)
A4: 3 | J4: =COUNT(A2:A201) -> 39 | K4: =K6+2 -> 22 | L4: =VLOOKUP(K4,A2:G201,7,FALSE) -> 0
A5: 4 | J5: =ISEVEN(J4) -> FALSE | K5: =K6+1 -> 21 | L5: =VLOOKUP(K5,A2:G202,7,FALSE) -> 0
A6: 5 | K6: =IF(J5 = TRUE,(J4/2),((J4+1)/2)) -> 20 | L6: =VLOOKUP(K6,A3:G203,7,FALSE) -> 0
A7: 6 | K7: =K6-1 -> 19 | L7: =VLOOKUP(K7,A4:G204,7,FALSE) -> 0
A8: 7 | K8: =K6-2 -> 18 | L8: =VLOOKUP(K8,A5:G205,7,FALSE) -> 0
A9: 8 | K9: =IF(J5 = TRUE, K6-3, Na) ->  | L9: =VLOOKUP(K9,A6:G206,7,FALSE) -> 
A10: 9 | L10: =IF(J5=TRUE,AVERAGE(L4:L9),AVERAGE(L4:L8)) -> 0
A11: 10
A12: 11
A13: 12
A14: 13
A15: 14
A16: 15
A17: 16
A18: 17
A19: 18
A20: 19
A21: 20
A22: 21
A23: 22
A24: 23
A25: 24
A26: 25
A27: 26
A28: 27
A29: 28
A30: 29
A31: 30
A32: 31
A33: 32
A34: 33
A35: 34
A36: 35
A37: 36
A38: 37
A39: 38
A40: 39

Sheet Fan Fawr

Sheet WFRA Membership March 2017
C2: 1st | D2: 2nd | E2: middle name removed | F2: Spaces Trimed | G2: Spaces Trimed | J2: Hopefully this is the name used at races…
C3: Ross | D3: Roberts | E3: =IF(ISERROR(FIND(" ",C3)),C3,MID(C3,1,FIND(" ",C3))) -> Ross | F3: =TRIM(E3) -> Ross | G3: =TRIM(D3) -> Roberts | J3: =_xlfn.CONCAT(F3," ",G3) -> Ross Roberts | K3: =J3 -> Ross Roberts
C4: Tony | D4: Wood | E4: =IF(ISERROR(FIND(" ",C4)),C4,MID(C4,1,FIND(" ",C4))) -> Tony | F4: =TRIM(E4) -> Tony | G4: =TRIM(D4) -> Wood | J4: =_xlfn.CONCAT(F4," ",G4) -> Tony Wood | K4: =J4 -> Tony Wood
C5: Sue | D5: Buck | E5: Sue | F5: Sue | G5: Buck | J5: Sue Buck | K5: Sue Buck
C6: Emma | D6: Collins | E6: Emma | F6: Emma | G6: Collins | J6: Emma Collins | K6: Emma Collins
C7: Adrian | D7: Moir | E7: Adrian | F7: Adrian | G7: Moir | J7: =_xlfn.CONCAT(F7," ",G7) -> Adrian Moir | K7: Adrian Moir
C8: Martin | D8: Cable | E8: Martin | F8: Martin | G8: Cable | J8: Martin Cable | K8: Martin Cable
C9: Dave | D9: Farrow | E9: Dave | F9: Dave | G9: Farrow | J9: Dave Farrow | K9: Dave Farrow
C10: John | D10: Rowley | E10: John | F10: John | G10: Rowley | J10: John Rowley | K10: John Rowley
C11: Miranda | D11: Grant | E11: Miranda | F11: Miranda | G11: Grant | J11: Miranda Grant | K11: Miranda Grant
C12: Aled | D12: Edwards | E12: Aled | F12: Aled | G12: Edwards | J12: Aled Edwards | K12: Aled Edwards
C13: Richard | D13: Self | E13: Richard | F13: Richard | G13: Self | J13: Richard Self | K13: Richard Self
C14: Craig | D14: Edwards | E14: Craig | F14: Craig | G14: Edwards | J14: Craig Edwards | K14: Craig Edwards
C15: Richard | D15: Applewhite | E15: Richard | F15: Richard | G15: Applewhite | J15: Richard Applewhite | K15: Richard Applewhite
C16: Simon | D16: Adney | E16: Simon | F16: Simon | G16: Adney | J16: Simon Adney | K16: Simon Adney
C17: John | D17: Aggleton | E17: John | F17: John | G17: Aggleton | J17: John Aggleton | K17: John Aggleton
C18: Hugh | D18: Aggleton | E18: Hugh | F18: Hugh | G18: Aggleton | J18: Hugh Aggleton | K18: Hugh Aggleton
C19: Paul | D19: Aird | E19: Paul | F19: Paul | G19: Aird | J19: Paul Aird | K19: Paul Aird
C20: Dave | D20: Andrews | E20: Dave | F20: Dave | G20: Andrews | J20: Dave Andrews | K20: Dave Andrews
C21: Robert | D21: Armstrong | E21: Robert | F21: Robert | G21: Armstrong | J21: Robert Armstrong | K21: Robert Armstrong
C22: Neil | D22: Ashcroft | E22: Neil | F22: Neil | G22: Ashcroft | J22: Neil Ashcroft | K22: Neil Ashcroft
C23: Charles | D23: Ashley | E23: Charles | F23: Charles | G23: Ashley | J23: Charles Ashley | K23: Charles Ashley
C24: Mark | D24: Atherton | E24: Mark | F24: Mark | G24: Atherton | J24: Mark Atherton | K24: Mark Atherton
C25: Dave | D25: Austin | E25: Dave | F25: Dave | G25: Austin | J25: Dave Austin | K25: Dave Austin
C26: Ainsley | D26: Baker | E26: Ainsley | F26: Ainsley | G26: Baker | J26: Ainsley Baker | K26: Ainsley Baker
C27: Louise | D27: Barker | E27: Louise | F27: Louise | G27: Barker | J27: Louise Barker | K27: Louise Barker
C28: Charlotte | D28: Barlow | E28: Charlotte | F28: Charlotte | G28: Barlow | J28: Charlotte Barlow | K28: Charlotte Barlow
C29: Anna | D29: Bartlett | E29: Anna | F29: Anna | G29: Bartlett | J29: Anna Bartlett | K29: Anna Bartlett
C30: Sharon | D30: Basford | E30: Sharon | F30: Sharon | G30: Basford | J30: Sharon Basford | K30: Sharon Basford
C31: John | D31: Battersby | E31: John | F31: John | G31: Battersby | J31: John Battersby | K31: John Battersby
C32: David | D32: Baugh | E32: David | F32: David | G32: Baugh | J32: David Baugh | K32: David Baugh
C33: Menai | D33: Baugh | E33: Menai | F33: Menai | G33: Baugh | J33: Menai Baugh | K33: Menai Baugh
C34: Emma | D34: McWilliams | E34: Emma | F34: Emma | G34: McWilliams | J34: Emma McWilliams | K34: Emma McWilliams
C35: Chris | D35: Baynham-Hughes | E35: Chris | F35: Chris | G35: Baynham-Hughes | J35: Chris Baynham-Hughes | K35: Chris Baynham-Hughes
C36: Kate | D36: Beecher | E36: Kate | F36: Kate | G36: Beecher | J36: Kate Beecher | K36: Kate Beecher
C37: Paul | D37: Beeson | E37: Paul | F37: Paul | G37: Beeson | J37: Paul Beeson | K37: Paul Beeson
C38: Louise | D38: Beetlestone | E38: Louise | F38: Louise | G38: Beetlestone | J38: Louise Beetlestone | K38: Louise Beetlestone
C39: Victor | D39: Belshaw | E39: Victor | F39: Victor | G39: Belshaw | J39: Victor Belshaw | K39: Victor Belshaw
C40: Tony | D40: Benton | E40: Tony | F40: Tony | G40: Benton | J40: Tony Benton | K40: Tony Benton
C41: Hazel | D41: Berrett | E41: Hazel | F41: Hazel | G41: Berrett | J41: Hazel Berrett | K41: Hazel Berrett
C42: Joe | D42: Beswick | E42: Joe | F42: Joe | G42: Beswick | J42: Joe Beswick | K42: Joe Beswick
C43: David | D43: Bevan | E43: David | F43: David | G43: Bevan | J43: David Bevan | K43: David Bevan
C44: Wayne | D44: Billman | E44: Wayne | F44: Wayne | G44: Billman | J44: Wayne Billman | K44: Wayne Billman
C45: Joe | D45: Blackett | E45: Joe | F45: Joe | G45: Blackett | J45: Joe Blackett | K45: Joe Blackett
C46: Andrew | D46: Blackmore | E46: Andrew | F46: Andrew | G46: Blackmore | J46: Andrew Blackmore | K46: Andrew Blackmore
C47: Simon | D47: Blease | E47: Simon | F47: Simon | G47: Blease | J47: Simon Blease | K47: Simon Blease
C48: Richard | D48: Borne | E48: Richard | F48: Richard | G48: Borne | J48: Richard Borne | K48: Richard Borne
C49: Nicholas | D49: Bradley | E49: Nicholas | F49: Nicholas | G49: Bradley | J49: Nicholas Bradley | K49: Nicholas Bradley
C50: Carl | D50: Brancher | E50: Carl | F50: Carl | G50: Brancher | J50: Carl Brancher | K50: Carl Brancher
C51: Jez | D51: Brown | E51: Jez | F51: Jez | G51: Brown | J51: Jez Brown | K51: Jez Brown
C52: Helen | D52: Brown | E52: Helen | F52: Helen | G52: Brown | J52: Helen Brown | K52: Helen Brown
C53: Peter | D53: Browning | E53: Peter | F53: Peter | G53: Browning | J53: Peter Browning | K53: Peter Browning
C54: Gareth | D54: Buffett | E54: Gareth | F54: Gareth | G54: Buffett | J54: Gareth Buffett | K54: Gareth Buffett
C55: John | D55: Carson | E55: John | F55: John | G55: Carson | J55: John Carson | K55: John Carson
C56: Michael | D56: Catling | E56: Michael | F56: Michael | G56: Catling | J56: Michael Catling | K56: Michael Catling
C57: Chris | D57: Chambers | E57: Chris | F57: Chris | G57: Chambers | J57: Chris Chambers | K57: Chris Chambers
C58: Paul | D58: Chester | E58: Paul | F58: Paul | G58: Chester | J58: Paul Chester | K58: Paul Chester
C59: Bob | D59: Chiltern | E59: Bob | F59: Bob | G59: Chiltern | J59: Bob Chiltern | K59: Bob Chiltern
C60: Geoff | D60: Clegg | E60: Geoff | F60: Geoff | G60: Clegg | J60: Geoff Clegg | K60: Geoff Clegg
C61: Martin | D61: Cliffe | E61: Martin | F61: Martin | G61: Cliffe | J61: Martin Cliffe | K61: Martin Cliffe
C62: Terry | D62: Coleman | E62: Terry | F62: Terry | G62: Coleman | J62: Terry Coleman | K62: Terry Coleman
C63: Graham | D63: Colvin | E63: Graham | F63: Graham | G63: Colvin | J63: Graham Colvin | K63: Graham Colvin
C64: Neil | D64: Coppack | E64: Neil | F64: Neil | G64: Coppack | J64: Neil Coppack | K64: Neil Coppack
C65: Michael | D65: Corrales | E65: Michael | F65: Michael | G65: Corrales | J65: Michael Corrales | K65: Michael Corrales
C66: John | D66: Currie | E66: John | F66: John | G66: Currie | J66: John Currie | K66: John Currie
C67: Caroline | D67: Dallimore | E67: Caroline | F67: Caroline | G67: Dallimore | J67: Caroline Dallimore | K67: Caroline Dallimore
C68: William | D68: Darby | E68: =IF(ISERROR(FIND(" ",C68)),C68,MID(C68,1,FIND(" ",C68))) -> William | F68: =TRIM(E68) -> William | G68: =TRIM(D68) -> Darby | J68: =_xlfn.CONCAT(F68," ",G68) -> William Darby | K68: =J68 -> William Darby
C69: Malcolm | D69: Davies | E69: Malcolm | F69: Malcolm | G69: Davies | J69: Malcolm Davies | K69: Malcolm Davies
C70: Neil | D70: Davies | E70: Neil | F70: Neil | G70: Davies | J70: Neil Davies | K70: Neil Davies
C71: Nicola | D71: Davies | E71: Nicola | F71: Nicola | G71: Davies | J71: Nicola Davies | K71: Nicola Davies
C72: Barry | D72: Davies | E72: Barry | F72: Barry | G72: Davies | J72: Barry Davies | K72: Barry Davies
C73: Tom | D73: Davies | E73: Tom | F73: Tom | G73: Davies | J73: Tom Davies | K73: Tom Davies
C74: Mark | D74: Davies | E74: Mark | F74: Mark | G74: Davies | J74: Mark Davies | K74: Mark Davies
C75: Emyr | D75: Davies | E75: Emyr | F75: Emyr | G75: Davies | J75: Emyr Davies | K75: Emyr Davies
C76: Eric | D76: Davies | E76: Eric | F76: Eric | G76: Davies | J76: Eric Davies | K76: Eric Davies
C77: Caryl | D77: Davies | E77: Caryl | F77: Caryl | G77: Davies | J77: Caryl Davies | K77: Caryl Davies
C78: Gary | D78: Davies | E78: Gary | F78: Gary | G78: Davies | J78: Gary Davies | K78: Gary Davies
C79: Ceri | D79: Davies | E79: Ceri | F79: Ceri | G79: Davies | J79: Ceri Davies | K79: Ceri Davies
C80: Rona | D80: Davies | E80: Rona | F80: Rona | G80: Davies | J80: Rona Davies | K80: Rona Davies
C81: Terry | D81: Davies | E81: Terry | F81: Terry | G81: Davies | J81: Terry Davies | K81: Terry Davies
C82: Tim | D82: Davies | E82: Tim | F82: Tim | G82: Davies | J82: Tim Davies | K82: Tim Davies
C83: Edward | D83: Davies | E83: Edward | F83: Edward | G83: Davies | J83: Edward Davies | K83: Edward Davies
C84: Carwyn | D84: Davies | E84: Carwyn | F84: Carwyn | G84: Davies | J84: Carwyn Davies | K84: Carwyn Davies
C85: Huw | D85: Davies | E85: Huw | F85: Huw | G85: Davies | J85: Huw Davies | K85: Huw Davies
C86: Jim | D86: Davis | E86: Jim | F86: Jim | G86: Davis | J86: Jim Davis | K86: Jim Davis
C87: Elizabeth | D87: Davy | E87: Elizabeth | F87: Elizabeth | G87: Davy | J87: Elizabeth Davy | K87: Elizabeth Davy
C88: Andrew | D88: Dickens | E88: Andrew | F88: Andrew | G88: Dickens | J88: Andrew Dickens | K88: Andrew Dickens
C89: Paul | D89: Dodd | E89: Paul | F89: Paul | G89: Dodd | J89: Paul Dodd | K89: Paul Dodd
C90: Joyce | D90: Dodd | E90: Joyce | F90: Joyce | G90: Dodd | J90: Joyce Dodd | K90: Joyce Dodd
C91: Dan | D91: Doherty | E91: Dan | F91: Dan | G91: Doherty | J91: Dan Doherty | K91: Dan Doherty
C92: Alan | D92: Duncan | E92: Alan | F92: Alan | G92: Duncan | J92: Alan Duncan | K92: Alan Duncan
C93: Peter | D93: Eardley | E93: Peter | F93: Peter | G93: Eardley | J93: Peter Eardley | K93: Peter Eardley
C94: Linda | D94: Edmondson | E94: Linda | F94: Linda | G94: Edmondson | J94: Linda Edmondson | K94: Linda Edmondson
C95: Juliet | D95: Edwards | E95: Juliet | F95: Juliet | G95: Edwards | J95: Juliet Edwards | K95: Juliet Edwards
C96: Adrian | D96: Eggleton | E96: Adrian | F96: Adrian | G96: Eggleton | J96: Adrian Eggleton | K96: Adrian Eggleton
C97: Duncan | D97: Elliott | E97: Duncan | F97: Duncan | G97: Elliott | J97: Duncan Elliott | K97: Duncan Elliott
C98: Karen | D98: Elvers | E98: Karen | F98: Karen | G98: Elvers | J98: Karen Elvers | K98: Karen Elvers
C99: Louise | D99: Emery | E99: Louise | F99: Louise | G99: Emery | J99: Louise Emery | K99: Louise Emery
C100: Mark | D100: English | E100: Mark | F100: Mark | G100: English | J100: Mark English | K100: Mark English
C101: Catherine | D101: Etchell | E101: Catherine | F101: Catherine | G101: Etchell | J101: Catherine Etchell | K101: Catherine Etchell
C102: Maldwyn | D102: Evans | E102: Maldwyn | F102: Maldwyn | G102: Evans | J102: Maldwyn Evans | K102: Maldwyn Evans
C103: Brian | D103: Evans | E103: Brian | F103: Brian | G103: Evans | J103: Brian Evans | K103: Brian Evans
C104: Rhodri | D104: Evans | E104: Rhodri | F104: Rhodri | G104: Evans | J104: Rhodri Evans | K104: Rhodri Evans
C105: Hayley | D105: Evans | E105: Hayley | F105: Hayley | G105: Evans | J105: Hayley Evans | K105: Hayley Evans
C106: Brian | D106: Faulkner | E106: Brian | F106: Brian | G106: Faulkner | J106: Brian Faulkner | K106: Brian Faulkner
C107: Mike | D107: Fawcett | E107: Mike | F107: Mike | G107: Fawcett | J107: Mike Fawcett | K107: Mike Fawcett
C108: Jeremy | D108: Fellick | E108: Jeremy | F108: Jeremy | G108: Fellick | J108: Jeremy Fellick | K108: Jeremy Fellick
C109: Geoffrey | D109: Fielding | E109: Geoffrey | F109: Geoffrey | G109: Fielding | J109: Geoffrey Fielding | K109: Geoffrey Fielding
C110: Dick | D110: Finch | E110: Dick | F110: Dick | G110: Finch | J110: Dick Finch | K110: Dick Finch
C111: Gavin | D111: Fisher | E111: Gavin | F111: Gavin | G111: Fisher | J111: Gavin Fisher | K111: Gavin Fisher
C112: Glyn | D112: Fletcher | E112: Glyn | F112: Glyn | G112: Fletcher | J112: Glyn Fletcher | K112: Glyn Fletcher
C113: Alexandra | D113: Fletcher | E113: Alexandra | F113: Alexandra | G113: Fletcher | J113: Alexandra Fletcher | K113: Alexandra Fletcher
C114: Mario | D114: Foschi | E114: Mario | F114: Mario | G114: Foschi | J114: Mario Foschi | K114: Mario Foschi
C115: Paul | D115: Fosh | E115: Paul | F115: Paul | G115: Fosh | J115: Paul Fosh | K115: Paul Fosh
C116: Alan | D116: French | E116: Alan | F116: Alan | G116: French | J116: Alan French | K116: Alan French
C117: Peter | D117: Gardner | E117: Peter | F117: Peter | G117: Gardner | J117: Peter Gardner | K117: Peter Gardner
C118: Tom | D118: Garrod | E118: Tom | F118: Tom | G118: Garrod | J118: Tom Garrod | K118: Tom Garrod
C119: Ben | D119: Gibbison | E119: Ben | F119: Ben | G119: Gibbison | J119: Ben Gibbison | K119: Ben Gibbison
C120: Christopher | D120: Gildersleve | E120: Christopher | F120: Christopher | G120: Gildersleve | J120: Christopher Gildersleve | K120: Christopher Gildersleve
C121: Phil | D121: Gillard | E121: Phil | F121: Phil | G121: Gillard | J121: Phil Gillard | K121: Phil Gillard
C122: Mary | D122: Gillie | E122: Mary | F122: Mary | G122: Gillie | J122: Mary Gillie | K122: Mary Gillie
C123: Bridget | D123: Glaister | E123: Bridget | F123: Bridget | G123: Glaister | J123: Bridget Glaister | K123: Bridget Glaister
C124: Neil | D124: Grant | E124: Neil | F124: Neil | G124: Grant | J124: Neil Grant | K124: Neil Grant
C125: Martin | D125: Green | E125: Martin | F125: Martin | G125: Green | J125: Martin Green | K125: Martin Green
C126: Sally | D126: Greenwood | E126: Sally | F126: Sally | G126: Greenwood | J126: Sally Greenwood | K126: Sally Greenwood
C127: Samuel | D127: Gregory | E127: Samuel | F127: Samuel | G127: Gregory | J127: Samuel Gregory | K127: Samuel Gregory
C128: Wynn | D128: Griffith | E128: Wynn | F128: Wynn | G128: Griffith | J128: Wynn Griffith | K128: Wynn Griffith
C129: Dylan | D129: Griffiths | E129: Dylan | F129: Dylan | G129: Griffiths | J129: Dylan Griffiths | K129: Dylan Griffiths
C130: Gary | D130: Gunner | E130: Gary | F130: Gary | G130: Gunner | J130: Gary Gunner | K130: Gary Gunner
C131: Adrian | D131: Gwillam | E131: Adrian | F131: Adrian | G131: Gwillam | J131: Adrian Gwillam | K131: Adrian Gwillam
C132: Sasha | D132: Habgood | E132: =IF(ISERROR(FIND(" ",C132)),C132,MID(C132,1,FIND(" ",C132))) -> Sasha | F132: =TRIM(E132) -> Sasha | G132: =TRIM(D132) -> Habgood | J132: =_xlfn.CONCAT(F132," ",G132) -> Sasha Habgood | K132: =J132 -> Sasha Habgood
C133: Tony | D133: Hall | E133: Tony | F133: Tony | G133: Hall | J133: Tony Hall | K133: Tony Hall
C134: Brian | D134: Hardcastle | E134: Brian | F134: Brian | G134: Hardcastle | J134: Brian Hardcastle | K134: Brian Hardcastle
C135: Jonathan | D135: Hardman | E135: Jonathan | F135: Jonathan | G135: Hardman | J135: Jonathan Hardman | K135: Jonathan Hardman
C136: Tim | D136: Hargreaves | E136: Tim | F136: Tim | G136: Hargreaves | J136: Tim Hargreaves | K136: Tim Hargreaves
C137: Mike | D137: Harris | E137: Mike | F137: Mike | G137: Harris | J137: Mike Harris | K137: Mike Harris
C138: Tom | D138: Harrison | E138: Tom | F138: Tom | G138: Harrison | J138: Tom Harrison | K138: Tom Harrison
C139: John | D139: Heppenstall | E139: John | F139: John | G139: Heppenstall | J139: John Heppenstall | K139: John Heppenstall
C140: Steve | D140: Herington | E140: Steve | F140: Steve | G140: Herington | J140: Steve Herington | K140: Steve Herington
C141: Simon | D141: Hide | E141: Simon | F141: Simon | G141: Hide | J141: Simon Hide | K141: Simon Hide
C142: Chris | D142: Higgins | E142: Chris | F142: Chris | G142: Higgins | J142: Chris Higgins | K142: Chris Higgins
C143: Fenella | D143: Higgins | E143: Fenella | F143: Fenella | G143: Higgins | J143: Fenella Higgins | K143: Fenella Higgins
C144: Dave | D144: Hill | E144: Dave | F144: Dave | G144: Hill | J144: Dave Hill | K144: Dave Hill
C145: Neil | D145: Hindle | E145: Neil | F145: Neil | G145: Hindle | J145: Neil Hindle | K145: Neil Hindle
C146: Mike | D146: Hobday | E146: Mike | F146: Mike | G146: Hobday | J146: Mike Hobday | K146: Mike Hobday
C147: Neal | D147: Hockley | E147: Neal | F147: Neal | G147: Hockley | J147: Neal Hockley | K147: Neal Hockley
C148: Paul | D148: Hodges | E148: Paul | F148: Paul | G148: Hodges | J148: Paul Hodges | K148: Paul Hodges
C149: Allan | D149: Hodkinson | E149: Allan | F149: Allan | G149: Hodkinson | J149: Allan Hodkinson | K149: Allan Hodkinson
C150: Chris | D150: Holloway | E150: Chris | F150: Chris | G150: Holloway | J150: Chris Holloway | K150: Chris Holloway
C151: Nicholas | D151: Holmes | E151: Nicholas | F151: Nicholas | G151: Holmes | J151: Nicholas Holmes | K151: Nicholas Holmes
C152: Kate | D152: Hovers | E152: Kate | F152: Kate | G152: Hovers | J152: Kate Hovers | K152: Kate Hovers
C153: Richard | D153: Hudson | E153: Richard | F153: Richard | G153: Hudson | J153: Richard Hudson | K153: Richard Hudson
C154: Andrew | D154: Hughes | E154: Andrew | F154: Andrew | G154: Hughes | J154: Andrew Hughes | K154: Andrew Hughes
C155: Goronwy | D155: Hughes | E155: Goronwy | F155: Goronwy | G155: Hughes | J155: Goronwy Hughes | K155: Goronwy Hughes
C156: Arfon | D156: Hughes | E156: Arfon | F156: Arfon | G156: Hughes | J156: Arfon Hughes | K156: Arfon Hughes
C157: Andrew | D157: Hughes | E157: Andrew | F157: Andrew | G157: Hughes | J157: Andrew Hughes | K157: Andrew Hughes
C158: Dan | D158: Hurst | E158: Dan | F158: Dan | G158: Hurst | J158: Dan Hurst | K158: Dan Hurst
C159: Gareth | D159: Jaggard | E159: Gareth | F159: Gareth | G159: Jaggard | J159: Gareth Jaggard | K159: Gareth Jaggard
C160: Stephen | D160: Jeffery | E160: Stephen | F160: Stephen | G160: Jeffery | J160: Stephen Jeffery | K160: Stephen Jeffery
C161: Paul | D161: Jeggo | E161: Paul | F161: Paul | G161: Jeggo | J161: Paul Jeggo | K161: Paul Jeggo
C162: Jeremy | D162: Jehan | E162: Jeremy | F162: Jeremy | G162: Jehan | J162: Jeremy Jehan | K162: Jeremy Jehan
C163: David | D163: Jenkins | E163: David | F163: David | G163: Jenkins | J163: David Jenkins | K163: David Jenkins
C164: Andrew | D164: Johnson | E164: Andrew | F164: Andrew | G164: Johnson | J164: Andrew Johnson | K164: Andrew Johnson
C165: Richard | D165: Johnson | E165: Richard | F165: Richard | G165: Johnson | J165: Richard Johnson | K165: Richard Johnson
C166: David | D166: Johnston | E166: David | F166: David | G166: Johnston | J166: David Johnston | K166: David Johnston
C167: Hugh | D167: Jones | E167: Hugh | F167: Hugh | G167: Jones | J167: Hugh Jones | K167: Hugh Jones
C168: Richard | D168: Jones | E168: Richard | F168: Richard | G168: Jones | J168: Richard Jones | K168: Richard Jones
C169: Alan | D169: Jones | E169: Alan | F169: Alan | G169: Jones | J169: Alan Jones | K169: Alan Jones
C170: Craig | D170: Jones | E170: Craig | F170: Craig | G170: Jones | J170: Craig Jones | K170: Craig Jones
C171: Jim | D171: Jones | E171: Jim | F171: Jim | G171: Jones | J171: Jim Jones | K171: Jim Jones
C172: Alan | D172: Jones | E172: Alan | F172: Alan | G172: Jones | J172: Alan Jones | K172: Alan Jones
C173: Trefor | D173: Jones | E173: Trefor | F173: Trefor | G173: Jones | J173: Trefor Jones | K173: Trefor Jones
C174: Chris | D174: Jones | E174: Chris | F174: Chris | G174: Jones | J174: Chris Jones | K174: Chris Jones
C175: Linda | D175: Jones | E175: Linda | F175: Linda | G175: Jones | J175: Linda Jones | K175: Linda Jones
C176: Gareth | D176: Jones | E176: Gareth | F176: Gareth | G176: Jones | J176: Gareth Jones | K176: Gareth Jones
C177: Graham | D177: Jones | E177: Graham | F177: Graham | G177: Jones | J177: Graham Jones | K177: Graham Jones
C178: David | D178: Jones | E178: David | F178: David | G178: Jones | J178: David Jones | K178: David Jones
C179: Philip | D179: Jones | E179: Philip | F179: Philip | G179: Jones | J179: Philip Jones | K179: Philip Jones
C180: Dei | D180: Jones | E180: Dei | F180: Dei | G180: Jones | J180: Dei Jones | K180: Dei Jones
C181: Stephen | D181: Jones | E181: Stephen | F181: Stephen | G181: Jones | J181: Stephen Jones | K181: Stephen Jones
C182: Ann-Marie | D182: Jones | E182: Ann-Marie | F182: Ann-Marie | G182: Jones | J182: Ann-Marie Jones | K182: Ann-Marie Jones
C183: Stephen | D183: Jones | E183: Stephen | F183: Stephen | G183: Jones | J183: Stephen Jones | K183: Stephen Jones
C184: Jayne | D184: Joy | E184: Jayne | F184: Jayne | G184: Joy | J184: Jayne Joy | K184: Jayne Joy
C185: Ben | D185: Jozefiak | E185: Ben | F185: Ben | G185: Jozefiak | J185: Ben Jozefiak | K185: Ben Jozefiak
C186: Michael | D186: Kelly | E186: Michael | F186: Michael | G186: Kelly | J186: Michael Kelly | K186: Michael Kelly
C187: Vicky | D187: Lambert | E187: Vicky | F187: Vicky | G187: Lambert | J187: Vicky Lambert | K187: Vicky Lambert
C188: Oliver | D188: Lamford | E188: Oliver | F188: Oliver | G188: Lamford | J188: Oliver Lamford | K188: Oliver Lamford
C189: Ian | D189: Landucci | E189: Ian | F189: Ian | G189: Landucci | J189: Ian Landucci | K189: Ian Landucci
C190: Rebecca | D190: Law | E190: Rebecca | F190: Rebecca | G190: Law | J190: Rebecca Law | K190: Rebecca Law
C191: Vanessa | D191: Lawson | E191: Vanessa | F191: Vanessa | G191: Lawson | J191: Vanessa Lawson | K191: Vanessa Lawson
C192: Jackie | D192: Lee | E192: Jackie | F192: Jackie | G192: Lee | J192: Jackie Lee | K192: Jackie Lee
C193: Eddie | D193: Lesniak | E193: Eddie | F193: Eddie | G193: Lesniak | J193: Eddie Lesniak | K193: Eddie Lesniak
C194: Huw | D194: Lewis | E194: Huw | F194: Huw | G194: Lewis | J194: Huw Lewis | K194: Huw Lewis
C195: Arwel | D195: Lewis | E195: Arwel | F195: Arwel | G195: Lewis | J195: Arwel Lewis | K195: Arwel Lewis
C196: Daniel | D196: Lewis | E196: =IF(ISERROR(FIND(" ",C196)),C196,MID(C196,1,FIND(" ",C196))) -> Daniel | F196: =TRIM(E196) -> Daniel | G196: =TRIM(D196) -> Lewis | J196: =_xlfn.CONCAT(F196," ",G196) -> Daniel Lewis | K196: =J196 -> Daniel Lewis
C197: John | D197: Linley | E197: John | F197: John | G197: Linley | J197: John Linley | K197: John Linley
C198: David | D198: Livesey | E198: David | F198: David | G198: Livesey | J198: David Livesey | K198: David Livesey
C199: Sheila | D199: Lloyd | E199: Sheila | F199: Sheila | G199: Lloyd | J199: Sheila Lloyd | K199: Sheila Lloyd
C200: Stephen | D200: Lloyd | E200: Stephen | F200: Stephen | G200: Lloyd | J200: Stephen Lloyd | K200: Stephen Lloyd
C201: Harvey | D201: Lloyd | E201: Harvey | F201: Harvey | G201: Lloyd | J201: Harvey Lloyd | K201: Harvey Lloyd
... 212 more rows
